{"text_format":"1","workbook":"xlsx","n_sheets":10,"sheets":["Instrucciones","Listas","Inputs_Datos","INFO Mitigación","Análisis Mitigación","Tablas Mitigación","INFO Adaptación","Análisis Adaptación","Tablas Adaptación","Medidas"],"not_rendered":{"charts":0,"images":5,"macros":1,"external_links":1,"defined_names":22,"comments":0,"pivot_tables":0},"unopened":[],"bounds":{"document_bytes":16777216,"sheet_cells":100000,"rows_first":2000,"rows_last":500,"rows_between":2000,"halvings":0,"cell_chars":16384,"cell_head_chars":4096},"cells_cut":0,"cells_raw":0,"read":"whole","date_system":"1900"}

{"sheet":"Instrucciones","index":0,"n_rows":26,"n_cols":3,"rows_kept":26,"cut":false,"hidden":false,"merged":[[8,1,8,3],[6,0,6,20],[25,1,25,9]]}
[]
[]
[]
[]
[]
[]
["GUÍA DE APOYO PARA LA IMPLEMENTACIÓN DE LA PRUEBA CLIMÁTICA DE INFRAESTRUCTURAS"]
[]
[null,"INSTRUCCIONES"]
[null,"Introducir los datos en las celdas indicadas de cada una de las pestañas."]
[]
[null,"El primer paso consiste en completar los datos de la pestaña 'Inputs_Datos' "]
[null,"A continuación, en función del tipo de proyecto, se deberán rellenar algunos de la pestaña 'Análisis Mitigación'"]
[null,"Todas las celdas de la pestaña 'Análisis Adaptación' se autocompletan. "]
[null,"Las pestañas 'Instrucciones', 'INFO Mitigación' e 'INFO Adaptación' son solo informativa."]
[]
[null,"Celdas a cumplimentar:"]
[null,null,"Dato numérico/escrito"]
[null,null,"Dato a introducir entre los considerados en el desplegable"]
[]
[null,"Celdas que se autocompletan:"]
[null,null,"Datos numéricos referidos a otras celdas a cumplimentar"]
[null,null,"Factores de emisión y unidades de los factores de emisión"]
[null,null,"Resultado total y unidades"]
[]
[null,"Esta herramienta está basada en la Guía de Apoyo para la Implementación de la prueba climática de infraestructuras en donde se puede comprobar la metodología utilizada para el cálculo de las prueba de mitigación y de adaptación"]

{"sheet":"Listas","index":1,"n_rows":102,"n_cols":18,"rows_kept":102,"cut":false,"hidden":true,"merged":[]}
["TIPOLOGÍA DE PROYECTO"]
[]
["Área",null,null,null,"Edificios",null,null,null,null,"Agua",null,null,null,null,null,null,null,"Energía"]
["Edificios",null,null,null,"Mejora de la eficiencia energética en edificios",null,null,null,null,"Pequeñas y medianas estaciones de depuración de aguas residuales",null,null,null,null,null,null,null,"Infraestructuras de almacenamiento energético"]
["Residuos",null,null,null,"Mejora genérica de edificios",null,null,null,null,"Grandes estaciones de depuración de aguas residuales",null,null,null,null,null,null,null,"Infraestructura para la generación de energía renovable"]
["Agua",null,null,null,"Mejoras en el entorno de los edificios",null,null,null,null,"Actuaciones sobre sistemas de abastecimiento",null,null,null,null,null,null,null,"Transporte y distribución"]
["Energía",null,null,null,"Construcción de edificios",null,null,null,null,"Actuaciones de preservación, preparación y protección de los recursos hídricos"]
["Territorio",null,null,null,"Ampliación de edificios",null,null,null,null,"Instalaciones de distribución"]
["Soluciones Basadas en la Naturaleza",null,null,null,"Rehabilitación integral",null,null,null,null,"Pantalán",null,null,null,null,null,null,null,"Territorio"]
["Infraestructura Verde",null,null,null,null,null,null,null,null,"Estructuras marítimas",null,null,null,null,null,null,null,"Galerías subterráneas/mineras"]
[null,null,null,null,null,null,null,null,null,"Estructuras fluviales",null,null,null,null,null,null,null,"Escollera de contención"]
[null,null,null,null,"Residuos",null,null,null,null,"Escollera de protección"]
[null,null,null,null,"Puntos de recogida de residuos",null,null,null,null,"Estaciones de tratamiento de aguas potables"]
[null,null,null,null,"Instalación de clasificación y reciclaje",null,null,null,null,"Estaciones de bombeo",null,null,null,null,null,null,null,"Soluciones Basadas en la Naturaleza"]
[null,null,null,null,"Instalación de gestión de residuos",null,null,null,null,"Encauzamiento",null,null,null,null,null,null,null,"Adaptación cambio climático"]
[null,null,null,null,"Plantas de valorización de residuos",null,null,null,null,null,null,null,null,null,null,null,null,"Adaptación de terrenos/descontaminación"]
[]
[]
[null,null,null,null,null,null,null,null,null,null,null,null,null,null,null,null,null,"Infraestructura Verde"]
[null,null,null,null,null,null,null,null,null,null,null,null,null,null,null,null,null,"Infraestructura Verde"]
["MUNICIPIOS",null,"PROBABILIDAD"]
[]
["Municipio",null,"Casi seguro",null,"Moderado",null,"NivalProb",null,"Costeros"]
["Allande",null,"Avilés",null,"Carreño",null,"Amieva",null,"Caravia"]
["Aller",null,"Muros de Nalón",null,"Cudillero",null,"Cabrales",null,"Carreño"]
["Amieva",null,"Navia",null,"Gijón",null,"Cangas del Narcea",null,"Castrillón"]
["Avilés",null,"Ribadesella",null,"Llanes",null,"Cangas de Onís",null,"Castropol"]
["Belmonte de Miranda",null,"Soto del Barco",null,"Valdés",null,"Caso",null,"Coaña"]
["Bimenes",null,null,null,null,null,"Degaña",null,"Colunga"]
["Boal",null,null,null,null,null,"Ibias",null,"Cudillero"]
["Cabrales",null,null,null,null,null,"Lena",null,"El Franco"]
["Cabranes",null,null,null,null,null,"Onís",null,"Gijón"]
["Candamo",null,null,null,null,null,"Peñamellera Alta",null,"Gozón"]
["Cangas del Narcea",null,null,null,null,null,"Peñamellera Baja",null,"Llanes"]
["Cangas de Onís",null,null,null,null,null,"Ponga",null,"Tapia de Casariego"]
["Caravia",null,null,null,null,null,"Quirós",null,"Valdés"]
["Carreño",null,null,null,null,null,"Sobrescobio",null,"Villaviciosa"]
["Caso",null,null,null,null,null,"Somiedo"]
["Castrillón",null,null,null,null,null,"Teverga"]
["Castropol"]
["Coaña"]
["Colunga"]
["Corvera de Asturias"]
["Cudillero"]
["Degaña"]
["El Franco"]
["Gijón"]
["Gozón"]
["Grado"]
["Grandas de Salime"]
["Ibias"]
["Illano"]
["Illas"]
["Langreo"]
["Laviana"]
["Lena"]
["Llanera"]
["Llanes"]
["Mieres"]
["Morcín"]
["Muros de Nalón"]
["Nava"]
["Navia"]
["Negueira de Muñiz"]
["Noreña"]
["Onís"]
["Oviedo"]
["Parres"]
["Peñamellera Alta"]
["Peñamellera Baja"]
["Pesoz"]
["Piloña"]
["Ponga"]
["Pravia"]
["Proaza"]
["Quirós"]
["Las Regueras"]
["Ribadedeva"]
["Ribadesella"]
["Ribera de Arriba"]
["Riosa"]
["Salas"]
["Santa Eulalia de Oscos"]
["San Martín del Rey Aurelio"]
["San Martín de Oscos"]
["San Tirso de Abres"]
["Santo Adriano"]
["Sariego"]
["Siero"]
["Sobrescobio"]
["Somiedo"]
["Soto del Barco"]
["Tapia de Casariego"]
["Taramundi"]
["Teverga"]
["Tineo"]
["Valdés"]
["Vegadeo"]
["Villanueva de Oscos"]
["Villaviciosa"]
["Villayón"]
["Yernes y Tameza"]

{"sheet":"Inputs_Datos","index":2,"n_rows":19,"n_cols":4,"rows_kept":19,"cut":false,"hidden":false,"merged":[[65,2,65,13],[7,0,7,12],[10,1,10,3],[21,1,21,3],[23,2,26,11],[28,1,28,3],[63,2,63,5]]}
[]
[]
[]
[]
[]
[]
[]
["MITIGACIÓN"]
[]
[]
[null,"🔹 A. DATOS GENERALES DEL PROYECTO"]
[]
[null,null,"Campo","Información (a rellenar)"]
[null,null,"Nombre del proyecto"]
[null,null,"Área","Territorio"]
[null,null,"Tipo de infraestructura","Escollera de contención"]
[null,null,"Localización: Municipio","Noreña"]
[null,null,"Responsable del análisis"]
[null,null,"Fecha"]

{"sheet":"INFO Mitigación","index":3,"n_rows":26,"n_cols":4,"rows_kept":26,"cut":false,"hidden":false,"merged":[[60,2,60,5],[62,2,62,13],[10,1,10,3],[7,0,7,12],[18,1,18,3],[20,2,23,11],[25,1,25,3]]}
[]
[]
[]
[]
[]
[]
[]
["MITIGACIÓN"]
[]
[]
[null,"🔹 A. DATOS GENERALES DEL PROYECTO"]
[]
[null,null,"Campo","Información del proyecto"]
[null,null,"Área",{"$f":"+Inputs_Datos!D15","v":"Territorio"}]
[null,null,"Tipo de infraestructura",{"$f":"+Inputs_Datos!D16","v":"Escollera de contención"}]
[null,null,"Localización: Municipio",{"$f":"+Inputs_Datos!D17","v":"Noreña"}]
[]
[]
[null,"🔹 B. OBJETIVO DEL ANÁLISIS"]
[]
[null,null,"Esta plantilla aplica las orientaciones técnicas de la Comisión Europea (2021-2027) para integrar la mitigación al cambio climático en proyectos de infraestructuras. El objetivo es evaluar la necesidad de realizar o no una evluación de la huella de carbono (Fase 1) y determinar si se requiere de un análisis más detallado sobre las emisiones de gases de efecto invernadero (Fase 2)."]
[]
[]
[]
[]
[null,"🔹 C. ESQUEMA DE FASES"]

{"sheet":"Análisis Mitigación","index":4,"n_rows":77,"n_cols":18,"rows_kept":77,"cut":false,"hidden":false,"merged":[[7,0,7,5],[9,1,9,5],[37,1,37,5],[41,3,41,4],[41,7,41,8],[41,16,41,17],[43,15,44,15],[44,2,47,2],[45,15,46,15],[47,15,52,15],[48,2,51,2],[41,11,41,12],[74,3,74,6],[75,2,76,2],[75,3,75,6],[76,3,76,6],[53,15,58,15],[70,2,71,2],[70,3,70,6],[71,3,71,6],[72,2,73,2],[72,3,72,6],[73,3,73,6]]}
[]
[]
[]
[]
[]
[]
[]
["MITIGACIÓN"]
[]
[null,"🔹 FASE 1 - CLASIFICACIÓN DE PROYECTOS (COMPROBACIÓN PREVIA)"]
[]
[null,null,"1. CATEGORIZACIÓN DEL PROYECTO"]
[]
[null,null,"Campo","Resultados"]
[null,null,"Área",{"$f":"'INFO Mitigación'!D14","v":"Territorio"}]
[null,null,"Tipo de infraestructura",{"$f":"'INFO Mitigación'!D15","v":"Escollera de contención"}]
[null,null,"Se incluye en alguna de las categorías de proyecto de la primera sección de la Tabla 2 de la Guía",{"$f":"VLOOKUP($D$16,Tabla_Sensibilidad12[Categoría de proyecto de infraestructura]:Tabla_Sensibilidad12[No coincide con ninguna de las dos secciones y es necesario evaluar si podría superar las 20.000 t CO2e/año],2,0)","v":"NO"}]
[null,null,"Se incluye en alguna de las categorías de proyecto de la segunda sección de la Tabla 2 de la Guía",{"$f":"VLOOKUP($D$16,Tabla_Sensibilidad12[Categoría de proyecto de infraestructura]:Tabla_Sensibilidad12[No coincide con ninguna de las dos secciones y es necesario evaluar si podría superar las 20.000 t CO2e/año],3,0)","v":"NO"}]
[null,null,"No coincide con ninguna de las dos secciones y es necesario evaluar si podría superar las 20.000 t CO2e/año",{"$f":"VLOOKUP($D$16,Tabla_Sensibilidad12[Categoría de proyecto de infraestructura]:Tabla_Sensibilidad12[No coincide con ninguna de las dos secciones y es necesario evaluar si podría superar las 20.000 t CO2e/año],4,0)","v":"NO10"}]
[null,null,"RESULTADO",{"$f":"IF(D19=\"SÍ\",\"Estimar superación del umbral de emisiones\",IF(OR(D18=\"SÍ\"),\"Pasar a fase 2\",\"Se concluye el proceso\"))","v":"Se concluye el proceso"}]
[]
[]
[null,null,"2. EVALUACIÓN PREVIA DE LA SUPERACIÓN DEL UMBRAL DE EMISIONES (20.000 t CO2e/año)"]
[]
[null,null,null,"EDIFICIOS"]
[null,null,"Superficie total edificada (m2)",0]
[null,null,"Uso previsto del edificio","Comercial"]
[null,null,"Estimación de emisiones anuales (t CO2e/año)",{"$f":"D26*VLOOKUP(D27,'Tablas Mitigación'!C60:D67,2,FALSE)","v":0}]
[null,null,"RESULTADO",{"$f":"IF(D28<20000,\"Se concluye el proceso\",\"Es necesario un análisis detallado (fase 2)\")","v":"Se concluye el proceso"}]
[]
[null,null,null,"ESTACIONES DE DEPURACIÓN DE AGUAS RESIDUALES"]
[null,null,"Habitantes-equivalentes previstos",0]
[null,null,"Consumo eléctrico previsto (kWh/año)",{"$f":"D32*'Tablas Mitigación'!G61*(1+'Tablas Mitigación'!G62)","v":0}]
[null,null,"Estimación de emisiones anuales (t CO2e/año)",{"$f":"D33*'Tablas Mitigación'!G121*(1+'Tablas Mitigación'!G63)/1000000","v":0}]
[null,null,"RESULTADO",{"$f":"IF(D34<20000,\"Se concluye el proceso\",\"Es necesario un análisis detallado (fase 2)\")","v":"Se concluye el proceso"}]
[]
[]
[null,"🔹 FASE 2 - ANÁLISIS DETALLADO"]
[]
[null,null,"1. CÁLCULO DE EMISIONES"]
[]
[null,null,null,"GRANDES ESTACIONES DE DEPURACIÓN DE AGUAS RESIDUALES",null,null,null,"INFRAESTRUCTURAS DE ALMACENAMIENTO ENERGÉTICO",null,null,null,"INFRAESTRUCTURA PARA LA GENERACIÓN DE ENERGÍA RENOVABLE",null,null,null,null,"TRANSPORTE Y DISTRIBUCIÓN DE ENERGÍA ELÉCTRICA"]
[null,null,null,"Campo","Información (a rellenar)",null,null,"Campo","Información (a rellenar)",null,null,"Campo","Información (a rellenar)",null,null,null,"Campo","Información (a rellenar)"]
[null,null,"Datos generales","Habitantes equivalentes",20000,null,null,"Tipo de combustible","Gasóleo B (litros)",null,null,"Tipo de energía","Energía intermitente (Solar, eólica, marítima)",null,null,"Datos generales","Nivel de tensión","Consumo de electricidad en Alta Tensión"]
[null,null,"Emisiones absolutas","Tipo de tratamiento","Tratamiento secundario con digestión anaerobia",null,null,"Consumo de combustible (L)",2000,null,null,"Producción anual de energía (Kwh)",8000000,null,null,null,"Factor eléctrico",{"$f":"VLOOKUP(R44,'Tablas Mitigación'!F117:G121,2,0)","v":213}]
[null,null,null,"Vertido de lodos","Vertedero",null,null,"Factor de emisión alcance 1",{"$f":"VLOOKUP(I44,'Tablas Mitigación'!C116:D125,2,0)","v":2.7210000000000001},null,null,"Factor de emisión",{"$f":"VLOOKUP(M44,'Tablas Mitigación'!I117:J118,2,0)","v":342},null,null,"Emisiones por SF6 ","SF6 (kg)",500]
[null,null,null,"Factor de emisión",{"$f":"_xlfn._xlws.FILTER(Tabla_Sensibilidad4[Emisiones indirectas (tCO2e/Hab-eq/año)3], (Tabla_Sensibilidad4[Tipo de tratamiento]=E45)*(Tabla_Sensibilidad4[Vertido de lodos]=E46),\"\")","v":7.2999999999999995E-2},null,null,"Emisiones alcance 1",{"$f":"I45*I46/1000","v":5.4420000000000002},null,null,"Emisiones absolutas (tCO2e)",0,null,null,null,"Emisiones por SF6 ",{"$f":"R46*0.005*23500/1000","v":58.75}]
[null,null,null,"Emisiones absolutas (tCO2e)",{"$f":"E44*E47","v":1460},null,null,"Nivel de tensión eléctrica","Consumo de electricidad en Media Tensión",null,null,"Emisiones de referencia (tCO2e)",{"$f":"M45*M46/1000000","v":2736},null,null,"Emisiones absolutas","Energía transportada con el proyecto (MWh/año)",100000]
[null,null,"Emisiones de referencia","Tipo de tratamiento","Fosas sépticas",null,null,"Consumo eléctrico (kWh/año)",1000000,null,null,"RESULTADO (emisiones relativas) (tCO2e)",{"$f":"M47-M48","v":-2736},null,null,null,"% de pérdida",{"$f":"VLOOKUP(R44,'Tablas Mitigación'!F125:G127,2,0)","v":0.02}]
[null,null,null,"Vertido de lodos","Sin especificar",null,null,"Factor de emisión alcance 2",{"$f":"VLOOKUP(I48,'Tablas Mitigación'!F117:G121,2,0)","v":217},null,null,null,null,null,null,null,"Emisiones por pérdidas de red (tCO2/año)",{"$f":"R49*R48*R45/1000","v":426}]
[null,null,null,"Factor de emisión",{"$f":"_xlfn._xlws.FILTER(Tabla_Sensibilidad4[Emisiones indirectas (tCO2e/Hab-eq/año)3], (Tabla_Sensibilidad4[Tipo de tratamiento]=E49)*(Tabla_Sensibilidad4[Vertido de lodos]=E50),\"\")","v":0.20200000000000001},null,null,"Emisiones alcance 2",{"$f":"I49*I50/1000000","v":217},null,null,null,null,null,null,null,"Energía consumida por instalaciones asociadas (MWh/año)",3000]
[null,null,null,"Emisiones de referencia (tCO2e)",{"$f":"E44*E51","v":4040.0000000000005},null,null,"Emisiones absolutas (tCO2e)",{"$f":"I47+I51","v":222.44200000000001},null,null,null,null,null,null,null,"Emisiones por consumo de instalaciones (tCO2/año)",{"$f":"R51*R45/1000","v":639}]
[null,null,null,"RESULTADO (emisiones relativas) (tCO2e)",{"$f":"E48-E52","v":-2580.0000000000005},null,null,"Emisiones de referencia (tCO2e)",0,null,null,null,null,null,null,null,"Emisiones absolutas (tCO2e)",{"$f":"R50+R52+R47","v":1123.75}]
[null,null,null,null,null,null,null,"RESULTADO (emisiones relativas) (tCO2e)",{"$f":"I52","v":222.44200000000001},null,null,null,null,null,null,"Emisiones de referencia","% de pérdidas sin el proyecto ",{"$f":"R49*2","v":0.04}]
[null,null,null,null,null,null,null,null,null,null,null,null,null,null,null,null,"Demanda anterior",50000]
[null,null,null,null,null,null,null,null,null,null,null,null,null,null,null,null,"Emisiones por pérdidas de red (tCO2/año)",{"$f":"R54*R55*R45/1000","v":426}]
[null,null,null,null,null,null,null,null,null,null,null,null,null,null,null,null,"Energía consumida por instalaciones asociadas (MWh/año)",2000]
[null,null,null,null,null,null,null,null,null,null,null,null,null,null,null,null,"Emisiones por consumo de instalaciones (tCO2/año)",{"$f":"R57*R45/1000","v":426}]
[null,null,null,null,null,null,null,null,null,null,null,null,null,null,null,null,"Emisiones de referencia (tCO2e)",{"$f":"R56+R58+R47","v":910.75}]
[null,null,"2. COSTE SOMBRA",null,null,null,null,null,null,null,null,null,null,null,null,null,"RESULTADO (emisiones relativas) (tCO2e)",{"$f":"R53-R59","v":213}]
[]
[null,null,"Campo","Información (a rellenar)"]
[null,null,"Año de inicio",2030]
[null,null,"Año de fin",2050]
[null,null,"Emisiones del proyecto (tCO2e)"]
[null,null,"RESULTADO (€)",{"$f":"SUMIFS('Tablas Mitigación'!D134:D164,'Tablas Mitigación'!C134:C164,\">=\"&D63,'Tablas Mitigación'!C134:C164,\"<=\"&D64)*D65","v":0}]
[]
[]
[null,null,"3. ACTIVIDADES CONSIDERADAS ALINEADAS CON LOS OBJETIVOS CLIMÁTICOS POR EL BEI "]
[]
[null,null,"Generación de energía","Generación de energía renovable. "]
[null,null,null,"Energía a partir de residuos que cumpla con los Emission Performance Standard, y aplique los principios de la jerarquía de residuos Recuperación de calor."]
[null,null,"Edificios","Nuevos edificios que cumplan con la Directiva de Eficiencia Energética de Edificios."]
[null,null,null,"Renovación de edificios que cumplan con la Directiva de Eficiencia Energética de Edificios."]
[null,null,"Tratamiento de aguas residuales","Rehabilitación o nuevas estaciones de tratamiento de aguas residuales y de digestión de lodos."]
[null,null,"Gestión de residuos sólidos","Plantas de incineración de residuos que cumplan con los Emission Performance Standard y apliquen los principios de jerarquía de residuos."]
[null,null,null,"Rehabilitación de vertederos para controlar las emisiones de metano de forma que se genere energía o en su defecto, se queme en antorcha."]

{"sheet":"Tablas Mitigación","index":5,"n_rows":164,"n_cols":10,"rows_kept":164,"cut":false,"hidden":true,"merged":[[46,2,46,6],[7,0,7,7],[9,1,9,4],[43,2,43,6],[44,2,44,6],[45,2,45,6],[114,8,114,9],[47,2,47,6],[48,2,48,6],[49,2,49,6],[50,2,50,6],[51,2,51,6],[52,2,52,6],[57,1,57,4],[123,5,123,6],[131,2,131,3],[53,2,53,6],[54,2,54,6],[55,2,55,6],[71,1,71,4],[114,5,114,6]]}
[]
[]
[]
[]
[]
[]
[]
["MITIGACIÓN"]
[]
[null,"1.1. TABLA DE CLASIFICACIÓN DE PROYECTOS"]
[]
[null,null,"Área","Categoría de proyecto de infraestructura","Categorías de proyecto que no requieren de evaluación de huella de carbono","Categorías de proyecto que sí requieren de evaluación de huella de carbono","No coincide con ninguna de las dos secciones y es necesario evaluar si podría superar las 20.000 t CO2e/año"]
[null,null,"Edificios","Mejora de la eficiencia energética en edificios","NO","NO","SÍ"]
[null,null,"Edificios","Mejora genérica de edificios","NO","NO","SÍ"]
[null,null,"Edificios","Mejoras en el entorno de los edificios","NO","NO","SÍ"]
[null,null,"Edificios","Construcción de edificios","NO","NO","SÍ"]
[null,null,"Edificios","Ampliación de edificios","NO","NO","SÍ"]
[null,null,"Edificios","Rehabilitación integral","NO","NO","SÍ"]
[null,null,"Residuos","Puntos de recogida de residuos","NO","NO","NO1"]
[null,null,"Residuos","Instalación de clasificación y reciclaje","SÍ","-","-"]
[null,null,"Residuos","Instalación de gestión de residuos","SÍ","-","-"]
[null,null,"Residuos","Plantas de valorización de residuos","SÍ","-","-"]
[null,null,"Agua","Pequeñas y medianas estaciones de depuración de aguas residuales","SÍ","-","-"]
[null,null,"Agua","Grandes estaciones de depuración de aguas residuales","NO","SÍ","-"]
[null,null,"Agua","Actuaciones sobre sistemas de abastecimiento","SÍ","-","-"]
[null,null,"Agua","Actuaciones de preservación, preparación y protección de los recursos hídricos","NO","NO","NO2"]
[null,null,"Agua","Instalaciones de distribución","SÍ","-","-"]
[null,null,"Agua","Pantalán","NO","NO","NO3"]
[null,null,"Agua","Estructuras marítimas","NO","NO","NO4"]
[null,null,"Agua","Estructuras fluviales","NO","NO","NO5"]
[null,null,"Agua","Escollera de protección","NO","NO","NO6"]
[null,null,"Agua","Estaciones de tratamiento de aguas potables","NO","NO","SÍ"]
[null,null,"Agua","Estaciones de bombeo","NO","NO","NO7"]
[null,null,"Agua","Encauzamiento","NO","NO","NO8"]
[null,null,"Energía","Infraestructuras de almacenamiento energético","NO","SÍ","-"]
[null,null,"Energía","Infraestructura para la generación de energía renovable","NO","SÍ","-"]
[null,null,"Energía","Transporte y distribución","NO","SÍ","-"]
[null,null,"Territorio","Galerías subterráneas/mineras","NO","NO","NO9"]
[null,null,"Territorio","Escollera de contención","NO","NO","NO10"]
[null,null,"Soluciones Basadas en la Naturaleza","Adaptación cambio climático","NO","NO","NO11"]
[null,null,"Soluciones Basadas en la Naturaleza","Adaptación de terrenos/descontaminación","NO","NO","NO12"]
[null,null,"Infraestructura Verde","Infraestructura verde","NO","NO","NO13"]
[]
[null,null,"1 Aunque no concuerde exactamente con una tipología de proyecto listada en la tabla 2, las instalaciones de clasificación y reciclaje y las de valorización concluyen en fase 1, por lo que los puntos de recogida de residuos también. Además, no tienen emisiones de alcance 1 y 2 o son muy bajas"]
[null,null,"2 No se trata de proyectos de infraestructura que genere emisiones anuales significativas, por lo que no es necesario evaluar si excede las 20.000 toneladas o no, con la excepción de proyectos específicos de grandes instalaciones de bombeo, como trasvases."]
[null,null,"3 Los pantalanes no son infraestructuras que generen en su construcción u operación emisiones anuales significativas, por lo que no es necesario evaluar si excede las 20.000 toneladas o no."]
[null,null,"4 Se asume que se trata de actuaciones sobre estructuras marítimas existentes (diques, escolleras) y que no se trata de proyectos de nueva construcción de un puerto, por ejemplo, por lo que no es necesario evaluar si excede las 20.000 toneladas o no debido a las bajas emisiones anuales previstas."]
[null,null,"5 Es muy improbable que las actuaciones o elementos de infraestructura en el entorno fluvial puedan generar emisiones anuales significativas, por lo que no es necesario evaluar si excede las 20.000 toneladas o no."]
[null,null,"6 Las escolleras no son infraestructuras que generen en su construcción u operación emisiones anuales significativas, por lo que no es necesario evaluar si excede las 20.000 toneladas o no."]
[null,null,"7 Es muy improbable que una estación de bombeo genere emisiones superiores al umbral, por lo que no es necesario evaluar si excede las 20.000 toneladas o no."]
[null,null,"8 Es muy improbable que un encauzamiento genere emisiones superiores al umbral, por lo que no es necesario evaluar si excede las 20.000 toneladas o no."]
[null,null,"9 Se trata de rehabilitación de zonas degradadas por la actividad minera, no de proyectos de industria minera, por lo que no es necesario evaluar si excede las 20.000 toneladas o no."]
[null,null,"10 Las escolleras no son infraestructuras que generen en su construcción u operación emisiones anuales significativas, por lo que no es necesario evaluar si excede las 20.000 toneladas o no."]
[null,null,"11 No se trata de infraestructuras que generen en su construcción u operación emisiones anuales significativas, por lo que no es necesario evaluar si excede las 20.000 toneladas o no."]
[null,null,"12 No se trata de infraestructuras que generen en su construcción u operación emisiones anuales significativas, por lo que no es necesario evaluar si excede las 20.000 toneladas o no."]
[null,null,"13 No se trata de infraestructuras que generen en su construcción u operación emisiones anuales significativas, por lo que no es necesario evaluar si excede las 20.000 toneladas o no."]
[]
[null,"1.2. EVALUACIÓN PRELIMINAR DEL UMBRAL DE EMISIONES"]
[null,null,"1.2.1 Factores de emisión por uso de edificio",null,null,"1.2.1 Estimación de consumo eléctrico de EDAR"]
[null,null,"Uso","Factor (t CO2/m2)",null,"Uso","kWh/hab-eq/año"]
[null,null,"Logística/Almacenamiento",1.8955E-2,null,"EDAR",49,"IDAE, 2010"]
[null,null,"Oficinas",2.23E-2,null,"Factor de seguridad",0.2]
[null,null,"Viviendas",3.1666E-2,null,"Factor de alcance 1+2",0.2]
[null,null,"Hotel",3.0105E-2]
[null,null,"Hospital/Centro de Salud/Clínica",3.7463999999999997E-2]
[null,null,"Comercial",3.0328000000000001E-2]
[null,null,"Mejora de estaciones de autobús",2.23E-2]
[]
[]
[]
[]
[null,"2. TABLAS DE FACTORES DE EMISIÓN"]
[]
[null,null,"2.1 Tipo de proceso y vertido de lodo"]
[null,null,"Tipo de tratamiento","Huella de carbono del tratamiento de aguas (tCO2e/Hab-eq/año)","Emisiones indirectas (tCO2e/Hab-eq/año)","Vertido de lodos","Huella de carbono del tratamiento de aguas (tCO2e/Hab-eq/año)2","Emisiones indirectas (tCO2e/Hab-eq/año)3"]
[null,null,"Fosas sépticas",9.0999999999999998E-2,0,"Vertedero",0.19400000000000001,0.28499999999999998]
[null,null,"Fosas sépticas",9.0999999999999998E-2,0,"Planta de tratamiento de lodos sépticos",8.3000000000000004E-2,0.17399999999999999]
[null,null,"Fosas sépticas",9.0999999999999998E-2,0,"Planta de tratamiento de aguas residuales",5.5E-2,0.14599999999999999]
[null,null,"Fosas sépticas",9.0999999999999998E-2,0,"Sin especificar",0.111,0.20200000000000001]
[null,null,"Tratamiento primario",3.9E-2,4.4000000000000003E-3,"Vertedero",6.7000000000000004E-2,0.11]
[null,null,"Tratamiento primario",3.9E-2,4.4000000000000003E-3,"Planta de tratamiento de lodos sépticos",4.4999999999999998E-2,8.7999999999999995E-2]
[null,null,"Tratamiento primario",3.9E-2,4.4000000000000003E-3,"Planta de tratamiento de aguas residuales",3.3000000000000002E-2,7.5999999999999998E-2]
[null,null,"Tratamiento primario",3.9E-2,4.4000000000000003E-3,"Sin especificar",2.1999999999999999E-2,6.5000000000000002E-2]
[null,null,"Tratamiento primario con digestión anaerobia",3.9E-2,2.3999999999999998E-3,"Vertedero",0.03,7.0999999999999994E-2]
[null,null,"Tratamiento primario con digestión anaerobia",3.9E-2,2.3999999999999998E-3,"Planta de tratamiento de lodos sépticos",0.02,6.0999999999999999E-2]
[null,null,"Tratamiento primario con digestión anaerobia",3.9E-2,2.3999999999999998E-3,"Planta de tratamiento de aguas residuales",1.4999999999999999E-2,5.6000000000000001E-2]
[null,null,"Tratamiento primario con digestión anaerobia",3.9E-2,2.3999999999999998E-3,"Sin especificar",0.01,5.0999999999999997E-2]
[null,null,"Tratamiento secundario sin digestión anaerobia",1.4E-2,1.34E-2,"Vertedero",0.112,0.13900000000000001]
[null,null,"Tratamiento secundario sin digestión anaerobia",1.4E-2,1.34E-2,"Planta de tratamiento de lodos sépticos",7.4999999999999997E-2,0.10199999999999999]
[null,null,"Tratamiento secundario sin digestión anaerobia",1.4E-2,1.34E-2,"Planta de tratamiento de aguas residuales",5.6000000000000001E-2,8.3000000000000004E-2]
[null,null,"Tratamiento secundario sin digestión anaerobia",1.4E-2,1.34E-2,"Sin especificar",3.6999999999999998E-2,6.4000000000000001E-2]
[null,null,"Tratamiento secundario con digestión anaerobia",1.4E-2,7.3000000000000001E-3,"Vertedero",5.1999999999999998E-2,7.2999999999999995E-2]
[null,null,"Tratamiento secundario con digestión anaerobia",1.4E-2,7.3000000000000001E-3,"Planta de tratamiento de lodos sépticos",3.5000000000000003E-2,5.6000000000000001E-2]
[null,null,"Tratamiento secundario con digestión anaerobia",1.4E-2,7.3000000000000001E-3,"Planta de tratamiento de aguas residuales",2.5999999999999999E-2,4.7E-2]
[null,null,"Tratamiento secundario con digestión anaerobia",1.4E-2,7.3000000000000001E-3,"Sin especificar",1.7000000000000001E-2,3.7999999999999999E-2]
[null,null,"Tratamiento secundario con digestión anaerobia mejorada",1.4E-2,6.4000000000000003E-3,"Vertedero",4.1000000000000002E-2,6.0999999999999999E-2]
[null,null,"Tratamiento secundario con digestión anaerobia mejorada",1.4E-2,6.4000000000000003E-3,"Planta de tratamiento de lodos sépticos",2.7E-2,4.7E-2]
[null,null,"Tratamiento secundario con digestión anaerobia mejorada",1.4E-2,6.4000000000000003E-3,"Planta de tratamiento de aguas residuales",0.02,0.04]
[null,null,"Tratamiento secundario con digestión anaerobia mejorada",1.4E-2,6.4000000000000003E-3,"Sin especificar",1.2999999999999999E-2,3.3000000000000002E-2]
[null,null,"Tratamiento terciario sin digestión anaerobia",0.01,1.5599999999999999E-2,"Vertedero",0.112,0.13800000000000001]
[null,null,"Tratamiento terciario sin digestión anaerobia",0.01,1.5599999999999999E-2,"Planta de tratamiento de lodos sépticos",7.4999999999999997E-2,0.10100000000000001]
[null,null,"Tratamiento terciario sin digestión anaerobia",0.01,1.5599999999999999E-2,"Planta de tratamiento de aguas residuales",5.6000000000000001E-2,8.2000000000000003E-2]
[null,null,"Tratamiento terciario sin digestión anaerobia",0.01,1.5599999999999999E-2,"Sin especificar",3.6999999999999998E-2,6.3E-2]
[null,null,"Tratamiento terciario con digestión anaerobia",0.01,8.6E-3,"Vertedero",0.05,6.9000000000000006E-2]
[null,null,"Tratamiento terciario con digestión anaerobia",0.01,8.6E-3,"Planta de tratamiento de lodos sépticos",3.4000000000000002E-2,5.2999999999999999E-2]
[null,null,"Tratamiento terciario con digestión anaerobia",0.01,8.6E-3,"Planta de tratamiento de aguas residuales",2.5000000000000001E-2,4.3999999999999997E-2]
[null,null,"Tratamiento terciario con digestión anaerobia",0.01,8.6E-3,"Sin especificar",1.7000000000000001E-2,3.5999999999999997E-2]
[null,null,"Tratamiento terciario con digestión anaerobia mejorada",0.01,7.4999999999999997E-3,"Vertedero",4.1000000000000002E-2,5.8999999999999997E-2]
[null,null,"Tratamiento terciario con digestión anaerobia mejorada",0.01,7.4999999999999997E-3,"Planta de tratamiento de lodos sépticos",2.7E-2,4.4999999999999998E-2]
[null,null,"Tratamiento terciario con digestión anaerobia mejorada",0.01,7.4999999999999997E-3,"Planta de tratamiento de aguas residuales",0.02,3.7999999999999999E-2]
[null,null,"Tratamiento terciario con digestión anaerobia mejorada",0.01,7.4999999999999997E-3,"Sin especificar",1.2999999999999999E-2,3.1E-2]
[]
[]
[null,null,"2.2 Combustión estacionaria",null,null,"2.3 Consumo eléctrico",null,null,"2.4 Emisiones de referencia de renovables"]
[null,null,"Combustible","FE 2022 (kg/unidad)",null,"Factor de emisión (g CO2e/kWh)",null,null,"Factor de emisión combinado de red (gCO2/kWh)"]
[null,null,"Gasóleo C (litros)",2.7210000000000001,null,"País","España",null,"País","España"]
[null,null,"Gasóleo B (litros)",2.7210000000000001,null,"Generación de electricidad intermitente",329,null,"Energía constante (hidráulica, geotérmica)",236]
[null,null,"Gas natural (kWh PCS)",0.182,null,"Generación de electricidad constante/consumo de electricidad",209,null,"Energía intermitente (Solar, eólica, marítima)",342]
[null,null,"Fuelóleo (litros)",3.1240000000000001,null,"Consumo de electricidad en Alta Tensión",213]
[null,null,"GLP (litros)",1.5449999999999999,null,"Consumo de electricidad en Media Tensión",217]
[null,null,"Queroseno (litros)",2.5,null,"Consumo de electricidad en Baja Tensión",223]
[null,null,"Gas propano (kg)",2.9660000000000002]
[null,null,"Gas butano (kg)",2.9660000000000002,null,"2.5 Pérdidas de red consumo eléctrico",null,null,"2.6 Fugas de SF6"]
[null,null,"Gas manufacturado (kg)",0.88100000000000001,null,"Pérdidas de red (%)",null,null,"Ratio de fuga conservador (% SF6/año)","Factor de conversión de SF6 a CO2 (t/t)"]
[null,null,"Biogás (kg)",1E-3,null,"Consumo de electricidad en Alta Tensión",0.02,null,"0,5% anual",23500]
[null,null,null,null,null,"Consumo de electricidad en Media Tensión",0.04]
[null,null,null,null,null,"Consumo de electricidad en Baja Tensión",7.0000000000000007E-2]
[]
[]
[null,"3. COSTE SOMBRA DEL CARBONO"]
[]
[null,null,"Coste sombra del carbono para las emisiones y reducciones de GEI"]
[null,null,"Año","EUR/tCO2e"]
[null,null,2020,80]
[null,null,2021,97]
[null,null,2022,114]
[null,null,2023,131]
[null,null,2024,148]
[null,null,2025,165]
[null,null,2026,182]
[null,null,2027,199]
[null,null,2028,216]
[null,null,2029,233]
[null,null,2030,250]
[null,null,2031,278]
[null,null,2032,306]
[null,null,2033,334]
[null,null,2034,362]
[null,null,2035,390]
[null,null,2036,417]
[null,null,2037,444]
[null,null,2038,471]
[null,null,2039,498]
[null,null,2040,525]
[null,null,2041,552]
[null,null,2042,579]
[null,null,2043,606]
[null,null,2044,633]
[null,null,2045,660]
[null,null,2046,688]
[null,null,2047,716]
[null,null,2048,744]
[null,null,2049,772]
[null,null,2050,800]

{"sheet":"INFO Adaptación","index":6,"n_rows":17,"n_cols":3,"rows_kept":17,"cut":false,"hidden":false,"merged":[[16,1,16,3],[10,1,10,3],[7,0,7,8],[12,2,13,8]]}
[]
[]
[]
[]
[]
[]
[]
["ADAPTACIÓN"]
[]
[]
[null,"🔹 A. OBJETIVO DEL ANÁLISIS"]
[]
[null,null,"Esta plantilla aplica las orientaciones técnicas de la Comisión Europea (2021-2027) para integrar la adaptación al cambio climático en proyectos de infraestructuras. El objetivo es evaluar la vulnerabilidad (Fase 1), riesgos (Fase 2) y definir medidas de adaptación, generando un nivel final de resiliencia del proyecto."]
[]
[]
[]
[null,"🔹 B. ESQUEMA DE FASES"]

{"sheet":"Análisis Adaptación","index":7,"n_rows":111,"n_cols":10,"rows_kept":111,"cut":false,"hidden":false,"merged":[[109,3,109,5],[110,3,110,5],[98,3,98,5],[104,3,104,5],[105,3,105,5],[106,3,106,5],[107,3,107,5],[108,3,108,5],[99,3,99,5],[100,3,100,5],[101,3,101,5],[102,3,102,5],[103,3,103,5],[91,5,92,6],[52,2,53,9],[93,5,94,6],[55,1,55,7],[0,0,5,6],[40,5,40,6],[19,9,20,9],[19,5,20,5],[19,6,19,7],[9,1,9,7],[7,0,7,7]]}
[]
[]
[]
[]
[]
[]
[]
["ADAPTACIÓN"]
[]
[null,"🔹 FASE 1 - ANÁLISIS DE VULNERABILIDAD (COMPROBACIÓN PREVIA)"]
[]
[]
[null,null,"Área",{"$f":"+Inputs_Datos!D15","v":"Territorio"}]
[null,null,"Tipo de infraestructura",{"$f":"+Inputs_Datos!D16","v":"Escollera de contención"}]
[null,null,"Municipio",{"$f":"+Inputs_Datos!D17","v":"Noreña"}]
[]
[]
[null,null,"SENSIBILIDAD",null,null,"EXPOSICIÓN"]
[]
[null,null,"Peligro Climático","Sensibilidad",null,"Peligro Climático","Exposición",null,null,"Exposición Final"]
[null,null,"Aumento del Nivel del Mar",{"$f":"IF(G22=\"No aplica\",\"No aplica\",(INDEX(Tabla_Sensibilidad[[Aumento del Nivel del Mar]:[Eventos Meteo. Extremos]],MATCH(1,(Tabla_Sensibilidad[Área]='Análisis Adaptación'!$D$13)*(Tabla_Sensibilidad[Categoría de operaciones de infraestructura]='Análisis Adaptación'!$D$14),0),MATCH('Análisis Adaptación'!C21,Tabla_Sensibilidad[[#Headers],[Aumento del Nivel del Mar]:[Eventos Meteo. Extremos]],0))))","v":"No aplica"},null,null,"Clima Actual","Clima Futuro"]
[null,null,"Inundaciones Costeras",{"$f":"IF(G23=\"No aplica\",\"No aplica\",(INDEX(Tabla_Sensibilidad[[Aumento del Nivel del Mar]:[Eventos Meteo. Extremos]],MATCH(1,(Tabla_Sensibilidad[Área]='Análisis Adaptación'!$D$13)*(Tabla_Sensibilidad[Categoría de operaciones de infraestructura]='Análisis Adaptación'!$D$14),0),MATCH('Análisis Adaptación'!C22,Tabla_Sensibilidad[[#Headers],[Aumento del Nivel del Mar]:[Eventos Meteo. Extremos]],0))))","v":"No aplica"},null,"Aumento del Nivel del Mar",{"$f":"INDEX(Tabla_Exposición_Actual[[Aumento del Nivel del Mar]:[Eventos Meteo. Extremos]],MATCH($D$15,Tabla_Exposición_Actual[Municipio],0),MATCH('Análisis Adaptación'!F22,Tabla_Exposición_Actual[[#Headers],[Aumento del Nivel del Mar]:[Eventos Meteo. Extremos]],0))","v":"No aplica"},{"$f":"INDEX(Tabla_Exposición_Futuro[[Aumento del Nivel del Mar]:[Eventos Meteo. Extremos]],MATCH($D$15,Tabla_Exposición_Futuro[Municipio],0),MATCH('Análisis Adaptación'!F22,Tabla_Exposición_Futuro[[#Headers],[Aumento del Nivel del Mar]:[Eventos Meteo. Extremos]],0))","v":"No aplica"},null,{"$f":"IF(AND(G22=\"No aplica\",H22=\"No aplica\"),\"No aplica\",CHOOSE(MAX(IFERROR(VLOOKUP(G22,Tabla_Equivalencias[],2,FALSE),0),IFERROR(VLOOKUP('Análisis Adaptación'!H22,Tabla_Equivalencias[],2,FALSE),0)),\"Bajo\",\"Medio\",\"Alto\"))","v":"No aplica"}]
[null,null,"Eventos Extremos Costeros",{"$f":"IF(G24=\"No aplica\",\"No aplica\",(INDEX(Tabla_Sensibilidad[[Aumento del Nivel del Mar]:[Eventos Meteo. Extremos]],MATCH(1,(Tabla_Sensibilidad[Área]='Análisis Adaptación'!$D$13)*(Tabla_Sensibilidad[Categoría de operaciones de infraestructura]='Análisis Adaptación'!$D$14),0),MATCH('Análisis Adaptación'!C23,Tabla_Sensibilidad[[#Headers],[Aumento del Nivel del Mar]:[Eventos Meteo. Extremos]],0))))","v":"No aplica"},null,"Inundaciones Costeras",{"$f":"INDEX(Tabla_Exposición_Actual[[Aumento del Nivel del Mar]:[Eventos Meteo. Extremos]],MATCH($D$15,Tabla_Exposición_Actual[Municipio],0),MATCH('Análisis Adaptación'!F23,Tabla_Exposición_Actual[[#Headers],[Aumento del Nivel del Mar]:[Eventos Meteo. Extremos]],0))","v":"No aplica"},{"$f":"INDEX(Tabla_Exposición_Futuro[[Aumento del Nivel del Mar]:[Eventos Meteo. Extremos]],MATCH($D$15,Tabla_Exposición_Futuro[Municipio],0),MATCH('Análisis Adaptación'!F23,Tabla_Exposición_Futuro[[#Headers],[Aumento del Nivel del Mar]:[Eventos Meteo. Extremos]],0))","v":"No aplica"},null,{"$f":"IF(AND(G23=\"No aplica\",H23=\"No aplica\"),\"No aplica\",CHOOSE(MAX(IFERROR(VLOOKUP(G23,Tabla_Equivalencias[],2,FALSE),0),IFERROR(VLOOKUP('Análisis Adaptación'!H23,Tabla_Equivalencias[],2,FALSE),0)),\"Bajo\",\"Medio\",\"Alto\"))","v":"No aplica"}]
[null,null,"Cambio Régimen Lluvias",{"$f":"INDEX(Tabla_Sensibilidad[[Aumento del Nivel del Mar]:[Eventos Meteo. Extremos]],MATCH(1,(Tabla_Sensibilidad[Área]='Análisis Adaptación'!$D$13)*(Tabla_Sensibilidad[Categoría de operaciones de infraestructura]='Análisis Adaptación'!$D$14),0),MATCH('Análisis Adaptación'!C24,Tabla_Sensibilidad[[#Headers],[Aumento del Nivel del Mar]:[Eventos Meteo. Extremos]],0))","v":"Bajo"},null,"Eventos Extremos Costeros",{"$f":"INDEX(Tabla_Exposición_Actual[[Aumento del Nivel del Mar]:[Eventos Meteo. Extremos]],MATCH($D$15,Tabla_Exposición_Actual[Municipio],0),MATCH('Análisis Adaptación'!F24,Tabla_Exposición_Actual[[#Headers],[Aumento del Nivel del Mar]:[Eventos Meteo. Extremos]],0))","v":"No aplica"},{"$f":"INDEX(Tabla_Exposición_Futuro[[Aumento del Nivel del Mar]:[Eventos Meteo. Extremos]],MATCH($D$15,Tabla_Exposición_Futuro[Municipio],0),MATCH('Análisis Adaptación'!F24,Tabla_Exposición_Futuro[[#Headers],[Aumento del Nivel del Mar]:[Eventos Meteo. Extremos]],0))","v":"No aplica"},null,{"$f":"IF(AND(G24=\"No aplica\",H24=\"No aplica\"),\"No aplica\",CHOOSE(MAX(IFERROR(VLOOKUP(G24,Tabla_Equivalencias[],2,FALSE),0),IFERROR(VLOOKUP('Análisis Adaptación'!H24,Tabla_Equivalencias[],2,FALSE),0)),\"Bajo\",\"Medio\",\"Alto\"))","v":"No aplica"}]
[null,null,"Inundación Fluvio-Marinas",{"$f":"INDEX(Tabla_Sensibilidad[[Aumento del Nivel del Mar]:[Eventos Meteo. Extremos]],MATCH(1,(Tabla_Sensibilidad[Área]='Análisis Adaptación'!$D$13)*(Tabla_Sensibilidad[Categoría de operaciones de infraestructura]='Análisis Adaptación'!$D$14),0),MATCH('Análisis Adaptación'!C25,Tabla_Sensibilidad[[#Headers],[Aumento del Nivel del Mar]:[Eventos Meteo. Extremos]],0))","v":"Medio"},null,"Cambio Régimen Lluvias",{"$f":"INDEX(Tabla_Exposición_Actual[[Aumento del Nivel del Mar]:[Eventos Meteo. Extremos]],MATCH($D$15,Tabla_Exposición_Actual[Municipio],0),MATCH('Análisis Adaptación'!F25,Tabla_Exposición_Actual[[#Headers],[Aumento del Nivel del Mar]:[Eventos Meteo. Extremos]],0))","v":"Bajo"},{"$f":"INDEX(Tabla_Exposición_Futuro[[Aumento del Nivel del Mar]:[Eventos Meteo. Extremos]],MATCH($D$15,Tabla_Exposición_Futuro[Municipio],0),MATCH('Análisis Adaptación'!F25,Tabla_Exposición_Futuro[[#Headers],[Aumento del Nivel del Mar]:[Eventos Meteo. Extremos]],0))","v":"Bajo"},null,{"$f":"IF(AND(G25=\"No aplica\",H25=\"No aplica\"),\"No aplica\",CHOOSE(MAX(IFERROR(VLOOKUP(G25,Tabla_Equivalencias[],2,FALSE),0),IFERROR(VLOOKUP('Análisis Adaptación'!H25,Tabla_Equivalencias[],2,FALSE),0)),\"Bajo\",\"Medio\",\"Alto\"))","v":"Bajo"}]
[null,null,"Inundación Torrencial",{"$f":"INDEX(Tabla_Sensibilidad[[Aumento del Nivel del Mar]:[Eventos Meteo. Extremos]],MATCH(1,(Tabla_Sensibilidad[Área]='Análisis Adaptación'!$D$13)*(Tabla_Sensibilidad[Categoría de operaciones de infraestructura]='Análisis Adaptación'!$D$14),0),MATCH('Análisis Adaptación'!C26,Tabla_Sensibilidad[[#Headers],[Aumento del Nivel del Mar]:[Eventos Meteo. Extremos]],0))","v":"Medio"},null,"Inundación Fluvio-Marinas",{"$f":"INDEX(Tabla_Exposición_Actual[[Aumento del Nivel del Mar]:[Eventos Meteo. Extremos]],MATCH($D$15,Tabla_Exposición_Actual[Municipio],0),MATCH('Análisis Adaptación'!F26,Tabla_Exposición_Actual[[#Headers],[Aumento del Nivel del Mar]:[Eventos Meteo. Extremos]],0))","v":"Bajo"},{"$f":"INDEX(Tabla_Exposición_Futuro[[Aumento del Nivel del Mar]:[Eventos Meteo. Extremos]],MATCH($D$15,Tabla_Exposición_Futuro[Municipio],0),MATCH('Análisis Adaptación'!F26,Tabla_Exposición_Futuro[[#Headers],[Aumento del Nivel del Mar]:[Eventos Meteo. Extremos]],0))","v":"Bajo"},null,{"$f":"IF(AND(G26=\"No aplica\",H26=\"No aplica\"),\"No aplica\",CHOOSE(MAX(IFERROR(VLOOKUP(G26,Tabla_Equivalencias[],2,FALSE),0),IFERROR(VLOOKUP('Análisis Adaptación'!H26,Tabla_Equivalencias[],2,FALSE),0)),\"Bajo\",\"Medio\",\"Alto\"))","v":"Bajo"}]
[null,null,"Cambios Régimen Nival",{"$f":"INDEX(Tabla_Sensibilidad[[Aumento del Nivel del Mar]:[Eventos Meteo. Extremos]],MATCH(1,(Tabla_Sensibilidad[Área]='Análisis Adaptación'!$D$13)*(Tabla_Sensibilidad[Categoría de operaciones de infraestructura]='Análisis Adaptación'!$D$14),0),MATCH('Análisis Adaptación'!C27,Tabla_Sensibilidad[[#Headers],[Aumento del Nivel del Mar]:[Eventos Meteo. Extremos]],0))","v":"Bajo"},null,"Inundación Torrencial",{"$f":"INDEX(Tabla_Exposición_Actual[[Aumento del Nivel del Mar]:[Eventos Meteo. Extremos]],MATCH($D$15,Tabla_Exposición_Actual[Municipio],0),MATCH('Análisis Adaptación'!F27,Tabla_Exposición_Actual[[#Headers],[Aumento del Nivel del Mar]:[Eventos Meteo. Extremos]],0))","v":"Bajo"},{"$f":"INDEX(Tabla_Exposición_Futuro[[Aumento del Nivel del Mar]:[Eventos Meteo. Extremos]],MATCH($D$15,Tabla_Exposición_Futuro[Municipio],0),MATCH('Análisis Adaptación'!F27,Tabla_Exposición_Futuro[[#Headers],[Aumento del Nivel del Mar]:[Eventos Meteo. Extremos]],0))","v":"Bajo"},null,{"$f":"IF(AND(G27=\"No aplica\",H27=\"No aplica\"),\"No aplica\",CHOOSE(MAX(IFERROR(VLOOKUP(G27,Tabla_Equivalencias[],2,FALSE),0),IFERROR(VLOOKUP('Análisis Adaptación'!H27,Tabla_Equivalencias[],2,FALSE),0)),\"Bajo\",\"Medio\",\"Alto\"))","v":"Bajo"}]
[null,null,"Aumento Temp.",{"$f":"INDEX(Tabla_Sensibilidad[[Aumento del Nivel del Mar]:[Eventos Meteo. Extremos]],MATCH(1,(Tabla_Sensibilidad[Área]='Análisis Adaptación'!$D$13)*(Tabla_Sensibilidad[Categoría de operaciones de infraestructura]='Análisis Adaptación'!$D$14),0),MATCH('Análisis Adaptación'!C28,Tabla_Sensibilidad[[#Headers],[Aumento del Nivel del Mar]:[Eventos Meteo. Extremos]],0))","v":"Medio"},null,"Cambios Régimen Nival",{"$f":"INDEX(Tabla_Exposición_Actual[[Aumento del Nivel del Mar]:[Eventos Meteo. Extremos]],MATCH($D$15,Tabla_Exposición_Actual[Municipio],0),MATCH('Análisis Adaptación'!F28,Tabla_Exposición_Actual[[#Headers],[Aumento del Nivel del Mar]:[Eventos Meteo. Extremos]],0))","v":"Bajo"},{"$f":"INDEX(Tabla_Exposición_Futuro[[Aumento del Nivel del Mar]:[Eventos Meteo. Extremos]],MATCH($D$15,Tabla_Exposición_Futuro[Municipio],0),MATCH('Análisis Adaptación'!F28,Tabla_Exposición_Futuro[[#Headers],[Aumento del Nivel del Mar]:[Eventos Meteo. Extremos]],0))","v":"Bajo"},null,{"$f":"IF(AND(G28=\"No aplica\",H28=\"No aplica\"),\"No aplica\",CHOOSE(MAX(IFERROR(VLOOKUP(G28,Tabla_Equivalencias[],2,FALSE),0),IFERROR(VLOOKUP('Análisis Adaptación'!H28,Tabla_Equivalencias[],2,FALSE),0)),\"Bajo\",\"Medio\",\"Alto\"))","v":"Bajo"}]
[null,null,"Olas de Calor",{"$f":"INDEX(Tabla_Sensibilidad[[Aumento del Nivel del Mar]:[Eventos Meteo. Extremos]],MATCH(1,(Tabla_Sensibilidad[Área]='Análisis Adaptación'!$D$13)*(Tabla_Sensibilidad[Categoría de operaciones de infraestructura]='Análisis Adaptación'!$D$14),0),MATCH('Análisis Adaptación'!C29,Tabla_Sensibilidad[[#Headers],[Aumento del Nivel del Mar]:[Eventos Meteo. Extremos]],0))","v":"Medio"},null,"Aumento Temp.",{"$f":"INDEX(Tabla_Exposición_Actual[[Aumento del Nivel del Mar]:[Eventos Meteo. Extremos]],MATCH($D$15,Tabla_Exposición_Actual[Municipio],0),MATCH('Análisis Adaptación'!F29,Tabla_Exposición_Actual[[#Headers],[Aumento del Nivel del Mar]:[Eventos Meteo. Extremos]],0))","v":"Medio"},{"$f":"INDEX(Tabla_Exposición_Futuro[[Aumento del Nivel del Mar]:[Eventos Meteo. Extremos]],MATCH($D$15,Tabla_Exposición_Futuro[Municipio],0),MATCH('Análisis Adaptación'!F29,Tabla_Exposición_Futuro[[#Headers],[Aumento del Nivel del Mar]:[Eventos Meteo. Extremos]],0))","v":"Alto"},null,{"$f":"IF(AND(G29=\"No aplica\",H29=\"No aplica\"),\"No aplica\",CHOOSE(MAX(IFERROR(VLOOKUP(G29,Tabla_Equivalencias[],2,FALSE),0),IFERROR(VLOOKUP('Análisis Adaptación'!H29,Tabla_Equivalencias[],2,FALSE),0)),\"Bajo\",\"Medio\",\"Alto\"))","v":"Alto"}]
[null,null,"Movimientos de Ladera",{"$f":"INDEX(Tabla_Sensibilidad[[Aumento del Nivel del Mar]:[Eventos Meteo. Extremos]],MATCH(1,(Tabla_Sensibilidad[Área]='Análisis Adaptación'!$D$13)*(Tabla_Sensibilidad[Categoría de operaciones de infraestructura]='Análisis Adaptación'!$D$14),0),MATCH('Análisis Adaptación'!C30,Tabla_Sensibilidad[[#Headers],[Aumento del Nivel del Mar]:[Eventos Meteo. Extremos]],0))","v":"Medio"},null,"Olas de Calor",{"$f":"INDEX(Tabla_Exposición_Actual[[Aumento del Nivel del Mar]:[Eventos Meteo. Extremos]],MATCH($D$15,Tabla_Exposición_Actual[Municipio],0),MATCH('Análisis Adaptación'!F30,Tabla_Exposición_Actual[[#Headers],[Aumento del Nivel del Mar]:[Eventos Meteo. Extremos]],0))","v":"Medio"},{"$f":"INDEX(Tabla_Exposición_Futuro[[Aumento del Nivel del Mar]:[Eventos Meteo. Extremos]],MATCH($D$15,Tabla_Exposición_Futuro[Municipio],0),MATCH('Análisis Adaptación'!F30,Tabla_Exposición_Futuro[[#Headers],[Aumento del Nivel del Mar]:[Eventos Meteo. Extremos]],0))","v":"Alto"},null,{"$f":"IF(AND(G30=\"No aplica\",H30=\"No aplica\"),\"No aplica\",CHOOSE(MAX(IFERROR(VLOOKUP(G30,Tabla_Equivalencias[],2,FALSE),0),IFERROR(VLOOKUP('Análisis Adaptación'!H30,Tabla_Equivalencias[],2,FALSE),0)),\"Bajo\",\"Medio\",\"Alto\"))","v":"Alto"}]
[null,null,"Cambios Rég. Vientos",{"$f":"INDEX(Tabla_Sensibilidad[[Aumento del Nivel del Mar]:[Eventos Meteo. Extremos]],MATCH(1,(Tabla_Sensibilidad[Área]='Análisis Adaptación'!$D$13)*(Tabla_Sensibilidad[Categoría de operaciones de infraestructura]='Análisis Adaptación'!$D$14),0),MATCH('Análisis Adaptación'!C31,Tabla_Sensibilidad[[#Headers],[Aumento del Nivel del Mar]:[Eventos Meteo. Extremos]],0))","v":"Bajo"},null,"Movimientos de Ladera",{"$f":"INDEX(Tabla_Exposición_Actual[[Aumento del Nivel del Mar]:[Eventos Meteo. Extremos]],MATCH($D$15,Tabla_Exposición_Actual[Municipio],0),MATCH('Análisis Adaptación'!F31,Tabla_Exposición_Actual[[#Headers],[Aumento del Nivel del Mar]:[Eventos Meteo. Extremos]],0))","v":"Alto"},{"$f":"INDEX(Tabla_Exposición_Futuro[[Aumento del Nivel del Mar]:[Eventos Meteo. Extremos]],MATCH($D$15,Tabla_Exposición_Futuro[Municipio],0),MATCH('Análisis Adaptación'!F31,Tabla_Exposición_Futuro[[#Headers],[Aumento del Nivel del Mar]:[Eventos Meteo. Extremos]],0))","v":"Alto"},null,{"$f":"IF(AND(G31=\"No aplica\",H31=\"No aplica\"),\"No aplica\",CHOOSE(MAX(IFERROR(VLOOKUP(G31,Tabla_Equivalencias[],2,FALSE),0),IFERROR(VLOOKUP('Análisis Adaptación'!H31,Tabla_Equivalencias[],2,FALSE),0)),\"Bajo\",\"Medio\",\"Alto\"))","v":"Alto"}]
[null,null,"Eventos Meteo. Extremos",{"$f":"INDEX(Tabla_Sensibilidad[[Aumento del Nivel del Mar]:[Eventos Meteo. Extremos]],MATCH(1,(Tabla_Sensibilidad[Área]='Análisis Adaptación'!$D$13)*(Tabla_Sensibilidad[Categoría de operaciones de infraestructura]='Análisis Adaptación'!$D$14),0),MATCH('Análisis Adaptación'!C32,Tabla_Sensibilidad[[#Headers],[Aumento del Nivel del Mar]:[Eventos Meteo. Extremos]],0))","v":"Medio"},null,"Cambios Rég. Vientos",{"$f":"INDEX(Tabla_Exposición_Actual[[Aumento del Nivel del Mar]:[Eventos Meteo. Extremos]],MATCH($D$15,Tabla_Exposición_Actual[Municipio],0),MATCH('Análisis Adaptación'!F32,Tabla_Exposición_Actual[[#Headers],[Aumento del Nivel del Mar]:[Eventos Meteo. Extremos]],0))","v":"Bajo"},{"$f":"INDEX(Tabla_Exposición_Futuro[[Aumento del Nivel del Mar]:[Eventos Meteo. Extremos]],MATCH($D$15,Tabla_Exposición_Futuro[Municipio],0),MATCH('Análisis Adaptación'!F32,Tabla_Exposición_Futuro[[#Headers],[Aumento del Nivel del Mar]:[Eventos Meteo. Extremos]],0))","v":"Medio"},null,{"$f":"IF(AND(G32=\"No aplica\",H32=\"No aplica\"),\"No aplica\",CHOOSE(MAX(IFERROR(VLOOKUP(G32,Tabla_Equivalencias[],2,FALSE),0),IFERROR(VLOOKUP('Análisis Adaptación'!H32,Tabla_Equivalencias[],2,FALSE),0)),\"Bajo\",\"Medio\",\"Alto\"))","v":"Medio"}]
[null,null,null,null,null,"Eventos Meteo. Extremos",{"$f":"INDEX(Tabla_Exposición_Actual[[Aumento del Nivel del Mar]:[Eventos Meteo. Extremos]],MATCH($D$15,Tabla_Exposición_Actual[Municipio],0),MATCH('Análisis Adaptación'!F33,Tabla_Exposición_Actual[[#Headers],[Aumento del Nivel del Mar]:[Eventos Meteo. Extremos]],0))","v":"Bajo"},{"$f":"INDEX(Tabla_Exposición_Futuro[[Aumento del Nivel del Mar]:[Eventos Meteo. Extremos]],MATCH($D$15,Tabla_Exposición_Futuro[Municipio],0),MATCH('Análisis Adaptación'!F33,Tabla_Exposición_Futuro[[#Headers],[Aumento del Nivel del Mar]:[Eventos Meteo. Extremos]],0))","v":"Medio"},null,{"$f":"IF(AND(G33=\"No aplica\",H33=\"No aplica\"),\"No aplica\",CHOOSE(MAX(IFERROR(VLOOKUP(G33,Tabla_Equivalencias[],2,FALSE),0),IFERROR(VLOOKUP('Análisis Adaptación'!H33,Tabla_Equivalencias[],2,FALSE),0)),\"Bajo\",\"Medio\",\"Alto\"))","v":"Medio"}]
[]
[]
[null,null,"VULNERABILIDAD"]
[]
[null,null,"Peligro Climático","Vulnerabilidad"]
[null,null,"Aumento del Nivel del Mar",{"$f":"IF(J22=\"No aplica\",J22,IF(D21=\"Alto\",IF(J22=\"Alto\",\"Alto\",IF(J22=\"Medio\",\"Alto\",\"Medio\")),IF(D21=\"Medio\",IF(J22=\"Alto\",\"Alto\",IF(J22=\"Medio\",\"Medio\",\"Bajo\")),IF(D21=\"Bajo\",IF(J22=\"Alto\",\"Medio\",\"Bajo\"),\"\"))))","v":"No aplica"}]
[null,null,"Inundaciones Costeras",{"$f":"IF(J23=\"No aplica\",J23,IF(D22=\"Alto\",IF(J23=\"Alto\",\"Alto\",IF(J23=\"Medio\",\"Alto\",\"Medio\")),IF(D22=\"Medio\",IF(J23=\"Alto\",\"Alto\",IF(J23=\"Medio\",\"Medio\",\"Bajo\")),IF(D22=\"Bajo\",IF(J23=\"Alto\",\"Medio\",\"Bajo\"),\"\"))))","v":"No aplica"}]
[null,null,"Eventos Extremos Costeros",{"$f":"IF(J24=\"No aplica\",J24,IF(D23=\"Alto\",IF(J24=\"Alto\",\"Alto\",IF(J24=\"Medio\",\"Alto\",\"Medio\")),IF(D23=\"Medio\",IF(J24=\"Alto\",\"Alto\",IF(J24=\"Medio\",\"Medio\",\"Bajo\")),IF(D23=\"Bajo\",IF(J24=\"Alto\",\"Medio\",\"Bajo\"),\"\"))))","v":"No aplica"},null,{"$f":"IF(COUNTIF($D$39:$D$50,\"Alto\")>0,\"⚠️ El proyecto pasa a Fase 2 (análisis detallado)\",\"✔️ Concluye el proceso del pilar de adaptación\")","v":"⚠️ El proyecto pasa a Fase 2 (análisis detallado)"}]
[null,null,"Cambio Régimen Lluvias",{"$f":"IF(J25=\"No aplica\",J25,IF(J25=\"Alto\",IF(J25=\"Alto\",\"Alto\",IF(J25=\"Medio\",\"Alto\",\"Medio\")),IF(D24=\"Medio\",IF(J25=\"Alto\",\"Alto\",IF(J25=\"Medio\",\"Medio\",\"Bajo\")),IF(D24=\"Bajo\",IF(J25=\"Alto\",\"Medio\",\"Bajo\"),\"\"))))","v":"Bajo"},null,"Nota metodolóigica: En el caso de que exista un peligro climático cuya vulnerabilidad sea \"alta\", el proyecto pasa a Fase 2.\n"]
[null,null,"Inundación Fluvio-Marinas",{"$f":"IF(J26=\"No aplica\",J26,IF(D25=\"Alto\",IF(J26=\"Alto\",\"Alto\",IF(J26=\"Medio\",\"Alto\",\"Medio\")),IF(D25=\"Medio\",IF(J26=\"Alto\",\"Alto\",IF(J26=\"Medio\",\"Medio\",\"Bajo\")),IF(D25=\"Bajo\",IF(J26=\"Alto\",\"Medio\",\"Bajo\"),\"\"))))","v":"Bajo"}]
[null,null,"Inundación Torrencial","Bajo"]
[null,null,"Cambios Régimen Nival","Bajo"]
[null,null,"Aumento Temp.","Alto"]
[null,null,"Olas de Calor","Alto"]
[null,null,"Movimientos de Ladera","Alto"]
[null,null,"Cambios Rég. Vientos","Bajo"]
[null,null,"Eventos Meteo. Extremos","Medio"]
[]
[null,null,"*Nota: Si no hay dato de exposición final disponible, la vulnerabilidad coincide con la sensibilidad del peligro."]
[null,null,"* Para los peligros climáticos relacionados con la costa (aumento del nivel del mar, inundaciones costeras y eventos extremos costeros), únicamente se tendrán en cuenta en caso de que el proyecto se sitúe a menos de 1 km de la costa. En caso de que esté situado en un municipio costero pero a más de 1 km de la costa se considerará que el peligro no aplica. "]
[]
[]
[null,"🔹 FASE 2 - EVALUACIÓN DE RIESGOS (ANÁLISIS DETALLADO)"]
[]
[]
[]
[null,null,"PROBABILIDAD",null,null,"IMPACTO"]
[]
[]
[null,null,"Peligro Climático","Probabilidad",null,"Peligro Climático","Impacto"]
[null,null,"Aumento del nivel del mar",{"$f":"+IF(F41=\"⚠️ El proyecto pasa a Fase 2 (análisis detallado)\",VLOOKUP($D$15,'Tablas Adaptación'!G138:H216,2,0),\"No aplica\")","v":"No aplica"},null,"Aumento del nivel del mar",{"$f":"IF(D64=\"No aplica\",\"No aplica\",(INDEX(Tabla2[[Aumento del nivel del mar]:[Eventos meteorológicos extremos]],MATCH($D$14,Tabla2[Categoría del proyecto],0),MATCH(F64,Tabla2[[#Headers],[Aumento del nivel del mar]:[Eventos meteorológicos extremos]],0))))","v":"No aplica"}]
[null,null,"Inundaciones costeras",{"$f":"IF(F41=\"⚠️ El proyecto pasa a Fase 2 (análisis detallado)\",VLOOKUP($D$15,'Tablas Adaptación'!C230:D308,2,0),\"No aplica\")","v":"No aplica"},null,"Inundaciones costeras",{"$f":"IF(D65=\"No aplica\",\"No aplica\",(INDEX(Tabla2[[Aumento del nivel del mar]:[Eventos meteorológicos extremos]],MATCH($D$14,Tabla2[Categoría del proyecto],0),MATCH(F65,Tabla2[[#Headers],[Aumento del nivel del mar]:[Eventos meteorológicos extremos]],0))))","v":"No aplica"}]
[null,null,"Eventos extremos costeros (temporales)",{"$f":"IF(F41=\"⚠️ El proyecto pasa a Fase 2 (análisis detallado)\",VLOOKUP($D$15,'Tablas Adaptación'!F230:G308,2,0),\"No aplica\")","v":"No aplica"},null,"Eventos extremos costeros  (temporales)",{"$f":"IF(D66=\"No aplica\",\"No aplica\",(INDEX(Tabla2[[Aumento del nivel del mar]:[Eventos meteorológicos extremos]],MATCH($D$14,Tabla2[Categoría del proyecto],0),MATCH(F66,Tabla2[[#Headers],[Aumento del nivel del mar]:[Eventos meteorológicos extremos]],0))))","v":"No aplica"}]
[null,null,"Cambios en el régimen de precipitaciones",{"$f":"+IF(F41=\"⚠️ El proyecto pasa a Fase 2 (análisis detallado)\",\"Improbable\",\"No aplica\")","v":"Improbable"},null,"Cambio en el régimen de precipitaciones",{"$f":"IF(D67=\"No aplica\",\"No aplica\",INDEX(Tabla2[[Aumento del nivel del mar]:[Eventos meteorológicos extremos]],MATCH($D$14,Tabla2[Categoría del proyecto],0),MATCH(F67,Tabla2[[#Headers],[Aumento del nivel del mar]:[Eventos meteorológicos extremos]],0)))","v":"Moderado"}]
[null,null,"Inundaciones fluviomarinas",{"$f":"IF(F41=\"⚠️ El proyecto pasa a Fase 2 (análisis detallado)\",VLOOKUP($D$15,'Tablas Adaptación'!C148:D226,2,0),\"No aplica\")","v":"Moderado"},null,"Inundaciones fluviomarinas",{"$f":"IF(D68=\"No aplica\",\"No aplica\",INDEX(Tabla2[[Aumento del nivel del mar]:[Eventos meteorológicos extremos]],MATCH($D$14,Tabla2[Categoría del proyecto],0),MATCH(F68,Tabla2[[#Headers],[Aumento del nivel del mar]:[Eventos meteorológicos extremos]],0)))","v":"Moderado"}]
[null,null,"Inundaciones torrenciales",{"$f":"D68","v":"Moderado"},null,"Inundaciones torrenciales",{"$f":"IF(D69=\"No aplica\",\"No aplica\",INDEX(Tabla2[[Aumento del nivel del mar]:[Eventos meteorológicos extremos]],MATCH($D$14,Tabla2[Categoría del proyecto],0),MATCH(F69,Tabla2[[#Headers],[Aumento del nivel del mar]:[Eventos meteorológicos extremos]],0)))","v":"Moderado"}]
[null,null,"Cambios en el régimen nival",{"$f":"IF(F41=\"⚠️ El proyecto pasa a Fase 2 (análisis detallado)\",VLOOKUP($D$15,'Tablas Adaptación'!I230:J308,2,0),\"No aplica\")","v":"Raro"},null,"Cambios en el régimen nival",{"$f":"IF(D70=\"No aplica\",\"No aplica\",INDEX(Tabla2[[Aumento del nivel del mar]:[Eventos meteorológicos extremos]],MATCH($D$14,Tabla2[Categoría del proyecto],0),MATCH(F70,Tabla2[[#Headers],[Aumento del nivel del mar]:[Eventos meteorológicos extremos]],0)))","v":"Leve"}]
[null,null,"Incremento de la temperatura",{"$f":"+IF(F41=\"⚠️ El proyecto pasa a Fase 2 (análisis detallado)\",\"Probable\",\"No aplica\")","v":"Probable"},null,"Incremento de la temperatura",{"$f":"IF(D71=\"No aplica\",\"No aplica\",INDEX(Tabla2[[Aumento del nivel del mar]:[Eventos meteorológicos extremos]],MATCH($D$14,Tabla2[Categoría del proyecto],0),MATCH(F71,Tabla2[[#Headers],[Aumento del nivel del mar]:[Eventos meteorológicos extremos]],0)))","v":"Moderado"}]
[null,null,"Olas de calor",{"$f":"+IF(F41=\"⚠️ El proyecto pasa a Fase 2 (análisis detallado)\",\"Probable\",\"No aplica\")","v":"Probable"},null,"Olas de calor",{"$f":"IF(D72=\"No aplica\",\"No aplica\",INDEX(Tabla2[[Aumento del nivel del mar]:[Eventos meteorológicos extremos]],MATCH($D$14,Tabla2[Categoría del proyecto],0),MATCH(F72,Tabla2[[#Headers],[Aumento del nivel del mar]:[Eventos meteorológicos extremos]],0)))","v":"Moderado"}]
[null,null,"Movimientos de ladera",{"$f":"+IF(F41=\"⚠️ El proyecto pasa a Fase 2 (análisis detallado)\",VLOOKUP($D$15,'Tablas Adaptación'!J138:K216,2,0),\"No aplica\")","v":"Raro"},null,"Movimientos de ladera",{"$f":"IF(D73=\"No aplica\",\"No aplica\",INDEX(Tabla2[[Aumento del nivel del mar]:[Eventos meteorológicos extremos]],MATCH($D$14,Tabla2[Categoría del proyecto],0),MATCH(F73,Tabla2[[#Headers],[Aumento del nivel del mar]:[Eventos meteorológicos extremos]],0)))","v":"Moderado"}]
[null,null,"Cambio en el régimen de vientos",{"$f":"+IF(F41=\"⚠️ El proyecto pasa a Fase 2 (análisis detallado)\",\"Probable\",\"No aplica\")","v":"Probable"},null,"Cambios en el régimen de vientos",{"$f":"IF(D74=\"No aplica\",\"No aplica\",INDEX(Tabla2[[Aumento del nivel del mar]:[Eventos meteorológicos extremos]],MATCH($D$14,Tabla2[Categoría del proyecto],0),MATCH(F74,Tabla2[[#Headers],[Aumento del nivel del mar]:[Eventos meteorológicos extremos]],0)))","v":"Moderado"}]
[null,null,"Eventos meteorológicos extremos",{"$f":"IF(F41=\"⚠️ El proyecto pasa a Fase 2 (análisis detallado)\",VLOOKUP($D$15,'Tablas Adaptación'!M138:N216,2,0),\"No aplica\")","v":"Raro"},null,"Eventos meteorológicos extremos",{"$f":"IF(D75=\"No aplica\",\"No aplica\",INDEX(Tabla2[[Aumento del nivel del mar]:[Eventos meteorológicos extremos]],MATCH($D$14,Tabla2[Categoría del proyecto],0),MATCH(F75,Tabla2[[#Headers],[Aumento del nivel del mar]:[Eventos meteorológicos extremos]],0)))","v":"Moderado"}]
[]
[]
[]
[]
[null,null,"RIESGO"]
[]
[]
[null,null,"Peligro Climático","Riesgo"]
[null,null,"Aumento del nivel del mar",{"$f":"IF(D64=\"No aplica\",\"No aplica\",(IF(D64=\"Casi seguro\",IF(G64=\"Grave\",\"Extremo\",IF(G64=\"Moderado\",\"Extremo\",\"Alto\")),IF(D64=\"Probable\",IF(G64=\"Grave\",\"Extremo\",IF(G64=\"Moderado\",\"Alto\",IF(G64=\"Leve\",\"Alto\",\"Medio\"))),IF(D64=\"Moderado\",IF(G64=\"Grave\",\"Extremo\",IF(G64=\"Moderado\",\"Alto\",IF(G64=\"Leve\",\"Medio\",\"Bajo\"))),IF(D64=\"Improbable\",IF(G64=\"Grave\",\"Alto\",IF(G64=\"Moderado\",\"Medio\",\"Bajo\")),IF(D64=\"Raro\",IF(G64=\"Grave\",\"Alto\",IF(G64=\"Moderado\",\"Medio\",\"Bajo\")),\"\")))))))","v":"No aplica"}]
[null,null,"Inundaciones costeras",{"$f":"IF(D65=\"No aplica\",\"No aplica\",(IF(D65=\"Casi seguro\",IF(G65=\"Grave\",\"Extremo\",IF(G65=\"Moderado\",\"Extremo\",\"Alto\")),IF(D65=\"Probable\",IF(G65=\"Grave\",\"Extremo\",IF(G65=\"Moderado\",\"Alto\",IF(G65=\"Leve\",\"Alto\",\"Medio\"))),IF(D65=\"Moderado\",IF(G65=\"Grave\",\"Extremo\",IF(G65=\"Moderado\",\"Alto\",IF(G65=\"Leve\",\"Medio\",\"Bajo\"))),IF(D65=\"Improbable\",IF(G65=\"Grave\",\"Alto\",IF(G65=\"Moderado\",\"Medio\",\"Bajo\")),IF(D65=\"Raro\",IF(G65=\"Grave\",\"Alto\",IF(G65=\"Moderado\",\"Medio\",\"Bajo\")),\"\")))))))","v":"No aplica"}]
[null,null,"Eventos extremos costeros  (temporales)",{"$f":"IF(D66=\"No aplica\",\"No aplica\",(IF(D66=\"Casi seguro\",IF(G66=\"Grave\",\"Extremo\",IF(G66=\"Moderado\",\"Extremo\",\"Alto\")),IF(D66=\"Probable\",IF(G66=\"Grave\",\"Extremo\",IF(G66=\"Moderado\",\"Alto\",IF(G66=\"Leve\",\"Alto\",\"Medio\"))),IF(D66=\"Moderado\",IF(G66=\"Grave\",\"Extremo\",IF(G66=\"Moderado\",\"Alto\",IF(G66=\"Leve\",\"Medio\",\"Bajo\"))),IF(D66=\"Improbable\",IF(G66=\"Grave\",\"Alto\",IF(G66=\"Moderado\",\"Medio\",\"Bajo\")),IF(D66=\"Raro\",IF(G66=\"Grave\",\"Alto\",IF(G66=\"Moderado\",\"Medio\",\"Bajo\")),\"\")))))))","v":"No aplica"}]
[null,null,"Cambio en el régimen de precipitaciones",{"$f":"IF(D67=\"No aplica\",\"No aplica\",IF(D67=\"Casi seguro\",IF(G67=\"Grave\",\"Extremo\",IF(G67=\"Moderado\",\"Extremo\",\"Alto\")),IF(D67=\"Probable\",IF(G67=\"Grave\",\"Extremo\",IF(G67=\"Moderado\",\"Alto\",IF(G67=\"Leve\",\"Alto\",\"Medio\"))),IF(D67=\"Moderado\",IF(G67=\"Grave\",\"Extremo\",IF(G67=\"Moderado\",\"Alto\",IF(G67=\"Leve\",\"Medio\",\"Bajo\"))),IF(D67=\"Improbable\",IF(G67=\"Grave\",\"Alto\",IF(G67=\"Moderado\",\"Medio\",\"Bajo\")),IF(D67=\"Raro\",IF(G67=\"Grave\",\"Alto\",IF(G67=\"Moderado\",\"Medio\",\"Bajo\")),\"\"))))))","v":"Medio"}]
[null,null,"Inundaciones fluviomarinas","Alto"]
[null,null,"Inundaciones torrenciales","Alto"]
[null,null,"Cambios en el régimen nival","Bajo"]
[null,null,"Incremento de la temperatura","Alto"]
[null,null,"Olas de calor","Alto",null,{"$f":"IF(COUNTIF($D$87:$D$97,\"Extremo\")>0,\"⚠️ Se necesitan medidas de adaptación en los peligros con riesgo extremo\",\"✔️ No es necesario proponer medidas de adaptación\")","v":"✔️ No es necesario proponer medidas de adaptación"}]
[null,null,"Movimientos de ladera","Medio"]
[null,null,"Cambios en el régimen de vientos","Alto",null,"Nota metodológica: Se propondrán medidas de adaptación en los peligros climáticos cuyo riesgo sea \"extremo\"."]
[null,null,"Eventos meteorológicos extremos","Medio"]
[]
[]
[]
[null,null,"Peligro Climático","Propuesta de medidas de adaptación que será necesario adaptar a las características del proyecto y del territorio"]
[null,null,"Aumento del nivel del mar",{"$f":"+IF(D84=\"Extremo\",INDEX(Tabla_Medidas[[Aumento del Nivel del Mar]:[Eventos Meteo. Extremos]],MATCH(1,(Tabla_Medidas[Área]='Análisis Adaptación'!$D$13)*(Tabla_Medidas[Categoría de operaciones de infraestructura]='Análisis Adaptación'!$D$14),0),MATCH('Análisis Adaptación'!C21,Tabla_Medidas[[#Headers],[Aumento del Nivel del Mar]:[Eventos Meteo. Extremos]],0)),\"No son necesarias medidas de adaptación\")","v":"No son necesarias medidas de adaptación"}]
[null,null,"Inundaciones costeras",{"$f":"IF(D85=\"Extremo\",INDEX(Tabla_Medidas[[Aumento del Nivel del Mar]:[Eventos Meteo. Extremos]],MATCH(1,(Tabla_Medidas[Área]='Análisis Adaptación'!$D$13)*(Tabla_Medidas[Categoría de operaciones de infraestructura]='Análisis Adaptación'!$D$14),0),MATCH('Análisis Adaptación'!C22,Tabla_Medidas[[#Headers],[Aumento del Nivel del Mar]:[Eventos Meteo. Extremos]],0)),\"No son necesarias medidas de adaptación\")","v":"No son necesarias medidas de adaptación"}]
[null,null,"Eventos extremos costeros  (temporales)",{"$f":"IF(D86=\"Extremo\",INDEX(Tabla_Medidas[[Aumento del Nivel del Mar]:[Eventos Meteo. Extremos]],MATCH(1,(Tabla_Medidas[Área]='Análisis Adaptación'!$D$13)*(Tabla_Medidas[Categoría de operaciones de infraestructura]='Análisis Adaptación'!$D$14),0),MATCH('Análisis Adaptación'!C23,Tabla_Medidas[[#Headers],[Aumento del Nivel del Mar]:[Eventos Meteo. Extremos]],0)),\"No son necesarias medidas de adaptación\")","v":"No son necesarias medidas de adaptación"}]
[null,null,"Cambio en el régimen de precipitaciones",{"$f":"IF(D87=\"Extremo\",INDEX(Tabla_Medidas[[Aumento del Nivel del Mar]:[Eventos Meteo. Extremos]],MATCH(1,(Tabla_Medidas[Área]='Análisis Adaptación'!$D$13)*(Tabla_Medidas[Categoría de operaciones de infraestructura]='Análisis Adaptación'!$D$14),0),MATCH('Análisis Adaptación'!C24,Tabla_Medidas[[#Headers],[Aumento del Nivel del Mar]:[Eventos Meteo. Extremos]],0)),\"No son necesarias medidas de adaptación\")","v":"No son necesarias medidas de adaptación"}]
[null,null,"Inundaciones fluviomarinas",{"$f":"IF(D88=\"Extremo\",INDEX(Tabla_Medidas[[Aumento del Nivel del Mar]:[Eventos Meteo. Extremos]],MATCH(1,(Tabla_Medidas[Área]='Análisis Adaptación'!$D$13)*(Tabla_Medidas[Categoría de operaciones de infraestructura]='Análisis Adaptación'!$D$14),0),MATCH('Análisis Adaptación'!C25,Tabla_Medidas[[#Headers],[Aumento del Nivel del Mar]:[Eventos Meteo. Extremos]],0)),\"No son necesarias medidas de adaptación\")","v":"No son necesarias medidas de adaptación"}]
[null,null,"Inundaciones torrenciales",{"$f":"IF(D89=\"Extremo\",INDEX(Tabla_Medidas[[Aumento del Nivel del Mar]:[Eventos Meteo. Extremos]],MATCH(1,(Tabla_Medidas[Área]='Análisis Adaptación'!$D$13)*(Tabla_Medidas[Categoría de operaciones de infraestructura]='Análisis Adaptación'!$D$14),0),MATCH('Análisis Adaptación'!C26,Tabla_Medidas[[#Headers],[Aumento del Nivel del Mar]:[Eventos Meteo. Extremos]],0)),\"No son necesarias medidas de adaptación\")","v":"No son necesarias medidas de adaptación"}]
[null,null,"Cambios en el régimen nival",{"$f":"IF(D90=\"Extremo\",INDEX(Tabla_Medidas[[Aumento del Nivel del Mar]:[Eventos Meteo. Extremos]],MATCH(1,(Tabla_Medidas[Área]='Análisis Adaptación'!$D$13)*(Tabla_Medidas[Categoría de operaciones de infraestructura]='Análisis Adaptación'!$D$14),0),MATCH('Análisis Adaptación'!C27,Tabla_Medidas[[#Headers],[Aumento del Nivel del Mar]:[Eventos Meteo. Extremos]],0)),\"No son necesarias medidas de adaptación\")","v":"No son necesarias medidas de adaptación"}]
[null,null,"Incremento de la temperatura",{"$f":"IF(D91=\"Extremo\",INDEX(Tabla_Medidas[[Aumento del Nivel del Mar]:[Eventos Meteo. Extremos]],MATCH(1,(Tabla_Medidas[Área]='Análisis Adaptación'!$D$13)*(Tabla_Medidas[Categoría de operaciones de infraestructura]='Análisis Adaptación'!$D$14),0),MATCH('Análisis Adaptación'!C28,Tabla_Medidas[[#Headers],[Aumento del Nivel del Mar]:[Eventos Meteo. Extremos]],0)),\"No son necesarias medidas de adaptación\")","v":"No son necesarias medidas de adaptación"}]
[null,null,"Olas de calor",{"$f":"IF(D92=\"Extremo\",INDEX(Tabla_Medidas[[Aumento del Nivel del Mar]:[Eventos Meteo. Extremos]],MATCH(1,(Tabla_Medidas[Área]='Análisis Adaptación'!$D$13)*(Tabla_Medidas[Categoría de operaciones de infraestructura]='Análisis Adaptación'!$D$14),0),MATCH('Análisis Adaptación'!C29,Tabla_Medidas[[#Headers],[Aumento del Nivel del Mar]:[Eventos Meteo. Extremos]],0)),\"No son necesarias medidas de adaptación\")","v":"No son necesarias medidas de adaptación"}]
[null,null,"Movimientos de ladera",{"$f":"IF(D93=\"Extremo\",INDEX(Tabla_Medidas[[Aumento del Nivel del Mar]:[Eventos Meteo. Extremos]],MATCH(1,(Tabla_Medidas[Área]='Análisis Adaptación'!$D$13)*(Tabla_Medidas[Categoría de operaciones de infraestructura]='Análisis Adaptación'!$D$14),0),MATCH('Análisis Adaptación'!C30,Tabla_Medidas[[#Headers],[Aumento del Nivel del Mar]:[Eventos Meteo. Extremos]],0)),\"No son necesarias medidas de adaptación\")","v":"No son necesarias medidas de adaptación"}]
[null,null,"Cambios en el régimen de vientos",{"$f":"+IF(D94=\"Extremo\",INDEX(Tabla_Medidas[[Aumento del Nivel del Mar]:[Eventos Meteo. Extremos]],MATCH(1,(Tabla_Medidas[Área]='Análisis Adaptación'!$D$13)*(Tabla_Medidas[Categoría de operaciones de infraestructura]='Análisis Adaptación'!$D$14),0),MATCH('Análisis Adaptación'!C31,Tabla_Medidas[[#Headers],[Aumento del Nivel del Mar]:[Eventos Meteo. Extremos]],0)),\"No son necesarias medidas de adaptación\")","v":"No son necesarias medidas de adaptación"}]
[null,null,"Eventos meteorológicos extremos",{"$f":"IF(D95=\"Extremo\",INDEX(Tabla_Medidas[[Aumento del Nivel del Mar]:[Eventos Meteo. Extremos]],MATCH(1,(Tabla_Medidas[Área]='Análisis Adaptación'!$D$13)*(Tabla_Medidas[Categoría de operaciones de infraestructura]='Análisis Adaptación'!$D$14),0),MATCH('Análisis Adaptación'!C32,Tabla_Medidas[[#Headers],[Aumento del Nivel del Mar]:[Eventos Meteo. Extremos]],0)),\"No son necesarias medidas de adaptación\")","v":"No son necesarias medidas de adaptación"}]

{"sheet":"Tablas Adaptación","index":8,"n_rows":345,"n_cols":29,"rows_kept":345,"cut":false,"hidden":true,"merged":[[2,1,2,4],[39,1,39,4],[130,5,132,5],[311,1,311,4],[128,7,128,9],[126,5,126,8],[135,1,135,4],[126,1,126,4]]}
[]
[]
[null,"1. TABLA DE SENSIBILIDAD"]
[]
[]
[null,null,"Área","Categoría de operaciones de infraestructura","Aumento del Nivel del Mar","Inundaciones Costeras","Eventos Extremos Costeros","Cambio Régimen Lluvias","Inundación Fluvio-Marinas","Inundación Torrencial","Cambios Régimen Nival","Aumento Temp.","Olas de Calor","Movimientos de Ladera","Cambios Rég. Vientos","Eventos Meteo. Extremos"]
[null,null,"Edificios","Mejora de la eficiencia energética en edificios","Medio","Medio","Medio","Bajo","Medio","Medio","Bajo","Bajo","Bajo","Medio","Bajo","Medio"]
[null,null,"Edificios","Mejora genérica de edificios","Medio","Medio","Medio","Bajo","Medio","Medio","Bajo","Medio","Bajo","Medio","Bajo","Medio"]
[null,null,"Edificios","Mejoras en el entorno de los edificios","Medio","Medio","Medio","Bajo","Medio","Medio","Bajo","Bajo","Bajo","Medio","Bajo","Medio"]
[null,null,"Edificios","Construcción de edificios","Medio","Medio","Medio","Bajo","Medio","Medio","Bajo","Medio","Bajo","Medio","Bajo","Medio"]
[null,null,"Edificios","Ampliación de edificios","Medio","Medio","Medio","Bajo","Medio","Medio","Bajo","Medio","Bajo","Medio","Bajo","Medio"]
[null,null,"Edificios","Rehabilitación integral","Medio","Medio","Medio","Bajo","Medio","Medio","Bajo","Medio","Bajo","Medio","Bajo","Medio"]
[null,null,"Residuos","Puntos de recogida de residuos","Medio","Medio","Medio","Bajo","Medio","Medio","Bajo","Medio","Medio","Medio","Bajo","Medio"]
[null,null,"Residuos","Instalación de clasificación y reciclaje","Medio","Medio","Medio","Bajo","Medio","Medio","Bajo","Medio","Medio","Medio","Bajo","Medio"]
[null,null,"Residuos","Instalación de gestión de residuos","Medio","Medio","Medio","Bajo","Medio","Medio","Bajo","Medio","Medio","Medio","Bajo","Medio"]
[null,null,"Residuos","Plantas de valorización de residuos","Medio","Medio","Medio","Bajo","Medio","Medio","Bajo","Bajo","Bajo","Medio","Bajo","Medio"]
[null,null,"Agua","Pequeñas y medianas estaciones de depuración de aguas residuales","Medio","Medio","Medio","Bajo","Medio","Medio","Bajo","Medio","Medio","Medio","Bajo","Medio"]
[null,null,"Agua","Grandes estaciones de depuración de aguas residuales","Medio","Medio","Medio","Bajo","Medio","Medio","Bajo","Medio","Medio","Medio","Bajo","Medio"]
[null,null,"Agua","Actuaciones sobre sistemas de abastecimiento","Alto","Alto","Alto","Bajo","Alto","Alto","Bajo","Medio","Medio","Medio","Bajo","Alto"]
[null,null,"Agua","Actuaciones de preservación, preparación y protección de los recursos hídricos","Medio","Medio","Medio","Bajo","Medio","Medio","Bajo","Medio","Medio","Medio","Bajo","Medio"]
[null,null,"Agua","Instalaciones de distribución","Alto","Alto","Alto","Bajo","Alto","Alto","Bajo","Medio","Medio","Medio","Bajo","Alto"]
[null,null,"Agua","Pantalán","Alto","Alto","Alto","Bajo","Medio","Medio","Bajo","Bajo","Bajo","Bajo","Bajo","Alto"]
[null,null,"Agua","Estructuras marítimas","Alto","Alto","Alto","Bajo","Alto","Alto","Bajo","Bajo","Bajo","Bajo","Bajo","Alto"]
[null,null,"Agua","Estructuras fluviales","Medio","Medio","Medio","Bajo","Medio","Medio","Bajo","Bajo","Bajo","Bajo","Bajo","Medio"]
[null,null,"Agua","Escollera de protección","Alto","Alto","Alto","Bajo","Alto","Alto","Bajo","Bajo","Bajo","Bajo","Bajo","Alto"]
[null,null,"Agua","Estaciones de tratamiento de aguas potables","Alto","Alto","Alto","Bajo","Alto","Alto","Bajo","Medio","Medio","Medio","Bajo","Alto"]
[null,null,"Agua","Estaciones de bombeo","Medio","Medio","Medio","Bajo","Medio","Medio","Bajo","Medio","Medio","Medio","Bajo","Medio"]
[null,null,"Agua","Encauzamiento","Alto","Alto","Alto","Bajo","Alto","Alto","Bajo","Medio","Medio","Medio","Bajo","Alto"]
[null,null,"Energía","Infraestructuras de almacenamiento energético","Medio","Medio","Medio","Bajo","Medio","Medio","Bajo","Bajo","Bajo","Medio","Bajo","Medio"]
[null,null,"Energía","Infraestructura para la generación de energía renovable","Medio","Medio","Medio","Bajo","Medio","Medio","Bajo","Bajo","Bajo","Medio","Bajo","Medio"]
[null,null,"Energía","Transporte y distribución","Medio","Medio","Medio","Bajo","Medio","Medio","Bajo","Bajo","Bajo","Medio","Bajo","Medio"]
[null,null,"Territorio","Galerías subterráneas/mineras","Medio","Medio","Medio","Medio","Medio","Medio","Bajo","Bajo","Bajo","Medio","Bajo","Medio"]
[null,null,"Territorio","Escollera de contención","Medio","Medio","Medio","Bajo","Medio","Medio","Bajo","Medio","Medio","Medio","Bajo","Medio"]
[null,null,"Soluciones Basadas en la Naturaleza","Adaptación cambio climático","Bajo","Bajo","Bajo","Bajo","Bajo","Bajo","Bajo","Bajo","Bajo","Bajo","Bajo","Bajo"]
[null,null,"Soluciones Basadas en la Naturaleza","Adaptación de terrenos/descontaminación","Medio","Medio","Medio","Medio","Medio","Medio","Bajo","Medio","Medio","Medio","Bajo","Medio"]
[null,null,"Infraestructura Verde","Infraestructura verde","Medio","Medio","Medio","Medio","Medio","Medio","Bajo","Medio","Medio","Medio","Medio","Medio"]
[]
[]
[]
[null,"2. TABLA DE EXPOSICIÓN"]
[]
[null,null,"ACTUAL",null,null,null,null,null,null,null,null,null,null,null,null,null,"FUTURO"]
[]
[null,null,"Municipio","Aumento del Nivel del Mar","Inundaciones Costeras","Eventos Extremos Costeros","Cambio Régimen Lluvias","Inundación Fluvio-Marinas","Inundación Torrencial","Cambios Régimen Nival","Aumento Temp.","Olas de Calor","Movimientos de Ladera","Cambios Rég. Vientos","Eventos Meteo. Extremos",null,"Municipio","Aumento del Nivel del Mar","Inundaciones Costeras","Eventos Extremos Costeros","Cambio Régimen Lluvias","Inundación Fluvio-Marinas","Inundación Torrencial","Cambios Régimen Nival","Aumento Temp.","Olas de Calor","Movimientos de Ladera","Cambios Rég. Vientos","Eventos Meteo. Extremos"]
[null,null,"Allande","No aplica","No aplica","No aplica","Medio","Bajo","Bajo","Bajo","Medio","Alto","Alto","Bajo","Bajo",null,"Allande","No aplica","No aplica","No aplica","Medio","Bajo","Bajo","Bajo","Alto","Alto","Alto","Medio","Medio"]
[null,null,"Aller","No aplica","No aplica","No aplica","Medio","Bajo","Bajo","Bajo","Alto","Alto","Alto","Bajo","Bajo",null,"Aller","No aplica","No aplica","No aplica","Medio","Bajo","Bajo","Bajo","Alto","Alto","Alto","Medio","Medio"]
[null,null,"Amieva","No aplica","No aplica","No aplica","Medio","Bajo","Bajo","Bajo","Alto","Alto","Alto","Bajo","Bajo",null,"Amieva","No aplica","No aplica","No aplica","Medio","Bajo","Bajo","Alto","Alto","Alto","Alto","Medio","Medio"]
[null,null,"Avilés","Bajo","Alto","Bajo","Bajo","Alto","Alto","Bajo","Bajo","Medio","Bajo","Bajo","Bajo",null,"Avilés","Alto","Alto","Alto","Bajo","Alto","Alto","Bajo","Medio","Alto","Bajo","Alto","Alto"]
[null,null,"Belmonte de Miranda","No aplica","No aplica","No aplica","Bajo","Bajo","Bajo","Bajo","Medio","Alto","Alto","Bajo","Bajo",null,"Belmonte de Miranda","No aplica","No aplica","No aplica","Bajo","Bajo","Bajo","Bajo","Alto","Alto","Alto","Medio","Medio"]
[null,null,"Bimenes","No aplica","No aplica","No aplica","Medio","Bajo","Bajo","Bajo","Medio","Bajo","Medio","Bajo","Bajo",null,"Bimenes","No aplica","No aplica","No aplica","Medio","Bajo","Bajo","Bajo","Alto","Alto","Medio","Medio","Medio"]
[null,null,"Boal","No aplica","No aplica","No aplica","Medio","Bajo","Bajo","Bajo","Medio","Medio","Medio","Bajo","Bajo",null,"Boal","No aplica","No aplica","No aplica","Medio","Bajo","Bajo","Bajo","Alto","Alto","Medio","Medio","Medio"]
[null,null,"Cabrales","No aplica","No aplica","No aplica","Medio","Bajo","Bajo","Bajo","Medio","Medio","Alto","Bajo","Bajo",null,"Cabrales","No aplica","No aplica","No aplica","Medio","Bajo","Bajo","Alto","Medio","Alto","Alto","Medio","Medio"]
[null,null,"Cabranes","No aplica","No aplica","No aplica","Medio","Bajo","Bajo","Bajo","Medio","Bajo","Medio","Bajo","Bajo",null,"Cabranes","No aplica","No aplica","No aplica","Medio","Bajo","Bajo","Bajo","Alto","Alto","Medio","Medio","Medio"]
[null,null,"Candamo","No aplica","No aplica","No aplica","Bajo","Alto","Alto","Bajo","Bajo","Medio","Medio","Bajo","Bajo",null,"Candamo","No aplica","No aplica","No aplica","Bajo","Alto","Alto","Bajo","Medio","Alto","Medio","Medio","Medio"]
[null,null,"Cangas del Narcea","No aplica","No aplica","No aplica","Medio","Bajo","Bajo","Bajo","Alto","Alto","Alto","Bajo","Bajo",null,"Cangas del Narcea","No aplica","No aplica","No aplica","Medio","Bajo","Bajo","Alto","Alto","Alto","Alto","Medio","Medio"]
[null,null,"Cangas de Onís","No aplica","No aplica","No aplica","Medio","Medio","Medio","Bajo","Medio","Alto","Alto","Bajo","Bajo",null,"Cangas de Onís","No aplica","No aplica","No aplica","Medio","Medio","Medio","Alto","Alto","Alto","Alto","Medio","Medio"]
[null,null,"Caravia","Bajo","Bajo","Bajo","Medio","Bajo","Bajo","Bajo","Bajo","Bajo","Medio","Bajo","Bajo",null,"Caravia","Alto","Bajo","Alto","Medio","Bajo","Bajo","Bajo","Medio","Alto","Medio","Alto","Alto"]
[null,null,"Carreño","Bajo","Bajo","Bajo","Bajo","Medio","Medio","Bajo","Bajo","Medio","Bajo","Bajo","Bajo",null,"Carreño","Alto","Bajo","Alto","Bajo","Medio","Medio","Bajo","Medio","Alto","Bajo","Alto","Alto"]
[null,null,"Caso","No aplica","No aplica","No aplica","Medio","Bajo","Bajo","Bajo","Alto","Alto","Alto","Bajo","Bajo",null,"Caso","No aplica","No aplica","No aplica","Medio","Bajo","Bajo","Alto","Alto","Alto","Alto","Medio","Medio"]
[null,null,"Castrillón","Bajo","Bajo","Bajo","Bajo","Alto","Alto","Bajo","Bajo","Medio","Bajo","Bajo","Bajo",null,"Castrillón","Alto","Bajo","Alto","Bajo","Alto","Alto","Bajo","Medio","Alto","Bajo","Alto","Alto"]
[null,null,"Castropol","Bajo","Bajo","Bajo","Bajo","Bajo","Bajo","Bajo","Bajo","Medio","Medio","Bajo","Bajo",null,"Castropol","Alto","Bajo","Alto","Bajo","Bajo","Bajo","Bajo","Medio","Alto","Medio","Alto","Alto"]
[null,null,"Coaña","Bajo","Bajo","Bajo","Bajo","Alto","Alto","Bajo","Bajo","Medio","Medio","Bajo","Bajo",null,"Coaña","Alto","Bajo","Alto","Bajo","Alto","Alto","Bajo","Medio","Alto","Medio","Alto","Alto"]
[null,null,"Colunga","Bajo","Bajo","Bajo","Medio","Bajo","Bajo","Bajo","Bajo","Medio","Medio","Bajo","Bajo",null,"Colunga","Alto","Bajo","Alto","Medio","Bajo","Bajo","Bajo","Medio","Alto","Medio","Alto","Alto"]
[null,null,"Corvera de Asturias","No aplica","No aplica","No aplica","Bajo","Alto","Alto","Bajo","Bajo","Medio","Bajo","Bajo","Bajo",null,"Corvera de Asturias","No aplica","No aplica","No aplica","Bajo","Alto","Alto","Bajo","Medio","Alto","Bajo","Medio","Medio"]
[null,null,"Cudillero","Bajo","Bajo","Bajo","Bajo","Bajo","Bajo","Bajo","Bajo","Medio","Medio","Bajo","Bajo",null,"Cudillero","Alto","Bajo","Alto","Bajo","Bajo","Bajo","Bajo","Medio","Alto","Medio","Alto","Alto"]
[null,null,"Degaña","No aplica","No aplica","No aplica","Medio","Bajo","Bajo","Bajo","Medio","Alto","Alto","Bajo","Bajo",null,"Degaña","No aplica","v","No aplica","Medio","Bajo","Bajo","Alto","Alto","Alto","Alto","Medio","Medio"]
[null,null,"El Franco","Bajo","Bajo","Bajo","Bajo","Bajo","Bajo","Bajo","Bajo","Medio","Medio","Bajo","Bajo",null,"El Franco","Alto","Bajo","Alto","Bajo","Bajo","Bajo","Bajo","Medio","Alto","Medio","Alto","Alto"]
[null,null,"Gijón","Bajo","Bajo","Bajo","Bajo","Alto","Alto","Bajo","Bajo","Medio","Medio","Bajo","Bajo",null,"Gijón","Alto","Bajo","Alto","Bajo","Alto","Alto","Bajo","Medio","Alto","Medio","Alto","Alto"]
[null,null,"Gozón","Bajo","Bajo","Bajo","Bajo","Bajo","Bajo","Bajo","Bajo","Medio","Bajo","Bajo","Bajo",null,"Gozón","Alto","Bajo","Alto","Bajo","Bajo","Bajo","Bajo","Medio","Alto","Bajo","Alto","Alto"]
[null,null,"Grado","No aplica","No aplica","No aplica","Bajo","Bajo","Bajo","Bajo","Medio","Alto","Medio","Bajo","Bajo",null,"Grado","No aplica","No aplica","No aplica","Bajo","Bajo","Bajo","Bajo","Alto","Alto","Medio","Medio","Medio"]
[null,null,"Grandas de Salime","No aplica","No aplica","No aplica","Bajo","Bajo","Bajo","Bajo","Medio","Alto","Medio","Bajo","Bajo",null,"Grandas de Salime","No aplica","No aplica","No aplica","Bajo","Bajo","Bajo","Bajo","Alto","Alto","Medio","Medio","Medio"]
[null,null,"Ibias","No aplica","No aplica","No aplica","Medio","Bajo","Bajo","Bajo","Alto","Alto","Alto","Bajo","Bajo",null,"Ibias","No aplica","No aplica","No aplica","Medio","Bajo","Bajo","Alto","Alto","Alto","Alto","Medio","Medio"]
[null,null,"Illano","No aplica","No aplica","No aplica","Medio","Bajo","Bajo","Bajo","Medio","Medio","Alto","Bajo","Bajo",null,"Illano","No aplica","No aplica","No aplica","Medio","Bajo","Bajo","Bajo","Alto","Alto","Alto","Medio","Medio"]
[null,null,"Illas","No aplica","No aplica","No aplica","Bajo","Bajo","Bajo","Bajo","Bajo","Medio","Medio","Bajo","Bajo",null,"Illas","No aplica","No aplica","No aplica","Bajo","Bajo","Bajo","Bajo","Medio","Alto","Medio","Medio","Medio"]
[null,null,"Langreo","No aplica","No aplica","No aplica","Medio","Alto","Alto","Bajo","Medio","Medio","Medio","Bajo","Bajo",null,"Langreo","No aplica","No aplica","No aplica","Medio","Alto","Alto","Bajo","Alto","Alto","Medio","Medio","Medio"]
[null,null,"Laviana","No aplica","No aplica","No aplica","Medio","Bajo","Bajo","Bajo","Medio","Alto","Medio","Bajo","Bajo",null,"Laviana","No aplica","No aplica","No aplica","Medio","Bajo","Bajo","Bajo","Alto","Alto","Medio","Medio","Medio"]
[null,null,"Lena","No aplica","No aplica","No aplica","Bajo","Bajo","Bajo","Bajo","Alto","Alto","Alto","Bajo","Bajo",null,"Lena","No aplica","No aplica","No aplica","Bajo","Bajo","Bajo","Alto","Alto","Alto","Alto","Medio","Medio"]
[null,null,"Llanera","No aplica","No aplica","No aplica","Bajo","Medio","Medio","Bajo","Bajo","Medio","Alto","Bajo","Bajo",null,"Llanera","No aplica","No aplica","No aplica","Bajo","Medio","Medio","Bajo","Medio","Alto","Alto","Medio","Medio"]
[null,null,"Llanes","Bajo","Bajo","Bajo","Medio","Bajo","Bajo","Bajo","Bajo","Medio","Bajo","Bajo","Bajo",null,"Llanes","Alto","Bajo","Alto","Medio","Bajo","Bajo","Bajo","Medio","Alto","Bajo","Alto","Alto"]
[null,null,"Mieres","No aplica","No aplica","No aplica","Medio","Alto","Alto","Bajo","Medio","Medio","Medio","Bajo","Bajo",null,"Mieres","No aplica","No aplica","No aplica","Medio","Alto","Alto","Bajo","Alto","Alto","Medio","Medio","Medio"]
[null,null,"Morcín","No aplica","No aplica","No aplica","Bajo","Medio","Medio","Bajo","Medio","Medio","Alto","Bajo","Bajo",null,"Morcín","No aplica","No aplica","No aplica","Bajo","Medio","Medio","Bajo","Alto","Alto","Alto","Medio","Medio"]
[null,null,"Muros de Nalón","Bajo","Bajo","Bajo","Bajo","Alto","Alto","Bajo","Bajo","Medio","Alto","Bajo","Bajo",null,"Muros de Nalón","Alto","Bajo","Alto","Bajo","Alto","Alto","Bajo","Medio","Alto","Alto","Alto","Alto"]
[null,null,"Nava","No aplica","No aplica","No aplica","Medio","Bajo","Bajo","Bajo","Medio","Bajo","Medio","Bajo","Bajo",null,"Nava","No aplica","No aplica","No aplica","Medio","Bajo","Bajo","Bajo","Alto","Alto","Medio","Medio","Medio"]
[null,null,"Navia","Bajo","Bajo","Bajo","Bajo","Alto","Alto","Bajo","Bajo","Medio","Medio","Bajo","Bajo",null,"Navia","Alto","Bajo","Alto","Bajo","Alto","Alto","Bajo","Medio","Alto","Medio","Alto","Alto"]
[null,null,"Negueira de Muñiz","No aplica","No aplica","No aplica","Bajo","Alto","Alto","Bajo","Medio","Alto","Medio","Bajo","Bajo",null,"Negueira de Muñiz","No aplica","No aplica","No aplica","Bajo","Alto","Alto","Bajo","Alto","Alto","Medio","Medio","Medio"]
[null,null,"Noreña","No aplica","No aplica","No aplica","Bajo","Bajo","Bajo","Bajo","Medio","Medio","Alto","Bajo","Bajo",null,"Noreña","No aplica","No aplica","No aplica","Bajo","Bajo","Bajo","Bajo","Alto","Alto","Alto","Medio","Medio"]
[null,null,"Onís","No aplica","No aplica","No aplica","Medio","Alto","Alto","Bajo","Bajo","Medio","Bajo","Bajo","Bajo",null,"Onís","No aplica","No aplica","No aplica","Medio","Alto","Alto","Alto","Medio","Alto","Bajo","Medio","Medio"]
[null,null,"Oviedo","No aplica","No aplica","No aplica","Bajo","Alto","Alto","Bajo","Medio","Medio","Alto","Bajo","Bajo",null,"Oviedo","No aplica","No aplica","No aplica","Bajo","Alto","Alto","Bajo","Alto","Alto","Alto","Medio","Medio"]
[null,null,"Parres","No aplica","No aplica","No aplica","Medio","Bajo","Bajo","Bajo","Medio","Bajo","Medio","Bajo","Bajo",null,"Parres","No aplica","No aplica","No aplica","Medio","Bajo","Bajo","Bajo","Alto","Alto","Medio","Medio","Medio"]
[null,null,"Peñamellera Alta","No aplica","No aplica","No aplica","Medio","Alto","Alto","Bajo","Bajo","Bajo","Medio","Bajo","Bajo",null,"Peñamellera Alta","No aplica","No aplica","No aplica","Medio","Alto","Alto","Alto","Medio","Alto","Medio","Medio","Medio"]
[null,null,"Peñamellera Baja","No aplica","No aplica","No aplica","Medio","Bajo","Bajo","Bajo","Medio","Medio","Alto","Bajo","Bajo",null,"Peñamellera Baja","No aplica","No aplica","No aplica","Medio","Bajo","Bajo","Alto","Alto","Alto","Alto","Medio","Medio"]
[null,null,"Pesoz","No aplica","No aplica","No aplica","Bajo","Bajo","Bajo","Bajo","Medio","Alto","Alto","Bajo","Bajo",null,"Pesoz","No aplica","No aplica","No aplica","Bajo","Bajo","Bajo","Bajo","Alto","Alto","Alto","Medio","Medio"]
[null,null,"Piloña","No aplica","No aplica","No aplica","Medio","Bajo","Bajo","Bajo","Medio","Bajo","Alto","Bajo","Bajo",null,"Piloña","No aplica","No aplica","No aplica","Medio","Bajo","Bajo","Bajo","Alto","Medio","Alto","Medio","Medio"]
[null,null,"Ponga","No aplica","No aplica","No aplica","Medio","Alto","Alto","Bajo","Alto","Alto","Alto","Bajo","Bajo",null,"Ponga","No aplica","No aplica","No aplica","Medio","Alto","Alto","Alto","Alto","Alto","Alto","Medio","Medio"]
[null,null,"Pravia","No aplica","No aplica","No aplica","Bajo","Bajo","Bajo","Bajo","Bajo","Medio","Alto","Bajo","Bajo",null,"Pravia","No aplica","No aplica","No aplica","Bajo","Bajo","Bajo","Bajo","Medio","Alto","Alto","Medio","Medio"]
[null,null,"Proaza","No aplica","No aplica","No aplica","Bajo","Bajo","Bajo","Bajo","Bajo","Alto","Medio","Bajo","Bajo",null,"Proaza","No aplica","No aplica","No aplica","Bajo","Bajo","Bajo","Bajo","Medio","Alto","Medio","Medio","Medio"]
[null,null,"Quirós","No aplica","No aplica","No aplica","Bajo","Bajo","Bajo","Bajo","Medio","Alto","Alto","Bajo","Bajo",null,"Quirós","No aplica","No aplica","No aplica","Bajo","Bajo","Bajo","Alto","Medio","Alto","Alto","Medio","Medio"]
[null,null,"Las Regueras","No aplica","No aplica","No aplica","Bajo","Alto","Alto","Bajo","Medio","Medio","Alto","Bajo","Bajo",null,"Las Regueras","No aplica","No aplica","No aplica","Bajo","Alto","Alto","Bajo","Alto","Alto","Alto","Medio","Medio"]
[null,null,"Ribadedeva","Bajo","Medio","Bajo","Bajo","Alto","Alto","Bajo","Bajo","Medio","Medio","Bajo","Bajo",null,"Ribadedeva","Alto","Medio","Alto","Bajo","Alto","Alto","Bajo","Medio","Alto","Medio","Alto","Alto"]
[null,null,"Ribadesella","Bajo","Medio","Bajo","Medio","Alto","Alto","Bajo","Bajo","Medio","Medio","Bajo","Bajo",null,"Ribadesella","Alto","Bajo","Alto","Medio","Alto","Alto","Bajo","Medio","Alto","Medio","Alto","Alto"]
[null,null,"Ribera de Arriba","No aplica","No aplica","No aplica","Bajo","Bajo","Bajo","Bajo","Medio","Bajo","Medio","Bajo","Bajo",null,"Ribera de Arriba","No aplica","No aplica","No aplica","Bajo","Bajo","Bajo","Bajo","Alto","Alto","Medio","Medio","Medio"]
[null,null,"Riosa","No aplica","No aplica","No aplica","Bajo","Alto","Alto","Bajo","Medio","Alto","Alto","Bajo","Bajo",null,"Riosa","No aplica","No aplica","No aplica","Bajo","Alto","Alto","Bajo","Alto","Alto","Alto","Medio","Medio"]
[null,null,"Salas","No aplica","No aplica","No aplica","Medio","Alto","Alto","Bajo","Bajo","Medio","Medio","Bajo","Bajo",null,"Salas","No aplica","No aplica","No aplica","Medio","Alto","Alto","Bajo","Medio","Alto","Medio","Medio","Medio"]
[null,null,"Santa Eulalia de Oscos","No aplica","No aplica","No aplica","Bajo","Bajo","Bajo","Bajo","Medio","Alto","Medio","Bajo","Bajo",null,"Santa Eulalia de Oscos","No aplica","No aplica","No aplica","Bajo","Bajo","Bajo","Bajo","Alto","Alto","Medio","Medio","Medio"]
[null,null,"San Martín del Rey Aurelio","No aplica","No aplica","No aplica","Medio","Bajo","Bajo","Bajo","Medio","Bajo","Alto","Bajo","Bajo",null,"San Martín del Rey Aurelio","No aplica","No aplica","No aplica","Medio","Bajo","Bajo","Bajo","Alto","Alto","Alto","Medio","Medio"]
[null,null,"San Martín de Oscos","No aplica","No aplica","No aplica","Bajo","Bajo","Bajo","Bajo","Medio","Alto","Medio","Bajo","Bajo",null,"San Martín de Oscos","No aplica","No aplica","No aplica","Bajo","Bajo","Bajo","Bajo","Alto","Alto","Medio","Medio","Medio"]
[null,null,"San Tirso de Abres","No aplica","No aplica","No aplica","Bajo","Bajo","Bajo","Bajo","Medio","Medio","Medio","Bajo","Bajo",null,"San Tirso de Abres","No aplica","No aplica","No aplica","Bajo","Bajo","Bajo","Bajo","Alto","Alto","Medio","Medio","Medio"]
[null,null,"Santo Adriano","No aplica","No aplica","No aplica","Bajo","Medio","Medio","Bajo","Medio","Medio","Alto","Bajo","Bajo",null,"Santo Adriano","No aplica","No aplica","No aplica","Bajo","Medio","Medio","Bajo","Alto","Alto","Alto","Medio","Medio"]
[null,null,"Sariego","No aplica","No aplica","No aplica","Medio","Alto","Alto","Bajo","Medio","Bajo","Medio","Bajo","Bajo",null,"Sariego","No aplica","No aplica","No aplica","Medio","Alto","Alto","Bajo","Alto","Alto","Medio","Medio","Medio"]
[null,null,"Siero","No aplica","No aplica","No aplica","Medio","Bajo","Bajo","Bajo","Medio","Medio","Bajo","Bajo","Bajo",null,"Siero","No aplica","No aplica","No aplica","Medio","Bajo","Bajo","Bajo","Alto","Alto","Bajo","Medio","Medio"]
[null,null,"Sobrescobio","No aplica","No aplica","No aplica","Medio","Bajo","Bajo","Bajo","Alto","Alto","Alto","Bajo","Bajo",null,"Sobrescobio","No aplica","No aplica","No aplica","Medio","Bajo","Bajo","Alto","Alto","Alto","Alto","Medio","Medio"]
[null,null,"Somiedo","No aplica","No aplica","No aplica","Bajo","Alto","Alto","Bajo","Medio","Alto","Alto","Bajo","Bajo",null,"Somiedo","No aplica","No aplica","No aplica","Bajo","Alto","Alto","Alto","Medio","Alto","Alto","Medio","Medio"]
[null,null,"Soto del Barco","Bajo","Bajo","Bajo","Bajo","Bajo","Bajo","Bajo","Bajo","Medio","Medio","Bajo","Bajo",null,"Soto del Barco","Alto","Bajo","Alto","Bajo","Bajo","Bajo","Bajo","Medio","Alto","Medio","Alto","Alto"]
[null,null,"Tapia de Casariego","Bajo","Bajo","Bajo","Bajo","Bajo","Bajo","Bajo","Bajo","Medio","Bajo","Bajo","Bajo",null,"Tapia de Casariego","Alto","Bajo","Alto","Bajo","Bajo","Bajo","Bajo","Medio","Alto","Bajo","Alto","Alto"]
[null,null,"Taramundi","No aplica","No aplica","No aplica","Bajo","Bajo","Bajo","Bajo","Medio","Medio","Alto","Bajo","Bajo",null,"Taramundi","No aplica","No aplica","No aplica","Bajo","Bajo","Bajo","Bajo","Alto","Alto","Alto","Medio","Medio"]
[null,null,"Teverga","No aplica","No aplica","No aplica","Bajo","Bajo","Bajo","Bajo","Medio","Alto","Alto","Bajo","Bajo",null,"Teverga","No aplica","No aplica","No aplica","Bajo","Bajo","Bajo","Alto","Medio","Alto","Alto","Medio","Medio"]
[null,null,"Tineo","No aplica","No aplica","No aplica","Medio","Alto","Alto","Bajo","Medio","Alto","Medio","Bajo","Bajo",null,"Tineo","No aplica","No aplica","No aplica","Medio","Alto","Alto","Bajo","Alto","Alto","Medio","Medio","Medio"]
[null,null,"Valdés","Bajo","Bajo","Bajo","Medio","Bajo","Bajo","Bajo","Bajo","Medio","Medio","Bajo","Bajo",null,"Valdés","Alto","Bajo","Alto","Medio","Bajo","Bajo","Bajo","Medio","Alto","Medio","Alto","Alto"]
[null,null,"Vegadeo","No aplica","No aplica","No aplica","Bajo","Bajo","Bajo","Bajo","Bajo","Medio","Medio","Bajo","Bajo",null,"Vegadeo","No aplica","No aplica","No aplica","Bajo","Bajo","Bajo","Bajo","Medio","Alto","Medio","Medio","Medio"]
[null,null,"Villanueva de Oscos","No aplica","No aplica","No aplica","Bajo","Alto","Alto","Bajo","Medio","Medio","Medio","Bajo","Bajo",null,"Villanueva de Oscos","No aplica","No aplica","No aplica","Bajo","Alto","Alto","Bajo","Alto","Alto","Medio","Medio","Medio"]
[null,null,"Villaviciosa","Bajo","Bajo","Bajo","Medio","Bajo","Bajo","Bajo","Bajo","Medio","Medio","Bajo","Bajo",null,"Villaviciosa","Alto","Bajo","Alto","Medio","Bajo","Bajo","Bajo","Medio","Alto","Medio","Alto","Alto"]
[null,null,"Villayón","No aplica","No aplica","No aplica","Medio","Bajo","Bajo","Bajo","Bajo","Medio","Alto","Bajo","Bajo",null,"Villayón","No aplica","No aplica","No aplica","Medio","Bajo","Bajo","Bajo","Medio","Alto","Alto","Medio","Medio"]
[null,null,"Yernes y Tameza","No aplica","No aplica","No aplica","Bajo","Bajo","Bajo","Bajo","Medio","Medio","Alto","Bajo","Bajo",null,"Yernes y Tameza","No aplica","No aplica","No aplica","Bajo","Bajo","Bajo","Bajo","Alto","Alto","Alto","Medio","Medio"]
[]
[]
[]
[null,"3. TABLAS DE EQUIVALENCIAS",null,null,null,"4. TABLA DE VULNERABILIDAD"]
[]
[null,null,"Texto","Valor",null,null,null,"EXPOSICIÓN"]
[null,null,"Bajo",1,null,null,null,"ALTO","MEDIO","BAJO"]
[null,null,"Medio",2,null,"SENSIBILIDAD \n(puntuación más alta)","ALTO","Alto","Alto","Medio"]
[null,null,"Alto",3,null,null,"MEDIO","Alto","Medio","Bajo"]
[null,null,null,null,null,null,"BAJO","Medio","Bajo","Bajo"]
[]
[]
[null,"5. TABLAS DE PROBABILIDAD"]
[null,null,null,null,null,null,"Aumento del nivel medio del mar",null,null,"Movimiento de ladera",null,null,"Eventos meteorológicos extremos (tormentas y borrascas)"]
[null,null,"Texto","Valor","% ref.",null,"Municipio","Probabilidad",null,"Municipio","Probabilidad",null,"Municipio","Probabilidad"]
[null,null,"No aplica",0,"-",null,"Allande","No aplica",null,"Allande","Raro",null,"Allande","Raro"]
[null,null,"Raro",1,0.05,null,"Aller","No aplica",null,"Aller","Raro",null,"Aller","Raro"]
[null,null,"Improbable",2,0.2,null,"Amieva","No aplica",null,"Amieva","Raro",null,"Amieva","Raro"]
[null,null,"Moderado",3,0.5,null,"Avilés","Casi seguro",null,"Avilés","Raro",null,"Avilés","Raro"]
[null,null,"Probable",4,0.8,null,"Belmonte de Miranda","No aplica",null,"Belmonte de Miranda","Raro",null,"Belmonte de Miranda","Raro"]
[null,null,"Casi seguro",5,0.95,null,"Bimenes","No aplica",null,"Bimenes","Raro",null,"Bimenes","Raro"]
[null,null,null,null,null,null,"Cabrales","No aplica",null,"Cabrales","Raro",null,"Cabrales","Raro"]
[null,null,null,null,null,null,"Cabranes","No aplica",null,"Cabranes","Raro",null,"Cabranes","Raro"]
[null,null,"Inundaciones",null,null,null,"Candamo","No aplica",null,"Candamo","Raro",null,"Candamo","Raro"]
[null,null,"Municipio","Probabilidad",null,null,"Cangas del Narcea","No aplica",null,"Cangas del Narcea","Raro",null,"Cangas del Narcea","Raro"]
[null,null,"Allande","Moderado",null,null,"Cangas de Onís","No aplica",null,"Cangas de Onís","Raro",null,"Cangas de Onís","Raro"]
[null,null,"Aller","Probable",null,null,"Caravia","Probable",null,"Caravia","Raro",null,"Caravia","Raro"]
[null,null,"Amieva","Improbable",null,null,"Carreño","Probable",null,"Carreño","Moderado",null,"Carreño","Moderado"]
[null,null,"Avilés","Improbable",null,null,"Caso","No aplica",null,"Caso","Raro",null,"Caso","Raro"]
[null,null,"Belmonte de Miranda","Probable",null,null,"Castrillón","Probable",null,"Castrillón","Raro",null,"Castrillón","Raro"]
[null,null,"Bimenes","Improbable",null,null,"Castropol","Probable",null,"Castropol","Raro",null,"Castropol","Raro"]
[null,null,"Cabrales","Improbable",null,null,"Coaña","Probable",null,"Coaña","Raro",null,"Coaña","Raro"]
[null,null,"Cabranes","Raro",null,null,"Colunga","Probable",null,"Colunga","Raro",null,"Colunga","Raro"]
[null,null,"Candamo","Moderado",null,null,"Corvera de Asturias","No aplica",null,"Corvera de Asturias","Raro",null,"Corvera de Asturias","Raro"]
[null,null,"Cangas del Narcea","Casi seguro",null,null,"Cudillero","Probable",null,"Cudillero","Moderado",null,"Cudillero","Moderado"]
[null,null,"Cangas de Onís","Probable",null,null,"Degaña","No aplica",null,"Degaña","Raro",null,"Degaña","Raro"]
[null,null,"Caravia","Raro",null,null,"El Franco","Probable",null,"El Franco","Raro",null,"El Franco","Raro"]
[null,null,"Carreño","Raro",null,null,"Gijón","Probable",null,"Gijón","Moderado",null,"Gijón","Moderado"]
[null,null,"Caso","Improbable",null,null,"Gozón","Probable",null,"Gozón","Raro",null,"Gozón","Raro"]
[null,null,"Castrillón","Moderado",null,null,"Grado","No aplica",null,"Grado","Raro",null,"Grado","Raro"]
[null,null,"Castropol","Improbable",null,null,"Grandas de Salime","No aplica",null,"Grandas de Salime","Raro",null,"Grandas de Salime","Raro"]
[null,null,"Coaña","Moderado",null,null,"Ibias","No aplica",null,"Ibias","Raro",null,"Ibias","Raro"]
[null,null,"Colunga","Casi seguro",null,null,"Illano","No aplica",null,"Illano","Raro",null,"Illano","Raro"]
[null,null,"Corvera de Asturias","Raro",null,null,"Illas","No aplica",null,"Illas","Raro",null,"Illas","Raro"]
[null,null,"Cudillero","Probable",null,null,"Langreo","No aplica",null,"Langreo","Raro",null,"Langreo","Raro"]
[null,null,"Degaña","Probable",null,null,"Laviana","No aplica",null,"Laviana","Raro",null,"Laviana","Raro"]
[null,null,"El Franco","Moderado",null,null,"Lena","No aplica",null,"Lena","Raro",null,"Lena","Raro"]
[null,null,"Gijón","Raro",null,null,"Llanera","No aplica",null,"Llanera","Raro",null,"Llanera","Raro"]
[null,null,"Gozón","Raro",null,null,"Llanes","Probable",null,"Llanes","Moderado",null,"Llanes","Moderado"]
[null,null,"Grado","Moderado",null,null,"Mieres","No aplica",null,"Mieres","Raro",null,"Mieres","Raro"]
[null,null,"Grandas de Salime","Raro",null,null,"Morcín","No aplica",null,"Morcín","Raro",null,"Morcín","Raro"]
[null,null,"Ibias","Probable",null,null,"Muros de Nalón","Casi seguro",null,"Muros de Nalón","Raro",null,"Muros de Nalón","Raro"]
[null,null,"Illano","Raro",null,null,"Nava","No aplica",null,"Nava","Raro",null,"Nava","Raro"]
[null,null,"Illas","Raro",null,null,"Navia","Casi seguro",null,"Navia","Raro",null,"Navia","Raro"]
[null,null,"Langreo","Improbable",null,null,"Negueira de Muñiz","No aplica",null,"Negueira de Muñiz","Raro",null,"Negueira de Muñiz","Raro"]
[null,null,"Laviana","Moderado",null,null,"Noreña","No aplica",null,"Noreña","Raro",null,"Noreña","Raro"]
[null,null,"Lena","Moderado",null,null,"Onís","No aplica",null,"Onís","Raro",null,"Onís","Raro"]
[null,null,"Llanera","Improbable",null,null,"Oviedo","No aplica",null,"Oviedo","Raro",null,"Oviedo","Raro"]
[null,null,"Llanes","Probable",null,null,"Parres","No aplica",null,"Parres","Raro",null,"Parres","Raro"]
[null,null,"Mieres","Moderado",null,null,"Peñamellera Alta","No aplica",null,"Peñamellera Alta","Raro",null,"Peñamellera Alta","Raro"]
[null,null,"Morcín","Improbable",null,null,"Peñamellera Baja","No aplica",null,"Peñamellera Baja","Raro",null,"Peñamellera Baja","Raro"]
[null,null,"Muros de Nalón","Raro",null,null,"Pesoz","No aplica",null,"Pesoz","Raro",null,"Pesoz","Raro"]
[null,null,"Nava","Raro",null,null,"Piloña","No aplica",null,"Piloña","Raro",null,"Piloña","Raro"]
[null,null,"Navia","Moderado",null,null,"Ponga","No aplica",null,"Ponga","Raro",null,"Ponga","Raro"]
[null,null,"Negueira de Muñiz","Raro",null,null,"Pravia","No aplica",null,"Pravia","Raro",null,"Pravia","Raro"]
[null,null,"Noreña","Moderado",null,null,"Proaza","No aplica",null,"Proaza","Raro",null,"Proaza","Raro"]
[null,null,"Onís","Improbable",null,null,"Quirós","No aplica",null,"Quirós","Raro",null,"Quirós","Raro"]
[null,null,"Oviedo","Casi seguro",null,null,"Las Regueras","No aplica",null,"Las Regueras","Raro",null,"Las Regueras","Raro"]
[null,null,"Parres","Moderado",null,null,"Ribadedeva","Probable",null,"Ribadedeva","Raro",null,"Ribadedeva","Raro"]
[null,null,"Peñamellera Alta","Improbable",null,null,"Ribadesella","Casi seguro",null,"Ribadesella","Raro",null,"Ribadesella","Raro"]
[null,null,"Peñamellera Baja","Moderado",null,null,"Ribera de Arriba","No aplica",null,"Ribera de Arriba","Raro",null,"Ribera de Arriba","Raro"]
[null,null,"Pesoz","Raro",null,null,"Riosa","No aplica",null,"Riosa","Raro",null,"Riosa","Raro"]
[null,null,"Piloña","Moderado",null,null,"Salas","No aplica",null,"Salas","Raro",null,"Salas","Raro"]
[null,null,"Ponga","Improbable",null,null,"Santa Eulalia de Oscos","No aplica",null,"Santa Eulalia de Oscos","Raro",null,"Santa Eulalia de Oscos","Raro"]
[null,null,"Pravia","Casi seguro",null,null,"San Martín del Rey Aurelio","No aplica",null,"San Martín del Rey Aurelio","Raro",null,"San Martín del Rey Aurelio","Raro"]
[null,null,"Proaza","Improbable",null,null,"San Martín de Oscos","No aplica",null,"San Martín de Oscos","Raro",null,"San Martín de Oscos","Raro"]
[null,null,"Quirós","Moderado",null,null,"San Tirso de Abres","No aplica",null,"San Tirso de Abres","Raro",null,"San Tirso de Abres","Raro"]
[null,null,"Las Regueras","Improbable",null,null,"Santo Adriano","No aplica",null,"Santo Adriano","Raro",null,"Santo Adriano","Raro"]
[null,null,"Ribadedeva","Moderado",null,null,"Sariego","No aplica",null,"Sariego","Raro",null,"Sariego","Raro"]
[null,null,"Ribadesella","Moderado",null,null,"Siero","No aplica",null,"Siero","Raro",null,"Siero","Raro"]
[null,null,"Ribera de Arriba","Improbable",null,null,"Sobrescobio","No aplica",null,"Sobrescobio","Raro",null,"Sobrescobio","Raro"]
[null,null,"Riosa","Raro",null,null,"Somiedo","No aplica",null,"Somiedo","Raro",null,"Somiedo","Raro"]
[null,null,"Salas","Casi seguro",null,null,"Soto del Barco","Casi seguro",null,"Soto del Barco","Raro",null,"Soto del Barco","Raro"]
[null,null,"Santa Eulalia de Oscos","Raro",null,null,"Tapia de Casariego","Probable",null,"Tapia de Casariego","Raro",null,"Tapia de Casariego","Raro"]
[null,null,"San Martín del Rey Aurelio","Improbable",null,null,"Taramundi","No aplica",null,"Taramundi","Raro",null,"Taramundi","Raro"]
[null,null,"San Martín de Oscos","Raro",null,null,"Teverga","No aplica",null,"Teverga","Raro",null,"Teverga","Raro"]
[null,null,"San Tirso de Abres","Improbable",null,null,"Tineo","No aplica",null,"Tineo","Raro",null,"Tineo","Raro"]
[null,null,"Santo Adriano","Improbable",null,null,"Valdés","Probable",null,"Valdés","Moderado",null,"Valdés","Moderado"]
[null,null,"Sariego","Raro",null,null,"Vegadeo","No aplica",null,"Vegadeo","Raro",null,"Vegadeo","Raro"]
[null,null,"Siero","Casi seguro",null,null,"Villanueva de Oscos","No aplica",null,"Villanueva de Oscos","Raro",null,"Villanueva de Oscos","Raro"]
[null,null,"Sobrescobio","Improbable",null,null,"Villaviciosa","Probable",null,"Villaviciosa","Raro",null,"Villaviciosa","Raro"]
[null,null,"Somiedo","Raro",null,null,"Villayón","No aplica",null,"Villayón","Raro",null,"Villayón","Raro"]
[null,null,"Soto del Barco","Improbable",null,null,"Yernes y Tameza","No aplica",null,"Yernes y Tameza","Raro",null,"Yernes y Tameza","Raro"]
[null,null,"Tapia de Casariego","Improbable"]
[null,null,"Taramundi","Raro"]
[null,null,"Teverga","Improbable"]
[null,null,"Tineo","Improbable"]
[null,null,"Valdés","Casi seguro"]
[null,null,"Vegadeo","Moderado"]
[null,null,"Villanueva de Oscos","Improbable"]
[null,null,"Villaviciosa","Improbable"]
[null,null,"Villayón","Improbable"]
[null,null,"Yernes y Tameza","Raro"]
[]
[]
[null,null,"Inundaciones costeras",null,null,"Eventos extremos costeros (temporales)",null,null,"Cambios en el régimen nival"]
[null,null,"Municipio","Probabilidad",null,"Municipio","Probabilidad",null,"Municipio","Probabilidad"]
[null,null,"Allande","No aplica",null,"Allande","No aplica",null,"Allande","Raro"]
[null,null,"Aller","No aplica",null,"Aller","No aplica",null,"Aller","Raro"]
[null,null,"Amieva","No aplica",null,"Amieva","No aplica",null,"Amieva","Probable"]
[null,null,"Avilés","Casi seguro",null,"Avilés","Raro",null,"Avilés","Raro"]
[null,null,"Belmonte de Miranda","No aplica",null,"Belmonte de Miranda","No aplica",null,"Belmonte de Miranda","Raro"]
[null,null,"Bimenes","No aplica",null,"Bimenes","No aplica",null,"Bimenes","Raro"]
[null,null,"Cabrales","No aplica",null,"Cabrales","No aplica",null,"Cabrales","Probable"]
[null,null,"Cabranes","No aplica",null,"Cabranes","No aplica",null,"Cabranes","Raro"]
[null,null,"Candamo","No aplica",null,"Candamo","No aplica",null,"Candamo","Raro"]
[null,null,"Cangas del Narcea","No aplica",null,"Cangas del Narcea","No aplica",null,"Cangas del Narcea","Probable"]
[null,null,"Cangas de Onís","No aplica",null,"Cangas de Onís","No aplica",null,"Cangas de Onís","Probable"]
[null,null,"Caravia","Probable",null,"Caravia","Raro",null,"Caravia","Raro"]
[null,null,"Carreño","Moderado",null,"Carreño","Moderado",null,"Carreño","Raro"]
[null,null,"Caso","No aplica",null,"Caso","No aplica",null,"Caso","Raro"]
[null,null,"Castrillón","Probable",null,"Castrillón","Raro",null,"Castrillón","Raro"]
[null,null,"Castropol","Probable",null,"Castropol","Raro",null,"Castropol","Raro"]
[null,null,"Coaña","Probable",null,"Coaña","Raro",null,"Coaña","Raro"]
[null,null,"Colunga","Probable",null,"Colunga","Raro",null,"Colunga","Raro"]
[null,null,"Corvera de Asturias","No aplica",null,"Corvera de Asturias","No aplica",null,"Corvera de Asturias","Raro"]
[null,null,"Cudillero","Moderado",null,"Cudillero","Moderado",null,"Cudillero","Raro"]
[null,null,"Degaña","No aplica",null,"Degaña","No aplica",null,"Degaña","Probable"]
[null,null,"El Franco","Probable",null,"El Franco","Raro",null,"El Franco","Raro"]
[null,null,"Gijón","Moderado",null,"Gijón","Moderado",null,"Gijón","Raro"]
[null,null,"Gozón","Probable",null,"Gozón","Raro",null,"Gozón","Raro"]
[null,null,"Grado","No aplica",null,"Grado","No aplica",null,"Grado","Raro"]
[null,null,"Grandas de Salime","No aplica",null,"Grandas de Salime","No aplica",null,"Grandas de Salime","Raro"]
[null,null,"Ibias","No aplica",null,"Ibias","No aplica",null,"Ibias","Probable"]
[null,null,"Illano","No aplica",null,"Illano","No aplica",null,"Illano","Raro"]
[null,null,"Illas","No aplica",null,"Illas","No aplica",null,"Illas","Raro"]
[null,null,"Langreo","No aplica",null,"Langreo","No aplica",null,"Langreo","Raro"]
[null,null,"Laviana","No aplica",null,"Laviana","No aplica",null,"Laviana","Raro"]
[null,null,"Lena","No aplica",null,"Lena","No aplica",null,"Lena","Raro"]
[null,null,"Llanera","No aplica",null,"Llanera","No aplica",null,"Llanera","Raro"]
[null,null,"Llanes","Moderado",null,"Llanes","Moderado",null,"Llanes","Raro"]
[null,null,"Mieres","No aplica",null,"Mieres","No aplica",null,"Mieres","Raro"]
[null,null,"Morcín","No aplica",null,"Morcín","No aplica",null,"Morcín","Raro"]
[null,null,"Muros de Nalón","Casi seguro",null,"Muros de Nalón","Raro",null,"Muros de Nalón","Raro"]
[null,null,"Nava","No aplica",null,"Nava","No aplica",null,"Nava","Raro"]
[null,null,"Navia","Casi seguro",null,"Navia","Raro",null,"Navia","Raro"]
[null,null,"Negueira de Muñiz","No aplica",null,"Negueira de Muñiz","No aplica",null,"Negueira de Muñiz","Raro"]
[null,null,"Noreña","No aplica",null,"Noreña","No aplica",null,"Noreña","Raro"]
[null,null,"Onís","No aplica",null,"Onís","No aplica",null,"Onís","Probable"]
[null,null,"Oviedo","No aplica",null,"Oviedo","No aplica",null,"Oviedo","Raro"]
[null,null,"Parres","No aplica",null,"Parres","No aplica",null,"Parres","Raro"]
[null,null,"Peñamellera Alta","No aplica",null,"Peñamellera Alta","No aplica",null,"Peñamellera Alta","Probable"]
[null,null,"Peñamellera Baja","No aplica",null,"Peñamellera Baja","No aplica",null,"Peñamellera Baja","Probable"]
[null,null,"Pesoz","No aplica",null,"Pesoz","No aplica",null,"Pesoz","Raro"]
[null,null,"Piloña","No aplica",null,"Piloña","No aplica",null,"Piloña","Raro"]
[null,null,"Ponga","No aplica",null,"Ponga","No aplica",null,"Ponga","Probable"]
[null,null,"Pravia","No aplica",null,"Pravia","No aplica",null,"Pravia","Raro"]
[null,null,"Proaza","No aplica",null,"Proaza","No aplica",null,"Proaza","Raro"]
[null,null,"Quirós","No aplica",null,"Quirós","No aplica",null,"Quirós","Probable"]
[null,null,"Las Regueras","No aplica",null,"Las Regueras","No aplica",null,"Las Regueras","Raro"]
[null,null,"Ribadedeva","Probable",null,"Ribadedeva","Raro",null,"Ribadedeva","Raro"]
[null,null,"Ribadesella","Casi seguro",null,"Ribadesella","Raro",null,"Ribadesella","Raro"]
[null,null,"Ribera de Arriba","No aplica",null,"Ribera de Arriba","No aplica",null,"Ribera de Arriba","Raro"]
[null,null,"Riosa","No aplica",null,"Riosa","No aplica",null,"Riosa","Raro"]
[null,null,"Salas","No aplica",null,"Salas","No aplica",null,"Salas","Raro"]
[null,null,"Santa Eulalia de Oscos","No aplica",null,"Santa Eulalia de Oscos","No aplica",null,"Santa Eulalia de Oscos","Raro"]
[null,null,"San Martín del Rey Aurelio","No aplica",null,"San Martín del Rey Aurelio","No aplica",null,"San Martín del Rey Aurelio","Raro"]
[null,null,"San Martín de Oscos","No aplica",null,"San Martín de Oscos","No aplica",null,"San Martín de Oscos","Raro"]
[null,null,"San Tirso de Abres","No aplica",null,"San Tirso de Abres","No aplica",null,"San Tirso de Abres","Raro"]
[null,null,"Santo Adriano","No aplica",null,"Santo Adriano","No aplica",null,"Santo Adriano","Raro"]
[null,null,"Sariego","No aplica",null,"Sariego","No aplica",null,"Sariego","Raro"]
[null,null,"Siero","No aplica",null,"Siero","No aplica",null,"Siero","Raro"]
[null,null,"Sobrescobio","No aplica",null,"Sobrescobio","No aplica",null,"Sobrescobio","Probable"]
[null,null,"Somiedo","No aplica",null,"Somiedo","No aplica",null,"Somiedo","Probable"]
[null,null,"Soto del Barco","Casi seguro",null,"Soto del Barco","Raro",null,"Soto del Barco","Raro"]
[null,null,"Tapia de Casariego","Probable",null,"Tapia de Casariego","Raro",null,"Tapia de Casariego","Raro"]
[null,null,"Taramundi","No aplica",null,"Taramundi","No aplica",null,"Taramundi","Raro"]
[null,null,"Teverga","No aplica",null,"Teverga","No aplica",null,"Teverga","Probable"]
[null,null,"Tineo","No aplica",null,"Tineo","No aplica",null,"Tineo","Raro"]
[null,null,"Valdés","Moderado",null,"Valdés","Moderado",null,"Valdés","Raro"]
[null,null,"Vegadeo","No aplica",null,"Vegadeo","No aplica",null,"Vegadeo","Raro"]
[null,null,"Villanueva de Oscos","No aplica",null,"Villanueva de Oscos","No aplica",null,"Villanueva de Oscos","Raro"]
[null,null,"Villaviciosa","Probable",null,"Villaviciosa","Raro",null,"Villaviciosa","Raro"]
[null,null,"Villayón","No aplica",null,"Villayón","No aplica",null,"Villayón","Raro"]
[null,null,"Yernes y Tameza","No aplica",null,"Yernes y Tameza","No aplica",null,"Yernes y Tameza","Raro"]
[]
[]
[]
[null,"6. TABLAS DE IMPACTO"]
[]
[]
[null,null,"Categoría del proyecto","Aumento del nivel del mar","Inundaciones costeras","Eventos extremos costeros  (temporales)","Cambio en el régimen de precipitaciones","Inundaciones fluviomarinas","Inundaciones torrenciales","Cambios en el régimen nival","Incremento de la temperatura","Olas de calor","Movimientos de ladera","Cambios en el régimen de vientos","Eventos meteorológicos extremos"]
[null,null,"Mejora de la eficiencia energética en edificios","Leve","Leve","Leve","Leve","Leve","Leve","Leve","Leve","Leve","Leve","Leve","Leve"]
[null,null,"Mejora genérica de edificios","Leve","Moderado","Moderado","Moderado","Moderado","Moderado","Leve","Leve","Leve","Leve","Leve","Moderado"]
[null,null,"Mejoras en el entorno de los edificios","Moderado","Moderado","Moderado","Moderado","Moderado","Moderado","Moderado","Moderado","Moderado","Moderado","Moderado","Moderado"]
[null,null,"Construcción de edificios","Moderado","Moderado","Moderado","Moderado","Moderado","Moderado","Moderado","Moderado","Moderado","Moderado","Moderado","Moderado"]
[null,null,"Ampliación de edificios","Moderado","Moderado","Moderado","Moderado","Moderado","Moderado","Moderado","Moderado","Moderado","Moderado","Moderado","Moderado"]
[null,null,"Rehabilitación integral","Leve","Moderado","Moderado","Moderado","Moderado","Moderado","Leve","Leve","Leve","Leve","Leve","Moderado"]
[null,null,"Puntos de recogida de residuos","Moderado","Moderado","Moderado","Leve","Moderado","Moderado","Leve","Leve","Leve","Leve","Moderado","Moderado"]
[null,null,"Instalación de clasificación y reciclaje","Moderado","Grave","Grave","Moderado","Grave","Grave","Moderado","Moderado","Moderado","Grave","Leve","Grave"]
[null,null,"Instalación de gestión de residuos","Moderado","Grave","Grave","Moderado","Grave","Grave","Moderado","Moderado","Moderado","Grave","Leve","Grave"]
[null,null,"Plantas de valorización de residuos","Moderado","Grave","Grave","Moderado","Grave","Grave","Moderado","Moderado","Moderado","Grave","Leve","Grave"]
[null,null,"Infraestructuras de almacenamiento energético","Moderado","Moderado","Moderado","Moderado","Moderado","Moderado","Leve","Moderado","Moderado","Moderado","Leve","Moderado"]
[null,null,"Infraestructura para la generación de energía renovable","Moderado","Moderado","Moderado","Moderado","Moderado","Moderado","Leve","Moderado","Moderado","Moderado","Moderado","Moderado"]
[null,null,"Transporte y distribución","Moderado","Moderado","Moderado","Moderado","Moderado","Moderado","Leve","Moderado","Moderado","Moderado","Moderado","Moderado"]
[null,null,"Pequeñas y medianas estaciones de depuración de aguas residuales","Moderado","Moderado","Moderado","Moderado","Moderado","Moderado","Leve","Moderado","Moderado","Moderado","Moderado","Moderado"]
[null,null,"Grandes estaciones de depuración de aguas residuales","Grave","Grave","Grave","Grave","Grave","Grave","Moderado","Grave","Grave","Grave","Moderado","Grave"]
[null,null,"Actuaciones sobre sistemas de abastecimiento","Moderado","Moderado","Moderado","Moderado","Moderado","Moderado","Leve","Moderado","Moderado","Moderado","Leve","Moderado"]
[null,null,"Actuaciones de preservación, preparación y protección de los recursos hídricos","Moderado","Moderado","Moderado","Moderado","Moderado","Moderado","Leve","Moderado","Moderado","Moderado","Leve","Moderado"]
[null,null,"Instalaciones de distribución","Grave","Grave","Grave","Grave","Grave","Grave","Moderado","Grave","Grave","Grave","Moderado","Grave"]
[null,null,"Pantalán","Moderado","Moderado","Moderado","Moderado","Moderado","Moderado","Leve","Leve","Leve","Moderado","Leve","Moderado"]
[null,null,"Estructuras marítimas","Moderado","Grave","Grave","Leve","Grave","Moderado","Leve","Leve","Leve","Grave","Leve","Grave"]
[null,null,"Estructuras fluviales","Moderado","Moderado","Moderado","Leve","Grave","Grave","Leve","Leve","Leve","Grave","Leve","Grave"]
[null,null,"Escollera de protección","Grave","Grave","Grave","Leve","Grave","Moderado","Leve","Leve","Leve","Grave","Leve","Moderado"]
[null,null,"Estaciones de tratamiento de aguas potables","Moderado","Moderado","Moderado","Moderado","Moderado","Grave","Moderado","Grave","Grave","Grave","Moderado","Grave"]
[null,null,"Estaciones de bombeo","Moderado","Moderado","Moderado","Moderado","Moderado","Moderado","Leve","Moderado","Moderado","Grave","Moderado","Moderado"]
[null,null,"Encauzamiento","Grave","Moderado","Moderado","Moderado","Grave","Grave","Moderado","Moderado","Moderado","Grave","Leve","Grave"]
[null,null,"Galerías subterráneas/mineras","Moderado","Moderado","Moderado","Moderado","Moderado","Moderado","Leve","Moderado","Moderado","Moderado","Moderado","Moderado"]
[null,null,"Escollera de contención","Moderado","Moderado","Moderado","Moderado","Moderado","Moderado","Leve","Moderado","Moderado","Moderado","Moderado","Moderado"]
[null,null,"Adaptación cambio climático","Moderado","Moderado","Moderado","Moderado","Moderado","Moderado","Moderado","Moderado","Moderado","Moderado","Moderado","Moderado"]
[null,null,"Adaptación de terrenos/descontaminación","Moderado","Moderado","Moderado","Moderado","Moderado","Moderado","Moderado","Moderado","Moderado","Moderado","Moderado","Moderado"]
[null,null,"Infraestructura Verde","Moderado","Moderado","Moderado","Moderado","Moderado","Moderado","Moderado","Moderado","Moderado","Moderado","Moderado","Moderado"]

{"sheet":"Medidas","index":9,"n_rows":33,"n_cols":15,"rows_kept":33,"cut":false,"hidden":true,"merged":[]}
[]
[null,"TABLA MEDIDAS"]
[null,"Área","Categoría de operaciones de infraestructura","Aumento del Nivel del Mar","Inundaciones Costeras","Eventos Extremos Costeros","Cambio Régimen Lluvias","Inundación Fluvio-Marinas","Inundación Torrencial","Cambios Régimen Nival","Aumento Temp.","Olas de Calor","Movimientos de Ladera","Cambios Rég. Vientos","Eventos Meteo. Extremos"]
[null,"Edificios","Mejora de la eficiencia energética en edificios","•\tEvitar ubicaciones con riesgo potencial, como zonas propensas a inundaciones o con drenaje insuficiente. \n•\t Implementar sistemas de drenaje perimetral, incluyendo soluciones sostenibles como zanjas, canales y sistemas urbanos de drenaje sostenible (SUDS). \n•\tUtilizar pavimentos duros permeables en áreas ajardinadas y minimizar las superficies exteriores impermeables, promoviendo el uso extensivo de espacios verdes. \n•\tConsiderar las proyecciones climáticas y la capacidad de las redes de drenaje en el diseño y planificación de las edificaciones. \n•\tAplicar membranas impermeabilizantes en muros y suelos, emplear materiales densos en plantas bajas y soluciones resistentes a la condensación por encima del nivel del terreno, además de mejorar la capacidad estructural. \n•\tElevar las instalaciones sensibles, como tomas eléctricas, al menos un metro por encima del nivel del suelo acabado para prevenir daños por inundación. \n•\tConstruir barreras físicas, como muros o bancos de tierra, o redirigir los desagües para proteger el edificio frente a la entrada de agua. \n•\tModificar los umbrales de las puertas para permitir la instalación de barreras temporales, como sacos de arena. \n•\tEmplear materiales resistentes al agua en cimientos y zapatas, como aditivos para hormigón o bloques/ladrillos de alta densidad.","•\tEvitar ubicaciones con riesgo potencial, como zonas propensas a inundaciones o con drenaje insuficiente. \n•\t Implementar sistemas de drenaje perimetral, incluyendo soluciones sostenibles como zanjas, canales y sistemas urbanos de drenaje sostenible (SUDS). \n•\tUtilizar pavimentos duros permeables en áreas ajardinadas y minimizar las superficies exteriores impermeables, promoviendo el uso extensivo de espacios verdes. \n•\tConsiderar las proyecciones climáticas y la capacidad de las redes de drenaje en el diseño y planificación de las edificaciones. \n•\tAplicar membranas impermeabilizantes en muros y suelos, emplear materiales densos en plantas bajas y soluciones resistentes a la condensación por encima del nivel del terreno, además de mejorar la capacidad estructural. \n•\tElevar las instalaciones sensibles, como tomas eléctricas, al menos un metro por encima del nivel del suelo acabado para prevenir daños por inundación. \n•\tConstruir barreras físicas, como muros o bancos de tierra, o redirigir los desagües para proteger el edificio frente a la entrada de agua. \n•\tModificar los umbrales de las puertas para permitir la instalación de barreras temporales, como sacos de arena. \n•\tEmplear materiales resistentes al agua en cimientos y zapatas, como aditivos para hormigón o bloques/ladrillos de alta densidad.","•\tEvitar ubicaciones con riesgo potencial, como zonas propensas a inundaciones o con drenaje insuficiente. \n•\t Implementar sistemas de drenaje perimetral, incluyendo soluciones sostenibles como zanjas, canales y sistemas urbanos de drenaje sostenible (SUDS). \n•\tUtilizar pavimentos duros permeables en áreas ajardinadas y minimizar las superficies exteriores impermeables, promoviendo el uso extensivo de espacios verdes. \n•\tConsiderar las proyecciones climáticas y la capacidad de las redes de drenaje en el diseño y planificación de las edificaciones. \n•\tAplicar membranas impermeabilizantes en muros y suelos, emplear materiales densos en plantas bajas y soluciones resistentes a la condensación por encima del nivel del terreno, además de mejorar la capacidad estructural. \n•\tElevar las instalaciones sensibles, como tomas eléctricas, al menos un metro por encima del nivel del suelo acabado para prevenir daños por inundación. \n•\tConstruir barreras físicas, como muros o bancos de tierra, o redirigir los desagües para proteger el edificio frente a la entrada de agua. \n•\tModificar los umbrales de las puertas para permitir la instalación de barreras temporales, como sacos de arena. \n•\tEmplear materiales resistentes al agua en cimientos y zapatas, como aditivos para hormigón o bloques/ladrillos de alta densidad.","•\tEvitar ubicaciones con riesgo potencial, como zonas propensas a inundaciones o con drenaje insuficiente. \n•\t Implementar sistemas de drenaje perimetral, incluyendo soluciones sostenibles como zanjas, canales y sistemas urbanos de drenaje sostenible. \n•\tUtilizar pavimentos duros permeables en áreas ajardinadas y minimizar las superficies exteriores impermeables, promoviendo el uso extensivo de espacios verdes. \n•\tConsiderar las proyecciones climáticas y la capacidad de las redes de drenaje en el diseño y planificación de las edificaciones. \n•\tAplicar membranas impermeabilizantes en muros y suelos, emplear materiales densos en plantas bajas y soluciones resistentes a la condensación por encima del nivel del terreno, además de mejorar la capacidad estructural. \n•\tElevar las instalaciones sensibles, como tomas eléctricas, al menos un metro por encima del nivel del suelo acabado para prevenir daños por inundación. \n•\tConstruir barreras físicas, como muros o bancos de tierra, o redirigir los desagües para proteger el edificio frente a la entrada de agua. \n•\tModificar los umbrales de las puertas para permitir la instalación de barreras temporales, como sacos de arena. \n•\tEmplear materiales resistentes al agua en cimientos y zapatas, como aditivos para hormigón o bloques/ladrillos de alta densidad.","•\tEvitar ubicaciones con riesgo potencial, como zonas propensas a inundaciones o con drenaje insuficiente. \n•\t Implementar sistemas de drenaje perimetral, incluyendo soluciones sostenibles como zanjas, canales y sistemas urbanos de drenaje sostenible (SUDS). \n•\tUtilizar pavimentos duros permeables en áreas ajardinadas y minimizar las superficies exteriores impermeables, promoviendo el uso extensivo de espacios verdes. \n•\tConsiderar las proyecciones climáticas y la capacidad de las redes de drenaje en el diseño y planificación de las edificaciones. \n•\tAplicar membranas impermeabilizantes en muros y suelos, emplear materiales densos en plantas bajas y soluciones resistentes a la condensación por encima del nivel del terreno, además de mejorar la capacidad estructural. \n•\tElevar las instalaciones sensibles, como tomas eléctricas, al menos un metro por encima del nivel del suelo acabado para prevenir daños por inundación. \n•\tConstruir barreras físicas, como muros o bancos de tierra, o redirigir los desagües para proteger el edificio frente a la entrada de agua. \n•\tModificar los umbrales de las puertas para permitir la instalación de barreras temporales, como sacos de arena. \n•\tEmplear materiales resistentes al agua en cimientos y zapatas, como aditivos para hormigón o bloques/ladrillos de alta densidad.","•\tEvitar ubicaciones con riesgo potencial, como zonas propensas a inundaciones o con drenaje insuficiente. \n•\t Implementar sistemas de drenaje perimetral, incluyendo soluciones sostenibles como zanjas, canales y sistemas urbanos de drenaje sostenible (SUDS). \n•\tUtilizar pavimentos duros permeables en áreas ajardinadas y minimizar las superficies exteriores impermeables, promoviendo el uso extensivo de espacios verdes. \n•\tConsiderar las proyecciones climáticas y la capacidad de las redes de drenaje en el diseño y planificación de las edificaciones. \n•\tAplicar membranas impermeabilizantes en muros y suelos, emplear materiales densos en plantas bajas y soluciones resistentes a la condensación por encima del nivel del terreno, además de mejorar la capacidad estructural. \n•\tElevar las instalaciones sensibles, como tomas eléctricas, al menos un metro por encima del nivel del suelo acabado para prevenir daños por inundación. \n•\tConstruir barreras físicas, como muros o bancos de tierra, o redirigir los desagües para proteger el edificio frente a la entrada de agua. \n•\tModificar los umbrales de las puertas para permitir la instalación de barreras temporales, como sacos de arena. \n•\tEmplear materiales resistentes al agua en cimientos y zapatas, como aditivos para hormigón o bloques/ladrillos de alta densidad.","•\tRediseñar las cubiertas para considerar una carga por nieve variable y una mayor exposición a lluvias intensas y viento.\n•\tIncorporar pendientes más pronunciadas y sistemas de drenaje eficientes para evitar acumulaciones de agua por lluvias en lugar de nieve.\n•\tUsar revestimientos, selladores y materiales que soporten mejor la exposición prolongada a la lluvia y la humedad ambiental.\n•\tAdaptar el aislamiento para responder a inviernos menos fríos pero más húmedos, manteniendo el confort interior.\n•\tIncorporar ventilación mecánica controlada y materiales que eviten condensaciones en espacios habitables.\n•\tIntegrar proyecciones locales sobre el cambio en el régimen nival en el diseño de edificaciones nuevas y en rehabilitaciones.\n•\tIncorporar vegetación autóctona resistente a cambios en la humedad y temperatura, y que contribuya a la gestión del agua.","•\tRefuerzo de la resistencia estructural mediante riostras, contrafuertes y marcos más robustos.\n•\tReducción de carga con pórticos de madera o paneles estructurales aislantes (SIP) que permiten el movimiento del edificio.\n•\tUso de losas de cimentación para limitar el movimiento o losas independientes para permitir que la estructura “flote” y se renivele.\n•\tAumento de la profundidad de los pilotes o extensión hasta el nivel de roca para desacoplar la estructura del terreno.\n•\tSombreado del entorno (natural o artificial) y diseño arquitectónico que incluya parasoles, aleros en voladizo, intradoses profundos o fachadas de doble piel.\n•\tUso de vidrio de alto rendimiento para minimizar la transferencia de calor.\n•\tAumento del aislamiento térmico en la envolvente y las instalaciones del edificio.\n•\tMayor estanqueidad al aire en la envolvente para reducir infiltraciones.\n•\tUso de dispositivos de iluminación de bajo consumo para reducir las ganancias térmicas internas.\n•\tSustitución de la ventilación natural por sistemas de ventilación mecánica controlada.\n•\tIncorporación de sistemas de refrigeración de alto rendimiento o mayor eficiencia.","•\tRefuerzo de la resistencia estructural mediante riostras, contrafuertes y marcos más robustos.\n•\tReducción de carga con pórticos de madera o paneles estructurales aislantes (SIP) que permiten el movimiento del edificio.\n•\tUso de losas de cimentación para limitar el movimiento o losas independientes para permitir que la estructura “flote” y se renivele.\n•\tAumento de la profundidad de los pilotes o extensión hasta el nivel de roca para desacoplar la estructura del terreno.\n•\tSombreado del entorno (natural o artificial) y diseño arquitectónico que incluya parasoles, aleros en voladizo, intradoses profundos o fachadas de doble piel.\n•\tUso de vidrio de alto rendimiento para minimizar la transferencia de calor.\n•\tAumento del aislamiento térmico en la envolvente y las instalaciones del edificio.\n•\tMayor estanqueidad al aire en la envolvente para reducir infiltraciones.\n•\tUso de dispositivos de iluminación de bajo consumo para reducir las ganancias térmicas internas.\n•\tSustitución de la ventilación natural por sistemas de ventilación mecánica controlada.\n•\tIncorporación de sistemas de refrigeración de alto rendimiento o mayor eficiencia.","•\tUso de materiales ligeros y flexibles: Implementación de pórticos de madera o paneles aislantes estructurales para reducir la carga sobre la estructura y facilitar el movimiento controlado del edificio en respuesta a condiciones externas.\n•\tInstalación de losas de cimentación convencionales para restringir el desplazamiento del edificio.\n•\tUso de losas independientes que permiten que la estructura “flote” y se nivele automáticamente ante movimientos del terreno.\n•\tProfundización de elementos de cimentación: Extensión de pilotes hasta alcanzar el nivel de roca firme, con el objetivo de desacoplar la estructura del terreno superficial y garantizar una base estable e independiente.","•\tRefuerzo estructural: Incorporación de elementos como riostras, contrafuertes y marcos de mayor robustez para incrementar la resistencia general de la estructura.\n•\tOptimización del revestimiento y soporte: Aplicación de revestimientos especializados para una mejor gestión de cargas, así como reducción del espaciado entre los componentes de soporte para aumentar la estabilidad.\n•\tSistemas de fijación para cubiertas: Instalación de anclajes específicos para el soporte de la cubierta del tejado, incluyendo ganchos o clavos diseñados para asegurar los elementos de cobertura como las tejas.\n•\tMejora en la ventilación: Sustitución de la ventilación natural por sistemas de ventilación mecánica que permitan un control más eficiente del flujo de aire.","•\tRefuerzo estructural: Incorporación de elementos como riostras, contrafuertes y marcos de mayor robustez para incrementar la resistencia general de la estructura.\n•\tOptimización del revestimiento y soporte: Aplicación de revestimientos especializados para una mejor gestión de cargas, así como reducción del espaciado entre los componentes de soporte para aumentar la estabilidad.\n•\tSistemas de fijación para cubiertas: Instalación de anclajes específicos para el soporte de la cubierta del tejado, incluyendo ganchos o clavos diseñados para asegurar los elementos de cobertura como las tejas.\n•\tMejora en la ventilación: Sustitución de la ventilación natural por sistemas de ventilación mecánica que permitan un control más eficiente del flujo de aire."]
[null,"Edificios","Mejora genérica de edificios","•\tEvitar ubicaciones con riesgo potencial, como zonas propensas a inundaciones o con drenaje insuficiente. \n•\t Implementar sistemas de drenaje perimetral, incluyendo soluciones sostenibles como zanjas, canales y sistemas urbanos de drenaje sostenible (SUDS). \n•\tUtilizar pavimentos duros permeables en áreas ajardinadas y minimizar las superficies exteriores impermeables, promoviendo el uso extensivo de espacios verdes. \n•\tConsiderar las proyecciones climáticas y la capacidad de las redes de drenaje en el diseño y planificación de las edificaciones. \n•\tAplicar membranas impermeabilizantes en muros y suelos, emplear materiales densos en plantas bajas y soluciones resistentes a la condensación por encima del nivel del terreno, además de mejorar la capacidad estructural. \n•\tElevar las instalaciones sensibles, como tomas eléctricas, al menos un metro por encima del nivel del suelo acabado para prevenir daños por inundación. \n•\tConstruir barreras físicas, como muros o bancos de tierra, o redirigir los desagües para proteger el edificio frente a la entrada de agua. \n•\tModificar los umbrales de las puertas para permitir la instalación de barreras temporales, como sacos de arena. \n•\tEmplear materiales resistentes al agua en cimientos y zapatas, como aditivos para hormigón o bloques/ladrillos de alta densidad.","•\tEvitar ubicaciones con riesgo potencial, como zonas propensas a inundaciones o con drenaje insuficiente. \n•\t Implementar sistemas de drenaje perimetral, incluyendo soluciones sostenibles como zanjas, canales y sistemas urbanos de drenaje sostenible (SUDS). \n•\tUtilizar pavimentos duros permeables en áreas ajardinadas y minimizar las superficies exteriores impermeables, promoviendo el uso extensivo de espacios verdes. \n•\tConsiderar las proyecciones climáticas y la capacidad de las redes de drenaje en el diseño y planificación de las edificaciones. \n•\tAplicar membranas impermeabilizantes en muros y suelos, emplear materiales densos en plantas bajas y soluciones resistentes a la condensación por encima del nivel del terreno, además de mejorar la capacidad estructural. \n•\tElevar las instalaciones sensibles, como tomas eléctricas, al menos un metro por encima del nivel del suelo acabado para prevenir daños por inundación. \n•\tConstruir barreras físicas, como muros o bancos de tierra, o redirigir los desagües para proteger el edificio frente a la entrada de agua. \n•\tModificar los umbrales de las puertas para permitir la instalación de barreras temporales, como sacos de arena. \n•\tEmplear materiales resistentes al agua en cimientos y zapatas, como aditivos para hormigón o bloques/ladrillos de alta densidad.","•\tEvitar ubicaciones con riesgo potencial, como zonas propensas a inundaciones o con drenaje insuficiente. \n•\t Implementar sistemas de drenaje perimetral, incluyendo soluciones sostenibles como zanjas, canales y sistemas urbanos de drenaje sostenible (SUDS). \n•\tUtilizar pavimentos duros permeables en áreas ajardinadas y minimizar las superficies exteriores impermeables, promoviendo el uso extensivo de espacios verdes. \n•\tConsiderar las proyecciones climáticas y la capacidad de las redes de drenaje en el diseño y planificación de las edificaciones. \n•\tAplicar membranas impermeabilizantes en muros y suelos, emplear materiales densos en plantas bajas y soluciones resistentes a la condensación por encima del nivel del terreno, además de mejorar la capacidad estructural. \n•\tElevar las instalaciones sensibles, como tomas eléctricas, al menos un metro por encima del nivel del suelo acabado para prevenir daños por inundación. \n•\tConstruir barreras físicas, como muros o bancos de tierra, o redirigir los desagües para proteger el edificio frente a la entrada de agua. \n•\tModificar los umbrales de las puertas para permitir la instalación de barreras temporales, como sacos de arena. \n•\tEmplear materiales resistentes al agua en cimientos y zapatas, como aditivos para hormigón o bloques/ladrillos de alta densidad.","•\tEvitar ubicaciones con riesgo potencial, como zonas propensas a inundaciones o con drenaje insuficiente. \n•\t Implementar sistemas de drenaje perimetral, incluyendo soluciones sostenibles como zanjas, canales y sistemas urbanos de drenaje sostenible. \n•\tUtilizar pavimentos duros permeables en áreas ajardinadas y minimizar las superficies exteriores impermeables, promoviendo el uso extensivo de espacios verdes. \n•\tConsiderar las proyecciones climáticas y la capacidad de las redes de drenaje en el diseño y planificación de las edificaciones. \n•\tAplicar membranas impermeabilizantes en muros y suelos, emplear materiales densos en plantas bajas y soluciones resistentes a la condensación por encima del nivel del terreno, además de mejorar la capacidad estructural. \n•\tElevar las instalaciones sensibles, como tomas eléctricas, al menos un metro por encima del nivel del suelo acabado para prevenir daños por inundación. \n•\tConstruir barreras físicas, como muros o bancos de tierra, o redirigir los desagües para proteger el edificio frente a la entrada de agua. \n•\tModificar los umbrales de las puertas para permitir la instalación de barreras temporales, como sacos de arena. \n•\tEmplear materiales resistentes al agua en cimientos y zapatas, como aditivos para hormigón o bloques/ladrillos de alta densidad.","•\tEvitar ubicaciones con riesgo potencial, como zonas propensas a inundaciones o con drenaje insuficiente. \n•\t Implementar sistemas de drenaje perimetral, incluyendo soluciones sostenibles como zanjas, canales y sistemas urbanos de drenaje sostenible (SUDS). \n•\tUtilizar pavimentos duros permeables en áreas ajardinadas y minimizar las superficies exteriores impermeables, promoviendo el uso extensivo de espacios verdes. \n•\tConsiderar las proyecciones climáticas y la capacidad de las redes de drenaje en el diseño y planificación de las edificaciones. \n•\tAplicar membranas impermeabilizantes en muros y suelos, emplear materiales densos en plantas bajas y soluciones resistentes a la condensación por encima del nivel del terreno, además de mejorar la capacidad estructural. \n•\tElevar las instalaciones sensibles, como tomas eléctricas, al menos un metro por encima del nivel del suelo acabado para prevenir daños por inundación. \n•\tConstruir barreras físicas, como muros o bancos de tierra, o redirigir los desagües para proteger el edificio frente a la entrada de agua. \n•\tModificar los umbrales de las puertas para permitir la instalación de barreras temporales, como sacos de arena. \n•\tEmplear materiales resistentes al agua en cimientos y zapatas, como aditivos para hormigón o bloques/ladrillos de alta densidad.","•\tEvitar ubicaciones con riesgo potencial, como zonas propensas a inundaciones o con drenaje insuficiente. \n•\t Implementar sistemas de drenaje perimetral, incluyendo soluciones sostenibles como zanjas, canales y sistemas urbanos de drenaje sostenible (SUDS). \n•\tUtilizar pavimentos duros permeables en áreas ajardinadas y minimizar las superficies exteriores impermeables, promoviendo el uso extensivo de espacios verdes. \n•\tConsiderar las proyecciones climáticas y la capacidad de las redes de drenaje en el diseño y planificación de las edificaciones. \n•\tAplicar membranas impermeabilizantes en muros y suelos, emplear materiales densos en plantas bajas y soluciones resistentes a la condensación por encima del nivel del terreno, además de mejorar la capacidad estructural. \n•\tElevar las instalaciones sensibles, como tomas eléctricas, al menos un metro por encima del nivel del suelo acabado para prevenir daños por inundación. \n•\tConstruir barreras físicas, como muros o bancos de tierra, o redirigir los desagües para proteger el edificio frente a la entrada de agua. \n•\tModificar los umbrales de las puertas para permitir la instalación de barreras temporales, como sacos de arena. \n•\tEmplear materiales resistentes al agua en cimientos y zapatas, como aditivos para hormigón o bloques/ladrillos de alta densidad.","•\tRediseñar las cubiertas para considerar una carga por nieve variable y una mayor exposición a lluvias intensas y viento.\n•\tIncorporar pendientes más pronunciadas y sistemas de drenaje eficientes para evitar acumulaciones de agua por lluvias en lugar de nieve.\n•\tUsar revestimientos, selladores y materiales que soporten mejor la exposición prolongada a la lluvia y la humedad ambiental.\n•\tAdaptar el aislamiento para responder a inviernos menos fríos pero más húmedos, manteniendo el confort interior.\n•\tIncorporar ventilación mecánica controlada y materiales que eviten condensaciones en espacios habitables.\n•\tIntegrar proyecciones locales sobre el cambio en el régimen nival en el diseño de edificaciones nuevas y en rehabilitaciones.\n•\tIncorporar vegetación autóctona resistente a cambios en la humedad y temperatura, y que contribuya a la gestión del agua.","•\tRefuerzo de la resistencia estructural mediante riostras, contrafuertes y marcos más robustos.\n•\tReducción de carga con pórticos de madera o paneles estructurales aislantes (SIP) que permiten el movimiento del edificio.\n•\tUso de losas de cimentación para limitar el movimiento o losas independientes para permitir que la estructura “flote” y se renivele.\n•\tAumento de la profundidad de los pilotes o extensión hasta el nivel de roca para desacoplar la estructura del terreno.\n•\tSombreado del entorno (natural o artificial) y diseño arquitectónico que incluya parasoles, aleros en voladizo, intradoses profundos o fachadas de doble piel.\n•\tUso de vidrio de alto rendimiento para minimizar la transferencia de calor.\n•\tAumento del aislamiento térmico en la envolvente y las instalaciones del edificio.\n•\tMayor estanqueidad al aire en la envolvente para reducir infiltraciones.\n•\tUso de dispositivos de iluminación de bajo consumo para reducir las ganancias térmicas internas.\n•\tSustitución de la ventilación natural por sistemas de ventilación mecánica controlada.\n•\tIncorporación de sistemas de refrigeración de alto rendimiento o mayor eficiencia.","•\tRefuerzo de la resistencia estructural mediante riostras, contrafuertes y marcos más robustos.\n•\tReducción de carga con pórticos de madera o paneles estructurales aislantes (SIP) que permiten el movimiento del edificio.\n•\tUso de losas de cimentación para limitar el movimiento o losas independientes para permitir que la estructura “flote” y se renivele.\n•\tAumento de la profundidad de los pilotes o extensión hasta el nivel de roca para desacoplar la estructura del terreno.\n•\tSombreado del entorno (natural o artificial) y diseño arquitectónico que incluya parasoles, aleros en voladizo, intradoses profundos o fachadas de doble piel.\n•\tUso de vidrio de alto rendimiento para minimizar la transferencia de calor.\n•\tAumento del aislamiento térmico en la envolvente y las instalaciones del edificio.\n•\tMayor estanqueidad al aire en la envolvente para reducir infiltraciones.\n•\tUso de dispositivos de iluminación de bajo consumo para reducir las ganancias térmicas internas.\n•\tSustitución de la ventilación natural por sistemas de ventilación mecánica controlada.\n•\tIncorporación de sistemas de refrigeración de alto rendimiento o mayor eficiencia.","•\tUso de materiales ligeros y flexibles: Implementación de pórticos de madera o paneles aislantes estructurales para reducir la carga sobre la estructura y facilitar el movimiento controlado del edificio en respuesta a condiciones externas.\n•\tInstalación de losas de cimentación convencionales para restringir el desplazamiento del edificio.\n•\tUso de losas independientes que permiten que la estructura “flote” y se nivele automáticamente ante movimientos del terreno.\n•\tProfundización de elementos de cimentación: Extensión de pilotes hasta alcanzar el nivel de roca firme, con el objetivo de desacoplar la estructura del terreno superficial y garantizar una base estable e independiente.","•\tRefuerzo estructural: Incorporación de elementos como riostras, contrafuertes y marcos de mayor robustez para incrementar la resistencia general de la estructura.\n•\tOptimización del revestimiento y soporte: Aplicación de revestimientos especializados para una mejor gestión de cargas, así como reducción del espaciado entre los componentes de soporte para aumentar la estabilidad.\n•\tSistemas de fijación para cubiertas: Instalación de anclajes específicos para el soporte de la cubierta del tejado, incluyendo ganchos o clavos diseñados para asegurar los elementos de cobertura como las tejas.\n•\tMejora en la ventilación: Sustitución de la ventilación natural por sistemas de ventilación mecánica que permitan un control más eficiente del flujo de aire.","•\tRefuerzo estructural: Incorporación de elementos como riostras, contrafuertes y marcos de mayor robustez para incrementar la resistencia general de la estructura.\n•\tOptimización del revestimiento y soporte: Aplicación de revestimientos especializados para una mejor gestión de cargas, así como reducción del espaciado entre los componentes de soporte para aumentar la estabilidad.\n•\tSistemas de fijación para cubiertas: Instalación de anclajes específicos para el soporte de la cubierta del tejado, incluyendo ganchos o clavos diseñados para asegurar los elementos de cobertura como las tejas.\n•\tMejora en la ventilación: Sustitución de la ventilación natural por sistemas de ventilación mecánica que permitan un control más eficiente del flujo de aire."]
[null,"Edificios","Mejoras en el entorno de los edificios","•\tEvitar ubicaciones con riesgo potencial, como zonas propensas a inundaciones o con drenaje insuficiente. \n•\t Implementar sistemas de drenaje perimetral, incluyendo soluciones sostenibles como zanjas, canales y sistemas urbanos de drenaje sostenible (SUDS). \n•\tUtilizar pavimentos duros permeables en áreas ajardinadas y minimizar las superficies exteriores impermeables, promoviendo el uso extensivo de espacios verdes. \n•\tConsiderar las proyecciones climáticas y la capacidad de las redes de drenaje en el diseño y planificación de las edificaciones. \n•\tAplicar membranas impermeabilizantes en muros y suelos, emplear materiales densos en plantas bajas y soluciones resistentes a la condensación por encima del nivel del terreno, además de mejorar la capacidad estructural. \n•\tElevar las instalaciones sensibles, como tomas eléctricas, al menos un metro por encima del nivel del suelo acabado para prevenir daños por inundación. \n•\tConstruir barreras físicas, como muros o bancos de tierra, o redirigir los desagües para proteger el edificio frente a la entrada de agua. \n•\tModificar los umbrales de las puertas para permitir la instalación de barreras temporales, como sacos de arena. \n•\tEmplear materiales resistentes al agua en cimientos y zapatas, como aditivos para hormigón o bloques/ladrillos de alta densidad.","•\tEvitar ubicaciones con riesgo potencial, como zonas propensas a inundaciones o con drenaje insuficiente. \n•\t Implementar sistemas de drenaje perimetral, incluyendo soluciones sostenibles como zanjas, canales y sistemas urbanos de drenaje sostenible (SUDS). \n•\tUtilizar pavimentos duros permeables en áreas ajardinadas y minimizar las superficies exteriores impermeables, promoviendo el uso extensivo de espacios verdes. \n•\tConsiderar las proyecciones climáticas y la capacidad de las redes de drenaje en el diseño y planificación de las edificaciones. \n•\tAplicar membranas impermeabilizantes en muros y suelos, emplear materiales densos en plantas bajas y soluciones resistentes a la condensación por encima del nivel del terreno, además de mejorar la capacidad estructural. \n•\tElevar las instalaciones sensibles, como tomas eléctricas, al menos un metro por encima del nivel del suelo acabado para prevenir daños por inundación. \n•\tConstruir barreras físicas, como muros o bancos de tierra, o redirigir los desagües para proteger el edificio frente a la entrada de agua. \n•\tModificar los umbrales de las puertas para permitir la instalación de barreras temporales, como sacos de arena. \n•\tEmplear materiales resistentes al agua en cimientos y zapatas, como aditivos para hormigón o bloques/ladrillos de alta densidad.","•\tEvitar ubicaciones con riesgo potencial, como zonas propensas a inundaciones o con drenaje insuficiente. \n•\t Implementar sistemas de drenaje perimetral, incluyendo soluciones sostenibles como zanjas, canales y sistemas urbanos de drenaje sostenible (SUDS). \n•\tUtilizar pavimentos duros permeables en áreas ajardinadas y minimizar las superficies exteriores impermeables, promoviendo el uso extensivo de espacios verdes. \n•\tConsiderar las proyecciones climáticas y la capacidad de las redes de drenaje en el diseño y planificación de las edificaciones. \n•\tAplicar membranas impermeabilizantes en muros y suelos, emplear materiales densos en plantas bajas y soluciones resistentes a la condensación por encima del nivel del terreno, además de mejorar la capacidad estructural. \n•\tElevar las instalaciones sensibles, como tomas eléctricas, al menos un metro por encima del nivel del suelo acabado para prevenir daños por inundación. \n•\tConstruir barreras físicas, como muros o bancos de tierra, o redirigir los desagües para proteger el edificio frente a la entrada de agua. \n•\tModificar los umbrales de las puertas para permitir la instalación de barreras temporales, como sacos de arena. \n•\tEmplear materiales resistentes al agua en cimientos y zapatas, como aditivos para hormigón o bloques/ladrillos de alta densidad.","•\tEvitar ubicaciones con riesgo potencial, como zonas propensas a inundaciones o con drenaje insuficiente. \n•\t Implementar sistemas de drenaje perimetral, incluyendo soluciones sostenibles como zanjas, canales y sistemas urbanos de drenaje sostenible. \n•\tUtilizar pavimentos duros permeables en áreas ajardinadas y minimizar las superficies exteriores impermeables, promoviendo el uso extensivo de espacios verdes. \n•\tConsiderar las proyecciones climáticas y la capacidad de las redes de drenaje en el diseño y planificación de las edificaciones. \n•\tAplicar membranas impermeabilizantes en muros y suelos, emplear materiales densos en plantas bajas y soluciones resistentes a la condensación por encima del nivel del terreno, además de mejorar la capacidad estructural. \n•\tElevar las instalaciones sensibles, como tomas eléctricas, al menos un metro por encima del nivel del suelo acabado para prevenir daños por inundación. \n•\tConstruir barreras físicas, como muros o bancos de tierra, o redirigir los desagües para proteger el edificio frente a la entrada de agua. \n•\tModificar los umbrales de las puertas para permitir la instalación de barreras temporales, como sacos de arena. \n•\tEmplear materiales resistentes al agua en cimientos y zapatas, como aditivos para hormigón o bloques/ladrillos de alta densidad.","•\tEvitar ubicaciones con riesgo potencial, como zonas propensas a inundaciones o con drenaje insuficiente. \n•\t Implementar sistemas de drenaje perimetral, incluyendo soluciones sostenibles como zanjas, canales y sistemas urbanos de drenaje sostenible (SUDS). \n•\tUtilizar pavimentos duros permeables en áreas ajardinadas y minimizar las superficies exteriores impermeables, promoviendo el uso extensivo de espacios verdes. \n•\tConsiderar las proyecciones climáticas y la capacidad de las redes de drenaje en el diseño y planificación de las edificaciones. \n•\tAplicar membranas impermeabilizantes en muros y suelos, emplear materiales densos en plantas bajas y soluciones resistentes a la condensación por encima del nivel del terreno, además de mejorar la capacidad estructural. \n•\tElevar las instalaciones sensibles, como tomas eléctricas, al menos un metro por encima del nivel del suelo acabado para prevenir daños por inundación. \n•\tConstruir barreras físicas, como muros o bancos de tierra, o redirigir los desagües para proteger el edificio frente a la entrada de agua. \n•\tModificar los umbrales de las puertas para permitir la instalación de barreras temporales, como sacos de arena. \n•\tEmplear materiales resistentes al agua en cimientos y zapatas, como aditivos para hormigón o bloques/ladrillos de alta densidad.","•\tEvitar ubicaciones con riesgo potencial, como zonas propensas a inundaciones o con drenaje insuficiente. \n•\t Implementar sistemas de drenaje perimetral, incluyendo soluciones sostenibles como zanjas, canales y sistemas urbanos de drenaje sostenible (SUDS). \n•\tUtilizar pavimentos duros permeables en áreas ajardinadas y minimizar las superficies exteriores impermeables, promoviendo el uso extensivo de espacios verdes. \n•\tConsiderar las proyecciones climáticas y la capacidad de las redes de drenaje en el diseño y planificación de las edificaciones. \n•\tAplicar membranas impermeabilizantes en muros y suelos, emplear materiales densos en plantas bajas y soluciones resistentes a la condensación por encima del nivel del terreno, además de mejorar la capacidad estructural. \n•\tElevar las instalaciones sensibles, como tomas eléctricas, al menos un metro por encima del nivel del suelo acabado para prevenir daños por inundación. \n•\tConstruir barreras físicas, como muros o bancos de tierra, o redirigir los desagües para proteger el edificio frente a la entrada de agua. \n•\tModificar los umbrales de las puertas para permitir la instalación de barreras temporales, como sacos de arena. \n•\tEmplear materiales resistentes al agua en cimientos y zapatas, como aditivos para hormigón o bloques/ladrillos de alta densidad.","•\tRediseñar las cubiertas para considerar una carga por nieve variable y una mayor exposición a lluvias intensas y viento.\n•\tIncorporar pendientes más pronunciadas y sistemas de drenaje eficientes para evitar acumulaciones de agua por lluvias en lugar de nieve.\n•\tUsar revestimientos, selladores y materiales que soporten mejor la exposición prolongada a la lluvia y la humedad ambiental.\n•\tAdaptar el aislamiento para responder a inviernos menos fríos pero más húmedos, manteniendo el confort interior.\n•\tIncorporar ventilación mecánica controlada y materiales que eviten condensaciones en espacios habitables.\n•\tIntegrar proyecciones locales sobre el cambio en el régimen nival en el diseño de edificaciones nuevas y en rehabilitaciones.\n•\tIncorporar vegetación autóctona resistente a cambios en la humedad y temperatura, y que contribuya a la gestión del agua.","•\tRefuerzo de la resistencia estructural mediante riostras, contrafuertes y marcos más robustos.\n•\tReducción de carga con pórticos de madera o paneles estructurales aislantes (SIP) que permiten el movimiento del edificio.\n•\tUso de losas de cimentación para limitar el movimiento o losas independientes para permitir que la estructura “flote” y se renivele.\n•\tAumento de la profundidad de los pilotes o extensión hasta el nivel de roca para desacoplar la estructura del terreno.\n•\tSombreado del entorno (natural o artificial) y diseño arquitectónico que incluya parasoles, aleros en voladizo, intradoses profundos o fachadas de doble piel.\n•\tUso de vidrio de alto rendimiento para minimizar la transferencia de calor.\n•\tAumento del aislamiento térmico en la envolvente y las instalaciones del edificio.\n•\tMayor estanqueidad al aire en la envolvente para reducir infiltraciones.\n•\tUso de dispositivos de iluminación de bajo consumo para reducir las ganancias térmicas internas.\n•\tSustitución de la ventilación natural por sistemas de ventilación mecánica controlada.\n•\tIncorporación de sistemas de refrigeración de alto rendimiento o mayor eficiencia.","•\tRefuerzo de la resistencia estructural mediante riostras, contrafuertes y marcos más robustos.\n•\tReducción de carga con pórticos de madera o paneles estructurales aislantes (SIP) que permiten el movimiento del edificio.\n•\tUso de losas de cimentación para limitar el movimiento o losas independientes para permitir que la estructura “flote” y se renivele.\n•\tAumento de la profundidad de los pilotes o extensión hasta el nivel de roca para desacoplar la estructura del terreno.\n•\tSombreado del entorno (natural o artificial) y diseño arquitectónico que incluya parasoles, aleros en voladizo, intradoses profundos o fachadas de doble piel.\n•\tUso de vidrio de alto rendimiento para minimizar la transferencia de calor.\n•\tAumento del aislamiento térmico en la envolvente y las instalaciones del edificio.\n•\tMayor estanqueidad al aire en la envolvente para reducir infiltraciones.\n•\tUso de dispositivos de iluminación de bajo consumo para reducir las ganancias térmicas internas.\n•\tSustitución de la ventilación natural por sistemas de ventilación mecánica controlada.\n•\tIncorporación de sistemas de refrigeración de alto rendimiento o mayor eficiencia.","•\tUso de materiales ligeros y flexibles: Implementación de pórticos de madera o paneles aislantes estructurales para reducir la carga sobre la estructura y facilitar el movimiento controlado del edificio en respuesta a condiciones externas.\n•\tInstalación de losas de cimentación convencionales para restringir el desplazamiento del edificio.\n•\tUso de losas independientes que permiten que la estructura “flote” y se nivele automáticamente ante movimientos del terreno.\n•\tProfundización de elementos de cimentación: Extensión de pilotes hasta alcanzar el nivel de roca firme, con el objetivo de desacoplar la estructura del terreno superficial y garantizar una base estable e independiente.","•\tRefuerzo estructural: Incorporación de elementos como riostras, contrafuertes y marcos de mayor robustez para incrementar la resistencia general de la estructura.\n•\tOptimización del revestimiento y soporte: Aplicación de revestimientos especializados para una mejor gestión de cargas, así como reducción del espaciado entre los componentes de soporte para aumentar la estabilidad.\n•\tSistemas de fijación para cubiertas: Instalación de anclajes específicos para el soporte de la cubierta del tejado, incluyendo ganchos o clavos diseñados para asegurar los elementos de cobertura como las tejas.\n•\tMejora en la ventilación: Sustitución de la ventilación natural por sistemas de ventilación mecánica que permitan un control más eficiente del flujo de aire.","•\tRefuerzo estructural: Incorporación de elementos como riostras, contrafuertes y marcos de mayor robustez para incrementar la resistencia general de la estructura.\n•\tOptimización del revestimiento y soporte: Aplicación de revestimientos especializados para una mejor gestión de cargas, así como reducción del espaciado entre los componentes de soporte para aumentar la estabilidad.\n•\tSistemas de fijación para cubiertas: Instalación de anclajes específicos para el soporte de la cubierta del tejado, incluyendo ganchos o clavos diseñados para asegurar los elementos de cobertura como las tejas.\n•\tMejora en la ventilación: Sustitución de la ventilación natural por sistemas de ventilación mecánica que permitan un control más eficiente del flujo de aire."]
[null,"Edificios","Construcción de edificios","•\tEvitar ubicaciones con riesgo potencial, como zonas propensas a inundaciones o con drenaje insuficiente. \n•\t Implementar sistemas de drenaje perimetral, incluyendo soluciones sostenibles como zanjas, canales y sistemas urbanos de drenaje sostenible (SUDS). \n•\tUtilizar pavimentos duros permeables en áreas ajardinadas y minimizar las superficies exteriores impermeables, promoviendo el uso extensivo de espacios verdes. \n•\tConsiderar las proyecciones climáticas y la capacidad de las redes de drenaje en el diseño y planificación de las edificaciones. \n•\tAplicar membranas impermeabilizantes en muros y suelos, emplear materiales densos en plantas bajas y soluciones resistentes a la condensación por encima del nivel del terreno, además de mejorar la capacidad estructural. \n•\tElevar las instalaciones sensibles, como tomas eléctricas, al menos un metro por encima del nivel del suelo acabado para prevenir daños por inundación. \n•\tConstruir barreras físicas, como muros o bancos de tierra, o redirigir los desagües para proteger el edificio frente a la entrada de agua. \n•\tModificar los umbrales de las puertas para permitir la instalación de barreras temporales, como sacos de arena. \n•\tEmplear materiales resistentes al agua en cimientos y zapatas, como aditivos para hormigón o bloques/ladrillos de alta densidad.","•\tEvitar ubicaciones con riesgo potencial, como zonas propensas a inundaciones o con drenaje insuficiente. \n•\t Implementar sistemas de drenaje perimetral, incluyendo soluciones sostenibles como zanjas, canales y sistemas urbanos de drenaje sostenible (SUDS). \n•\tUtilizar pavimentos duros permeables en áreas ajardinadas y minimizar las superficies exteriores impermeables, promoviendo el uso extensivo de espacios verdes. \n•\tConsiderar las proyecciones climáticas y la capacidad de las redes de drenaje en el diseño y planificación de las edificaciones. \n•\tAplicar membranas impermeabilizantes en muros y suelos, emplear materiales densos en plantas bajas y soluciones resistentes a la condensación por encima del nivel del terreno, además de mejorar la capacidad estructural. \n•\tElevar las instalaciones sensibles, como tomas eléctricas, al menos un metro por encima del nivel del suelo acabado para prevenir daños por inundación. \n•\tConstruir barreras físicas, como muros o bancos de tierra, o redirigir los desagües para proteger el edificio frente a la entrada de agua. \n•\tModificar los umbrales de las puertas para permitir la instalación de barreras temporales, como sacos de arena. \n•\tEmplear materiales resistentes al agua en cimientos y zapatas, como aditivos para hormigón o bloques/ladrillos de alta densidad.","•\tEvitar ubicaciones con riesgo potencial, como zonas propensas a inundaciones o con drenaje insuficiente. \n•\t Implementar sistemas de drenaje perimetral, incluyendo soluciones sostenibles como zanjas, canales y sistemas urbanos de drenaje sostenible (SUDS). \n•\tUtilizar pavimentos duros permeables en áreas ajardinadas y minimizar las superficies exteriores impermeables, promoviendo el uso extensivo de espacios verdes. \n•\tConsiderar las proyecciones climáticas y la capacidad de las redes de drenaje en el diseño y planificación de las edificaciones. \n•\tAplicar membranas impermeabilizantes en muros y suelos, emplear materiales densos en plantas bajas y soluciones resistentes a la condensación por encima del nivel del terreno, además de mejorar la capacidad estructural. \n•\tElevar las instalaciones sensibles, como tomas eléctricas, al menos un metro por encima del nivel del suelo acabado para prevenir daños por inundación. \n•\tConstruir barreras físicas, como muros o bancos de tierra, o redirigir los desagües para proteger el edificio frente a la entrada de agua. \n•\tModificar los umbrales de las puertas para permitir la instalación de barreras temporales, como sacos de arena. \n•\tEmplear materiales resistentes al agua en cimientos y zapatas, como aditivos para hormigón o bloques/ladrillos de alta densidad.","•\tEvitar ubicaciones con riesgo potencial, como zonas propensas a inundaciones o con drenaje insuficiente. \n•\t Implementar sistemas de drenaje perimetral, incluyendo soluciones sostenibles como zanjas, canales y sistemas urbanos de drenaje sostenible. \n•\tUtilizar pavimentos duros permeables en áreas ajardinadas y minimizar las superficies exteriores impermeables, promoviendo el uso extensivo de espacios verdes. \n•\tConsiderar las proyecciones climáticas y la capacidad de las redes de drenaje en el diseño y planificación de las edificaciones. \n•\tAplicar membranas impermeabilizantes en muros y suelos, emplear materiales densos en plantas bajas y soluciones resistentes a la condensación por encima del nivel del terreno, además de mejorar la capacidad estructural. \n•\tElevar las instalaciones sensibles, como tomas eléctricas, al menos un metro por encima del nivel del suelo acabado para prevenir daños por inundación. \n•\tConstruir barreras físicas, como muros o bancos de tierra, o redirigir los desagües para proteger el edificio frente a la entrada de agua. \n•\tModificar los umbrales de las puertas para permitir la instalación de barreras temporales, como sacos de arena. \n•\tEmplear materiales resistentes al agua en cimientos y zapatas, como aditivos para hormigón o bloques/ladrillos de alta densidad.","•\tEvitar ubicaciones con riesgo potencial, como zonas propensas a inundaciones o con drenaje insuficiente. \n•\t Implementar sistemas de drenaje perimetral, incluyendo soluciones sostenibles como zanjas, canales y sistemas urbanos de drenaje sostenible (SUDS). \n•\tUtilizar pavimentos duros permeables en áreas ajardinadas y minimizar las superficies exteriores impermeables, promoviendo el uso extensivo de espacios verdes. \n•\tConsiderar las proyecciones climáticas y la capacidad de las redes de drenaje en el diseño y planificación de las edificaciones. \n•\tAplicar membranas impermeabilizantes en muros y suelos, emplear materiales densos en plantas bajas y soluciones resistentes a la condensación por encima del nivel del terreno, además de mejorar la capacidad estructural. \n•\tElevar las instalaciones sensibles, como tomas eléctricas, al menos un metro por encima del nivel del suelo acabado para prevenir daños por inundación. \n•\tConstruir barreras físicas, como muros o bancos de tierra, o redirigir los desagües para proteger el edificio frente a la entrada de agua. \n•\tModificar los umbrales de las puertas para permitir la instalación de barreras temporales, como sacos de arena. \n•\tEmplear materiales resistentes al agua en cimientos y zapatas, como aditivos para hormigón o bloques/ladrillos de alta densidad.","•\tEvitar ubicaciones con riesgo potencial, como zonas propensas a inundaciones o con drenaje insuficiente. \n•\t Implementar sistemas de drenaje perimetral, incluyendo soluciones sostenibles como zanjas, canales y sistemas urbanos de drenaje sostenible (SUDS). \n•\tUtilizar pavimentos duros permeables en áreas ajardinadas y minimizar las superficies exteriores impermeables, promoviendo el uso extensivo de espacios verdes. \n•\tConsiderar las proyecciones climáticas y la capacidad de las redes de drenaje en el diseño y planificación de las edificaciones. \n•\tAplicar membranas impermeabilizantes en muros y suelos, emplear materiales densos en plantas bajas y soluciones resistentes a la condensación por encima del nivel del terreno, además de mejorar la capacidad estructural. \n•\tElevar las instalaciones sensibles, como tomas eléctricas, al menos un metro por encima del nivel del suelo acabado para prevenir daños por inundación. \n•\tConstruir barreras físicas, como muros o bancos de tierra, o redirigir los desagües para proteger el edificio frente a la entrada de agua. \n•\tModificar los umbrales de las puertas para permitir la instalación de barreras temporales, como sacos de arena. \n•\tEmplear materiales resistentes al agua en cimientos y zapatas, como aditivos para hormigón o bloques/ladrillos de alta densidad.","•\tRediseñar las cubiertas para considerar una carga por nieve variable y una mayor exposición a lluvias intensas y viento.\n•\tIncorporar pendientes más pronunciadas y sistemas de drenaje eficientes para evitar acumulaciones de agua por lluvias en lugar de nieve.\n•\tUsar revestimientos, selladores y materiales que soporten mejor la exposición prolongada a la lluvia y la humedad ambiental.\n•\tAdaptar el aislamiento para responder a inviernos menos fríos pero más húmedos, manteniendo el confort interior.\n•\tIncorporar ventilación mecánica controlada y materiales que eviten condensaciones en espacios habitables.\n•\tIntegrar proyecciones locales sobre el cambio en el régimen nival en el diseño de edificaciones nuevas y en rehabilitaciones.\n•\tIncorporar vegetación autóctona resistente a cambios en la humedad y temperatura, y que contribuya a la gestión del agua.","•\tRefuerzo de la resistencia estructural mediante riostras, contrafuertes y marcos más robustos.\n•\tReducción de carga con pórticos de madera o paneles estructurales aislantes (SIP) que permiten el movimiento del edificio.\n•\tUso de losas de cimentación para limitar el movimiento o losas independientes para permitir que la estructura “flote” y se renivele.\n•\tAumento de la profundidad de los pilotes o extensión hasta el nivel de roca para desacoplar la estructura del terreno.\n•\tSombreado del entorno (natural o artificial) y diseño arquitectónico que incluya parasoles, aleros en voladizo, intradoses profundos o fachadas de doble piel.\n•\tUso de vidrio de alto rendimiento para minimizar la transferencia de calor.\n•\tAumento del aislamiento térmico en la envolvente y las instalaciones del edificio.\n•\tMayor estanqueidad al aire en la envolvente para reducir infiltraciones.\n•\tUso de dispositivos de iluminación de bajo consumo para reducir las ganancias térmicas internas.\n•\tSustitución de la ventilación natural por sistemas de ventilación mecánica controlada.\n•\tIncorporación de sistemas de refrigeración de alto rendimiento o mayor eficiencia.","•\tRefuerzo de la resistencia estructural mediante riostras, contrafuertes y marcos más robustos.\n•\tReducción de carga con pórticos de madera o paneles estructurales aislantes (SIP) que permiten el movimiento del edificio.\n•\tUso de losas de cimentación para limitar el movimiento o losas independientes para permitir que la estructura “flote” y se renivele.\n•\tAumento de la profundidad de los pilotes o extensión hasta el nivel de roca para desacoplar la estructura del terreno.\n•\tSombreado del entorno (natural o artificial) y diseño arquitectónico que incluya parasoles, aleros en voladizo, intradoses profundos o fachadas de doble piel.\n•\tUso de vidrio de alto rendimiento para minimizar la transferencia de calor.\n•\tAumento del aislamiento térmico en la envolvente y las instalaciones del edificio.\n•\tMayor estanqueidad al aire en la envolvente para reducir infiltraciones.\n•\tUso de dispositivos de iluminación de bajo consumo para reducir las ganancias térmicas internas.\n•\tSustitución de la ventilación natural por sistemas de ventilación mecánica controlada.\n•\tIncorporación de sistemas de refrigeración de alto rendimiento o mayor eficiencia.","•\tUso de materiales ligeros y flexibles: Implementación de pórticos de madera o paneles aislantes estructurales para reducir la carga sobre la estructura y facilitar el movimiento controlado del edificio en respuesta a condiciones externas.\n•\tInstalación de losas de cimentación convencionales para restringir el desplazamiento del edificio.\n•\tUso de losas independientes que permiten que la estructura “flote” y se nivele automáticamente ante movimientos del terreno.\n•\tProfundización de elementos de cimentación: Extensión de pilotes hasta alcanzar el nivel de roca firme, con el objetivo de desacoplar la estructura del terreno superficial y garantizar una base estable e independiente.","•\tRefuerzo estructural: Incorporación de elementos como riostras, contrafuertes y marcos de mayor robustez para incrementar la resistencia general de la estructura.\n•\tOptimización del revestimiento y soporte: Aplicación de revestimientos especializados para una mejor gestión de cargas, así como reducción del espaciado entre los componentes de soporte para aumentar la estabilidad.\n•\tSistemas de fijación para cubiertas: Instalación de anclajes específicos para el soporte de la cubierta del tejado, incluyendo ganchos o clavos diseñados para asegurar los elementos de cobertura como las tejas.\n•\tMejora en la ventilación: Sustitución de la ventilación natural por sistemas de ventilación mecánica que permitan un control más eficiente del flujo de aire.","•\tRefuerzo estructural: Incorporación de elementos como riostras, contrafuertes y marcos de mayor robustez para incrementar la resistencia general de la estructura.\n•\tOptimización del revestimiento y soporte: Aplicación de revestimientos especializados para una mejor gestión de cargas, así como reducción del espaciado entre los componentes de soporte para aumentar la estabilidad.\n•\tSistemas de fijación para cubiertas: Instalación de anclajes específicos para el soporte de la cubierta del tejado, incluyendo ganchos o clavos diseñados para asegurar los elementos de cobertura como las tejas.\n•\tMejora en la ventilación: Sustitución de la ventilación natural por sistemas de ventilación mecánica que permitan un control más eficiente del flujo de aire."]
[null,"Edificios","Ampliación de edificios","•\tEvitar ubicaciones con riesgo potencial, como zonas propensas a inundaciones o con drenaje insuficiente. \n•\t Implementar sistemas de drenaje perimetral, incluyendo soluciones sostenibles como zanjas, canales y sistemas urbanos de drenaje sostenible (SUDS). \n•\tUtilizar pavimentos duros permeables en áreas ajardinadas y minimizar las superficies exteriores impermeables, promoviendo el uso extensivo de espacios verdes. \n•\tConsiderar las proyecciones climáticas y la capacidad de las redes de drenaje en el diseño y planificación de las edificaciones. \n•\tAplicar membranas impermeabilizantes en muros y suelos, emplear materiales densos en plantas bajas y soluciones resistentes a la condensación por encima del nivel del terreno, además de mejorar la capacidad estructural. \n•\tElevar las instalaciones sensibles, como tomas eléctricas, al menos un metro por encima del nivel del suelo acabado para prevenir daños por inundación. \n•\tConstruir barreras físicas, como muros o bancos de tierra, o redirigir los desagües para proteger el edificio frente a la entrada de agua. \n•\tModificar los umbrales de las puertas para permitir la instalación de barreras temporales, como sacos de arena. \n•\tEmplear materiales resistentes al agua en cimientos y zapatas, como aditivos para hormigón o bloques/ladrillos de alta densidad.","•\tEvitar ubicaciones con riesgo potencial, como zonas propensas a inundaciones o con drenaje insuficiente. \n•\t Implementar sistemas de drenaje perimetral, incluyendo soluciones sostenibles como zanjas, canales y sistemas urbanos de drenaje sostenible (SUDS). \n•\tUtilizar pavimentos duros permeables en áreas ajardinadas y minimizar las superficies exteriores impermeables, promoviendo el uso extensivo de espacios verdes. \n•\tConsiderar las proyecciones climáticas y la capacidad de las redes de drenaje en el diseño y planificación de las edificaciones. \n•\tAplicar membranas impermeabilizantes en muros y suelos, emplear materiales densos en plantas bajas y soluciones resistentes a la condensación por encima del nivel del terreno, además de mejorar la capacidad estructural. \n•\tElevar las instalaciones sensibles, como tomas eléctricas, al menos un metro por encima del nivel del suelo acabado para prevenir daños por inundación. \n•\tConstruir barreras físicas, como muros o bancos de tierra, o redirigir los desagües para proteger el edificio frente a la entrada de agua. \n•\tModificar los umbrales de las puertas para permitir la instalación de barreras temporales, como sacos de arena. \n•\tEmplear materiales resistentes al agua en cimientos y zapatas, como aditivos para hormigón o bloques/ladrillos de alta densidad.","•\tEvitar ubicaciones con riesgo potencial, como zonas propensas a inundaciones o con drenaje insuficiente. \n•\t Implementar sistemas de drenaje perimetral, incluyendo soluciones sostenibles como zanjas, canales y sistemas urbanos de drenaje sostenible (SUDS). \n•\tUtilizar pavimentos duros permeables en áreas ajardinadas y minimizar las superficies exteriores impermeables, promoviendo el uso extensivo de espacios verdes. \n•\tConsiderar las proyecciones climáticas y la capacidad de las redes de drenaje en el diseño y planificación de las edificaciones. \n•\tAplicar membranas impermeabilizantes en muros y suelos, emplear materiales densos en plantas bajas y soluciones resistentes a la condensación por encima del nivel del terreno, además de mejorar la capacidad estructural. \n•\tElevar las instalaciones sensibles, como tomas eléctricas, al menos un metro por encima del nivel del suelo acabado para prevenir daños por inundación. \n•\tConstruir barreras físicas, como muros o bancos de tierra, o redirigir los desagües para proteger el edificio frente a la entrada de agua. \n•\tModificar los umbrales de las puertas para permitir la instalación de barreras temporales, como sacos de arena. \n•\tEmplear materiales resistentes al agua en cimientos y zapatas, como aditivos para hormigón o bloques/ladrillos de alta densidad.","•\tEvitar ubicaciones con riesgo potencial, como zonas propensas a inundaciones o con drenaje insuficiente. \n•\t Implementar sistemas de drenaje perimetral, incluyendo soluciones sostenibles como zanjas, canales y sistemas urbanos de drenaje sostenible. \n•\tUtilizar pavimentos duros permeables en áreas ajardinadas y minimizar las superficies exteriores impermeables, promoviendo el uso extensivo de espacios verdes. \n•\tConsiderar las proyecciones climáticas y la capacidad de las redes de drenaje en el diseño y planificación de las edificaciones. \n•\tAplicar membranas impermeabilizantes en muros y suelos, emplear materiales densos en plantas bajas y soluciones resistentes a la condensación por encima del nivel del terreno, además de mejorar la capacidad estructural. \n•\tElevar las instalaciones sensibles, como tomas eléctricas, al menos un metro por encima del nivel del suelo acabado para prevenir daños por inundación. \n•\tConstruir barreras físicas, como muros o bancos de tierra, o redirigir los desagües para proteger el edificio frente a la entrada de agua. \n•\tModificar los umbrales de las puertas para permitir la instalación de barreras temporales, como sacos de arena. \n•\tEmplear materiales resistentes al agua en cimientos y zapatas, como aditivos para hormigón o bloques/ladrillos de alta densidad.","•\tEvitar ubicaciones con riesgo potencial, como zonas propensas a inundaciones o con drenaje insuficiente. \n•\t Implementar sistemas de drenaje perimetral, incluyendo soluciones sostenibles como zanjas, canales y sistemas urbanos de drenaje sostenible (SUDS). \n•\tUtilizar pavimentos duros permeables en áreas ajardinadas y minimizar las superficies exteriores impermeables, promoviendo el uso extensivo de espacios verdes. \n•\tConsiderar las proyecciones climáticas y la capacidad de las redes de drenaje en el diseño y planificación de las edificaciones. \n•\tAplicar membranas impermeabilizantes en muros y suelos, emplear materiales densos en plantas bajas y soluciones resistentes a la condensación por encima del nivel del terreno, además de mejorar la capacidad estructural. \n•\tElevar las instalaciones sensibles, como tomas eléctricas, al menos un metro por encima del nivel del suelo acabado para prevenir daños por inundación. \n•\tConstruir barreras físicas, como muros o bancos de tierra, o redirigir los desagües para proteger el edificio frente a la entrada de agua. \n•\tModificar los umbrales de las puertas para permitir la instalación de barreras temporales, como sacos de arena. \n•\tEmplear materiales resistentes al agua en cimientos y zapatas, como aditivos para hormigón o bloques/ladrillos de alta densidad.","•\tEvitar ubicaciones con riesgo potencial, como zonas propensas a inundaciones o con drenaje insuficiente. \n•\t Implementar sistemas de drenaje perimetral, incluyendo soluciones sostenibles como zanjas, canales y sistemas urbanos de drenaje sostenible (SUDS). \n•\tUtilizar pavimentos duros permeables en áreas ajardinadas y minimizar las superficies exteriores impermeables, promoviendo el uso extensivo de espacios verdes. \n•\tConsiderar las proyecciones climáticas y la capacidad de las redes de drenaje en el diseño y planificación de las edificaciones. \n•\tAplicar membranas impermeabilizantes en muros y suelos, emplear materiales densos en plantas bajas y soluciones resistentes a la condensación por encima del nivel del terreno, además de mejorar la capacidad estructural. \n•\tElevar las instalaciones sensibles, como tomas eléctricas, al menos un metro por encima del nivel del suelo acabado para prevenir daños por inundación. \n•\tConstruir barreras físicas, como muros o bancos de tierra, o redirigir los desagües para proteger el edificio frente a la entrada de agua. \n•\tModificar los umbrales de las puertas para permitir la instalación de barreras temporales, como sacos de arena. \n•\tEmplear materiales resistentes al agua en cimientos y zapatas, como aditivos para hormigón o bloques/ladrillos de alta densidad.","•\tRediseñar las cubiertas para considerar una carga por nieve variable y una mayor exposición a lluvias intensas y viento.\n•\tIncorporar pendientes más pronunciadas y sistemas de drenaje eficientes para evitar acumulaciones de agua por lluvias en lugar de nieve.\n•\tUsar revestimientos, selladores y materiales que soporten mejor la exposición prolongada a la lluvia y la humedad ambiental.\n•\tAdaptar el aislamiento para responder a inviernos menos fríos pero más húmedos, manteniendo el confort interior.\n•\tIncorporar ventilación mecánica controlada y materiales que eviten condensaciones en espacios habitables.\n•\tIntegrar proyecciones locales sobre el cambio en el régimen nival en el diseño de edificaciones nuevas y en rehabilitaciones.\n•\tIncorporar vegetación autóctona resistente a cambios en la humedad y temperatura, y que contribuya a la gestión del agua.","•\tRefuerzo de la resistencia estructural mediante riostras, contrafuertes y marcos más robustos.\n•\tReducción de carga con pórticos de madera o paneles estructurales aislantes (SIP) que permiten el movimiento del edificio.\n•\tUso de losas de cimentación para limitar el movimiento o losas independientes para permitir que la estructura “flote” y se renivele.\n•\tAumento de la profundidad de los pilotes o extensión hasta el nivel de roca para desacoplar la estructura del terreno.\n•\tSombreado del entorno (natural o artificial) y diseño arquitectónico que incluya parasoles, aleros en voladizo, intradoses profundos o fachadas de doble piel.\n•\tUso de vidrio de alto rendimiento para minimizar la transferencia de calor.\n•\tAumento del aislamiento térmico en la envolvente y las instalaciones del edificio.\n•\tMayor estanqueidad al aire en la envolvente para reducir infiltraciones.\n•\tUso de dispositivos de iluminación de bajo consumo para reducir las ganancias térmicas internas.\n•\tSustitución de la ventilación natural por sistemas de ventilación mecánica controlada.\n•\tIncorporación de sistemas de refrigeración de alto rendimiento o mayor eficiencia.","•\tRefuerzo de la resistencia estructural mediante riostras, contrafuertes y marcos más robustos.\n•\tReducción de carga con pórticos de madera o paneles estructurales aislantes (SIP) que permiten el movimiento del edificio.\n•\tUso de losas de cimentación para limitar el movimiento o losas independientes para permitir que la estructura “flote” y se renivele.\n•\tAumento de la profundidad de los pilotes o extensión hasta el nivel de roca para desacoplar la estructura del terreno.\n•\tSombreado del entorno (natural o artificial) y diseño arquitectónico que incluya parasoles, aleros en voladizo, intradoses profundos o fachadas de doble piel.\n•\tUso de vidrio de alto rendimiento para minimizar la transferencia de calor.\n•\tAumento del aislamiento térmico en la envolvente y las instalaciones del edificio.\n•\tMayor estanqueidad al aire en la envolvente para reducir infiltraciones.\n•\tUso de dispositivos de iluminación de bajo consumo para reducir las ganancias térmicas internas.\n•\tSustitución de la ventilación natural por sistemas de ventilación mecánica controlada.\n•\tIncorporación de sistemas de refrigeración de alto rendimiento o mayor eficiencia.","•\tUso de materiales ligeros y flexibles: Implementación de pórticos de madera o paneles aislantes estructurales para reducir la carga sobre la estructura y facilitar el movimiento controlado del edificio en respuesta a condiciones externas.\n•\tInstalación de losas de cimentación convencionales para restringir el desplazamiento del edificio.\n•\tUso de losas independientes que permiten que la estructura “flote” y se nivele automáticamente ante movimientos del terreno.\n•\tProfundización de elementos de cimentación: Extensión de pilotes hasta alcanzar el nivel de roca firme, con el objetivo de desacoplar la estructura del terreno superficial y garantizar una base estable e independiente.","•\tRefuerzo estructural: Incorporación de elementos como riostras, contrafuertes y marcos de mayor robustez para incrementar la resistencia general de la estructura.\n•\tOptimización del revestimiento y soporte: Aplicación de revestimientos especializados para una mejor gestión de cargas, así como reducción del espaciado entre los componentes de soporte para aumentar la estabilidad.\n•\tSistemas de fijación para cubiertas: Instalación de anclajes específicos para el soporte de la cubierta del tejado, incluyendo ganchos o clavos diseñados para asegurar los elementos de cobertura como las tejas.\n•\tMejora en la ventilación: Sustitución de la ventilación natural por sistemas de ventilación mecánica que permitan un control más eficiente del flujo de aire.","•\tRefuerzo estructural: Incorporación de elementos como riostras, contrafuertes y marcos de mayor robustez para incrementar la resistencia general de la estructura.\n•\tOptimización del revestimiento y soporte: Aplicación de revestimientos especializados para una mejor gestión de cargas, así como reducción del espaciado entre los componentes de soporte para aumentar la estabilidad.\n•\tSistemas de fijación para cubiertas: Instalación de anclajes específicos para el soporte de la cubierta del tejado, incluyendo ganchos o clavos diseñados para asegurar los elementos de cobertura como las tejas.\n•\tMejora en la ventilación: Sustitución de la ventilación natural por sistemas de ventilación mecánica que permitan un control más eficiente del flujo de aire."]
[null,"Edificios","Rehabilitación integral","•\tEvitar ubicaciones con riesgo potencial, como zonas propensas a inundaciones o con drenaje insuficiente. \n•\t Implementar sistemas de drenaje perimetral, incluyendo soluciones sostenibles como zanjas, canales y sistemas urbanos de drenaje sostenible (SUDS). \n•\tUtilizar pavimentos duros permeables en áreas ajardinadas y minimizar las superficies exteriores impermeables, promoviendo el uso extensivo de espacios verdes. \n•\tConsiderar las proyecciones climáticas y la capacidad de las redes de drenaje en el diseño y planificación de las edificaciones. \n•\tAplicar membranas impermeabilizantes en muros y suelos, emplear materiales densos en plantas bajas y soluciones resistentes a la condensación por encima del nivel del terreno, además de mejorar la capacidad estructural. \n•\tElevar las instalaciones sensibles, como tomas eléctricas, al menos un metro por encima del nivel del suelo acabado para prevenir daños por inundación. \n•\tConstruir barreras físicas, como muros o bancos de tierra, o redirigir los desagües para proteger el edificio frente a la entrada de agua. \n•\tModificar los umbrales de las puertas para permitir la instalación de barreras temporales, como sacos de arena. \n•\tEmplear materiales resistentes al agua en cimientos y zapatas, como aditivos para hormigón o bloques/ladrillos de alta densidad.","•\tEvitar ubicaciones con riesgo potencial, como zonas propensas a inundaciones o con drenaje insuficiente. \n•\t Implementar sistemas de drenaje perimetral, incluyendo soluciones sostenibles como zanjas, canales y sistemas urbanos de drenaje sostenible (SUDS). \n•\tUtilizar pavimentos duros permeables en áreas ajardinadas y minimizar las superficies exteriores impermeables, promoviendo el uso extensivo de espacios verdes. \n•\tConsiderar las proyecciones climáticas y la capacidad de las redes de drenaje en el diseño y planificación de las edificaciones. \n•\tAplicar membranas impermeabilizantes en muros y suelos, emplear materiales densos en plantas bajas y soluciones resistentes a la condensación por encima del nivel del terreno, además de mejorar la capacidad estructural. \n•\tElevar las instalaciones sensibles, como tomas eléctricas, al menos un metro por encima del nivel del suelo acabado para prevenir daños por inundación. \n•\tConstruir barreras físicas, como muros o bancos de tierra, o redirigir los desagües para proteger el edificio frente a la entrada de agua. \n•\tModificar los umbrales de las puertas para permitir la instalación de barreras temporales, como sacos de arena. \n•\tEmplear materiales resistentes al agua en cimientos y zapatas, como aditivos para hormigón o bloques/ladrillos de alta densidad.","•\tEvitar ubicaciones con riesgo potencial, como zonas propensas a inundaciones o con drenaje insuficiente. \n•\t Implementar sistemas de drenaje perimetral, incluyendo soluciones sostenibles como zanjas, canales y sistemas urbanos de drenaje sostenible (SUDS). \n•\tUtilizar pavimentos duros permeables en áreas ajardinadas y minimizar las superficies exteriores impermeables, promoviendo el uso extensivo de espacios verdes. \n•\tConsiderar las proyecciones climáticas y la capacidad de las redes de drenaje en el diseño y planificación de las edificaciones. \n•\tAplicar membranas impermeabilizantes en muros y suelos, emplear materiales densos en plantas bajas y soluciones resistentes a la condensación por encima del nivel del terreno, además de mejorar la capacidad estructural. \n•\tElevar las instalaciones sensibles, como tomas eléctricas, al menos un metro por encima del nivel del suelo acabado para prevenir daños por inundación. \n•\tConstruir barreras físicas, como muros o bancos de tierra, o redirigir los desagües para proteger el edificio frente a la entrada de agua. \n•\tModificar los umbrales de las puertas para permitir la instalación de barreras temporales, como sacos de arena. \n•\tEmplear materiales resistentes al agua en cimientos y zapatas, como aditivos para hormigón o bloques/ladrillos de alta densidad.","•\tEvitar ubicaciones con riesgo potencial, como zonas propensas a inundaciones o con drenaje insuficiente. \n•\t Implementar sistemas de drenaje perimetral, incluyendo soluciones sostenibles como zanjas, canales y sistemas urbanos de drenaje sostenible. \n•\tUtilizar pavimentos duros permeables en áreas ajardinadas y minimizar las superficies exteriores impermeables, promoviendo el uso extensivo de espacios verdes. \n•\tConsiderar las proyecciones climáticas y la capacidad de las redes de drenaje en el diseño y planificación de las edificaciones. \n•\tAplicar membranas impermeabilizantes en muros y suelos, emplear materiales densos en plantas bajas y soluciones resistentes a la condensación por encima del nivel del terreno, además de mejorar la capacidad estructural. \n•\tElevar las instalaciones sensibles, como tomas eléctricas, al menos un metro por encima del nivel del suelo acabado para prevenir daños por inundación. \n•\tConstruir barreras físicas, como muros o bancos de tierra, o redirigir los desagües para proteger el edificio frente a la entrada de agua. \n•\tModificar los umbrales de las puertas para permitir la instalación de barreras temporales, como sacos de arena. \n•\tEmplear materiales resistentes al agua en cimientos y zapatas, como aditivos para hormigón o bloques/ladrillos de alta densidad.","•\tEvitar ubicaciones con riesgo potencial, como zonas propensas a inundaciones o con drenaje insuficiente. \n•\t Implementar sistemas de drenaje perimetral, incluyendo soluciones sostenibles como zanjas, canales y sistemas urbanos de drenaje sostenible (SUDS). \n•\tUtilizar pavimentos duros permeables en áreas ajardinadas y minimizar las superficies exteriores impermeables, promoviendo el uso extensivo de espacios verdes. \n•\tConsiderar las proyecciones climáticas y la capacidad de las redes de drenaje en el diseño y planificación de las edificaciones. \n•\tAplicar membranas impermeabilizantes en muros y suelos, emplear materiales densos en plantas bajas y soluciones resistentes a la condensación por encima del nivel del terreno, además de mejorar la capacidad estructural. \n•\tElevar las instalaciones sensibles, como tomas eléctricas, al menos un metro por encima del nivel del suelo acabado para prevenir daños por inundación. \n•\tConstruir barreras físicas, como muros o bancos de tierra, o redirigir los desagües para proteger el edificio frente a la entrada de agua. \n•\tModificar los umbrales de las puertas para permitir la instalación de barreras temporales, como sacos de arena. \n•\tEmplear materiales resistentes al agua en cimientos y zapatas, como aditivos para hormigón o bloques/ladrillos de alta densidad.","•\tEvitar ubicaciones con riesgo potencial, como zonas propensas a inundaciones o con drenaje insuficiente. \n•\t Implementar sistemas de drenaje perimetral, incluyendo soluciones sostenibles como zanjas, canales y sistemas urbanos de drenaje sostenible (SUDS). \n•\tUtilizar pavimentos duros permeables en áreas ajardinadas y minimizar las superficies exteriores impermeables, promoviendo el uso extensivo de espacios verdes. \n•\tConsiderar las proyecciones climáticas y la capacidad de las redes de drenaje en el diseño y planificación de las edificaciones. \n•\tAplicar membranas impermeabilizantes en muros y suelos, emplear materiales densos en plantas bajas y soluciones resistentes a la condensación por encima del nivel del terreno, además de mejorar la capacidad estructural. \n•\tElevar las instalaciones sensibles, como tomas eléctricas, al menos un metro por encima del nivel del suelo acabado para prevenir daños por inundación. \n•\tConstruir barreras físicas, como muros o bancos de tierra, o redirigir los desagües para proteger el edificio frente a la entrada de agua. \n•\tModificar los umbrales de las puertas para permitir la instalación de barreras temporales, como sacos de arena. \n•\tEmplear materiales resistentes al agua en cimientos y zapatas, como aditivos para hormigón o bloques/ladrillos de alta densidad.","•\tRediseñar las cubiertas para considerar una carga por nieve variable y una mayor exposición a lluvias intensas y viento.\n•\tIncorporar pendientes más pronunciadas y sistemas de drenaje eficientes para evitar acumulaciones de agua por lluvias en lugar de nieve.\n•\tUsar revestimientos, selladores y materiales que soporten mejor la exposición prolongada a la lluvia y la humedad ambiental.\n•\tAdaptar el aislamiento para responder a inviernos menos fríos pero más húmedos, manteniendo el confort interior.\n•\tIncorporar ventilación mecánica controlada y materiales que eviten condensaciones en espacios habitables.\n•\tIntegrar proyecciones locales sobre el cambio en el régimen nival en el diseño de edificaciones nuevas y en rehabilitaciones.\n•\tIncorporar vegetación autóctona resistente a cambios en la humedad y temperatura, y que contribuya a la gestión del agua.","•\tRefuerzo de la resistencia estructural mediante riostras, contrafuertes y marcos más robustos.\n•\tReducción de carga con pórticos de madera o paneles estructurales aislantes (SIP) que permiten el movimiento del edificio.\n•\tUso de losas de cimentación para limitar el movimiento o losas independientes para permitir que la estructura “flote” y se renivele.\n•\tAumento de la profundidad de los pilotes o extensión hasta el nivel de roca para desacoplar la estructura del terreno.\n•\tSombreado del entorno (natural o artificial) y diseño arquitectónico que incluya parasoles, aleros en voladizo, intradoses profundos o fachadas de doble piel.\n•\tUso de vidrio de alto rendimiento para minimizar la transferencia de calor.\n•\tAumento del aislamiento térmico en la envolvente y las instalaciones del edificio.\n•\tMayor estanqueidad al aire en la envolvente para reducir infiltraciones.\n•\tUso de dispositivos de iluminación de bajo consumo para reducir las ganancias térmicas internas.\n•\tSustitución de la ventilación natural por sistemas de ventilación mecánica controlada.\n•\tIncorporación de sistemas de refrigeración de alto rendimiento o mayor eficiencia.","•\tRefuerzo de la resistencia estructural mediante riostras, contrafuertes y marcos más robustos.\n•\tReducción de carga con pórticos de madera o paneles estructurales aislantes (SIP) que permiten el movimiento del edificio.\n•\tUso de losas de cimentación para limitar el movimiento o losas independientes para permitir que la estructura “flote” y se renivele.\n•\tAumento de la profundidad de los pilotes o extensión hasta el nivel de roca para desacoplar la estructura del terreno.\n•\tSombreado del entorno (natural o artificial) y diseño arquitectónico que incluya parasoles, aleros en voladizo, intradoses profundos o fachadas de doble piel.\n•\tUso de vidrio de alto rendimiento para minimizar la transferencia de calor.\n•\tAumento del aislamiento térmico en la envolvente y las instalaciones del edificio.\n•\tMayor estanqueidad al aire en la envolvente para reducir infiltraciones.\n•\tUso de dispositivos de iluminación de bajo consumo para reducir las ganancias térmicas internas.\n•\tSustitución de la ventilación natural por sistemas de ventilación mecánica controlada.\n•\tIncorporación de sistemas de refrigeración de alto rendimiento o mayor eficiencia.","•\tUso de materiales ligeros y flexibles: Implementación de pórticos de madera o paneles aislantes estructurales para reducir la carga sobre la estructura y facilitar el movimiento controlado del edificio en respuesta a condiciones externas.\n•\tInstalación de losas de cimentación convencionales para restringir el desplazamiento del edificio.\n•\tUso de losas independientes que permiten que la estructura “flote” y se nivele automáticamente ante movimientos del terreno.\n•\tProfundización de elementos de cimentación: Extensión de pilotes hasta alcanzar el nivel de roca firme, con el objetivo de desacoplar la estructura del terreno superficial y garantizar una base estable e independiente.","•\tRefuerzo estructural: Incorporación de elementos como riostras, contrafuertes y marcos de mayor robustez para incrementar la resistencia general de la estructura.\n•\tOptimización del revestimiento y soporte: Aplicación de revestimientos especializados para una mejor gestión de cargas, así como reducción del espaciado entre los componentes de soporte para aumentar la estabilidad.\n•\tSistemas de fijación para cubiertas: Instalación de anclajes específicos para el soporte de la cubierta del tejado, incluyendo ganchos o clavos diseñados para asegurar los elementos de cobertura como las tejas.\n•\tMejora en la ventilación: Sustitución de la ventilación natural por sistemas de ventilación mecánica que permitan un control más eficiente del flujo de aire.","•\tRefuerzo estructural: Incorporación de elementos como riostras, contrafuertes y marcos de mayor robustez para incrementar la resistencia general de la estructura.\n•\tOptimización del revestimiento y soporte: Aplicación de revestimientos especializados para una mejor gestión de cargas, así como reducción del espaciado entre los componentes de soporte para aumentar la estabilidad.\n•\tSistemas de fijación para cubiertas: Instalación de anclajes específicos para el soporte de la cubierta del tejado, incluyendo ganchos o clavos diseñados para asegurar los elementos de cobertura como las tejas.\n•\tMejora en la ventilación: Sustitución de la ventilación natural por sistemas de ventilación mecánica que permitan un control más eficiente del flujo de aire."]
[null,"Residuos","Puntos de recogida de residuos","•\tReubicación estratégica de instalaciones vulnerables\n•\tElevación y protección física de infraestructuras\n•\tSistemas de drenaje adaptados para eventos extremos y posibles intrusiones salinas.\n•\tSeparación de aguas contaminadas y salinas para evitar daños en procesos de valorización.\n•\tCrear nodos logísticos alternativos para la recogida y transporte de residuos en caso de cierre temporal de instalaciones costeras. \n•\tFomentar plantas móviles o modulares de tratamiento.\n•\tIntegración de sensores de nivel del mar, humedad y presión en instalaciones costeras. \n•\tConexión con redes de protección civil y meteorología regional.","•\tEvaluación de la exposición al riesgo costero mediante mapas de inundación. \n•\tPlanificación de nuevas instalaciones en zonas interiores o elevadas.\n•\tElevación y protección física de infraestructuras\n•\tInstalación de barreras naturales y artificiales\n•\tRediseño de redes de drenaje en plantas de residuos para manejar grandes volúmenes de agua.\n•\tSeparación de aguas pluviales y contaminadas para evitar desbordamientos.\n•\tInstalación de sensores de nivel del mar, presión atmosférica y humedad en instalaciones costeras. \n•\t Integración con redes de protección civil y meteorología regional.","•\tEvaluación de la exposición al riesgo costero mediante mapas de inundación. \n•\tPlanificación de nuevas instalaciones en zonas interiores o elevadas.\n•\tElevación y protección física de infraestructuras\n•\tInstalación de barreras naturales y artificiales\n•\tRediseño de redes de drenaje en plantas de residuos para manejar grandes volúmenes de agua.\n•\tSeparación de aguas pluviales y contaminadas para evitar desbordamientos.\n•\tInstalación de sensores de nivel del mar, presión atmosférica y humedad en instalaciones costeras. \n•\t Integración con redes de protección civil y meteorología regional.","•\tInstalación de redes de drenaje pluvial con mayor capacidad. \n•\tSeparación de aguas pluviales y residuales para evitar desbordamientos.\n•\tCubiertas impermeables para residuos almacenados al aire libre.\n•\tBarreras físicas para evitar el arrastre de residuos por escorrentías.\n•\tInstalación de sensores de lluvia, humedad y presión atmosférica.\n•\tIntegración con redes de protección civil y meteorología regional.\n•\tPlantas de tratamiento con capacidad de adaptación a variaciones climáticas.\n•\tEspacios de almacenamiento temporales elevados o móviles.\n•\tZonas verdes de infiltración alrededor de instalaciones.\n•\tJardines de lluvia y vegetación adaptada para absorber escorrentías.","•\tEvaluación de la exposición al riesgo costero mediante mapas de inundación. \n•\tPlanificación de nuevas instalaciones en zonas interiores o elevadas.\n•\tElevación y protección física de infraestructuras\n•\tInstalación de barreras naturales y artificiales\n•\tRediseño de redes de drenaje en plantas de residuos para manejar grandes volúmenes de agua.\n•\tSeparación de aguas pluviales y contaminadas para evitar desbordamientos.\n•\tInstalación de sensores de nivel del mar, presión atmosférica y humedad en instalaciones costeras. \n•\t Integración con redes de protección civil y meteorología regional.","•\tEvaluación de la exposición al riesgo costero mediante mapas de inundación. \n•\tPlanificación de nuevas instalaciones en zonas interiores o elevadas.\n•\tElevación y protección física de infraestructuras\n•\tInstalación de barreras naturales y artificiales\n•\tRediseño de redes de drenaje en plantas de residuos para manejar grandes volúmenes de agua.\n•\tSeparación de aguas pluviales y contaminadas para evitar desbordamientos.\n•\tInstalación de sensores de nivel del mar, presión atmosférica y humedad en instalaciones costeras. \n•\t Integración con redes de protección civil y meteorología regional.","•\tInstalación de techos reforzados en zonas de almacenamiento y tratamiento para soportar acumulaciones de nieve. \n•\tIncorporación de sistemas de calefacción pasiva o activa para evitar congelaciones.\n•\tProtección de tuberías, bombas y sistemas de tratamiento con materiales aislantes. \n•\tUso de sensores de temperatura para activar sistemas de protección ante heladas.\n•\tDiseño de rutas alternativas para la recogida de residuos en caso de nevadas intensas. \n•\tCoordinación con servicios de emergencia y meteorología.\n•\tSistemas de drenaje adaptados para manejar grandes volúmenes de agua por deshielo rápido. \n•\tSeparación de aguas limpias y contaminadas para evitar sobrecargas.\n•\tInstalación de sensores de nieve, temperatura y humedad en instalaciones clave. \n•\tActivación de protocolos de emergencia ante alertas meteorológicas.","•\tIncorporar materiales aislantes en cubiertas y fachadas de plantas de residuos. \n•\tInstalar sistemas de ventilación natural y sombreado en zonas operativas.\n•\tOptimización energética y uso de energías renovables\n•\tSensores de temperatura y humedad en zonas de trabajo y almacenamiento. \n•\tProtocolos de actuación para proteger al personal y evitar fallos operativos.\n•\tIntegración de vegetación en el entorno de las instalaciones. \n•\tUso de techos verdes para regular la temperatura interior.\n•\tAjuste de turnos de trabajo para evitar las horas de mayor calor. \n•\tPlanificación de rutas de recogida más eficientes en verano.","•\tIncorporar materiales aislantes en cubiertas y fachadas de plantas de residuos. \n•\tInstalar sistemas de ventilación natural y sombreado en zonas operativas.\n•\tOptimización energética y uso de energías renovables\n•\tSensores de temperatura y humedad en zonas de trabajo y almacenamiento. \n•\tProtocolos de actuación para proteger al personal y evitar fallos operativos.\n•\tIntegración de vegetación en el entorno de las instalaciones. \n•\tUso de techos verdes para regular la temperatura interior.\n•\tAjuste de turnos de trabajo para evitar las horas de mayor calor. \n•\tPlanificación de rutas de recogida más eficientes en verano.","•\tRefuerzo de taludes mediante muros de contención, mallas metálicas o estructuras de anclaje. \n•\tUso de técnicas de bioingeniería como revegetación con especies de raíces profundas.\n•\tInstalación de sistemas de drenaje superficial y subterráneo para evitar acumulación de agua en pendientes. \n•\tCanalización segura de escorrentías hacia zonas controladas.\n•\tEvitar la construcción de plantas en zonas con riesgo geológico identificado\n•\tPriorizar terrenos planos o con pendientes suaves y buena capacidad de carga.\n•\tInstalación de sensores de humedad del suelo, inclinación y presión en zonas críticas. \n•\tIntegración con sistemas de alerta temprana ante lluvias intensas o movimientos sísmicos.\n•\tPlantación de vegetación autóctona con capacidad de fijar el suelo. \n•\tMantenimiento de franjas verdes como barreras naturales de protección.","•\tRefuerzo de cubiertas, fachadas y estructuras metálicas en plantas situadas en zonas abiertas o elevadas.\n•\tUso de materiales resistentes al viento y sistemas de anclaje reforzados.\n•\tConstrucción de edificios y almacenes con formas que minimicen la resistencia al viento. \n•\tOrientación de accesos y zonas de carga en dirección opuesta a los vientos predominantes.\n•\tUso de contenedores cerrados, cubiertas móviles o redes de protección para evitar dispersión de residuos. \n•\tRefuerzo de sistemas de sujeción en zonas de almacenamiento temporal.\n•\tPlantación de setos, árboles o estructuras verdes alrededor de instalaciones. \n•\tDiseño paisajístico que reduzca la velocidad del viento en zonas operativas.","•\tRefuerzo de cubiertas, fachadas y estructuras metálicas en plantas situadas en zonas abiertas o elevadas.\n•\tUso de materiales resistentes al viento y sistemas de anclaje reforzados.\n•\tConstrucción de edificios y almacenes con formas que minimicen la resistencia al viento. \n•\tOrientación de accesos y zonas de carga en dirección opuesta a los vientos predominantes.\n•\tUso de contenedores cerrados, cubiertas móviles o redes de protección para evitar dispersión de residuos. \n•\tRefuerzo de sistemas de sujeción en zonas de almacenamiento temporal.\n•\tPlantación de setos, árboles o estructuras verdes alrededor de instalaciones. \n•\tDiseño paisajístico que reduzca la velocidad del viento en zonas operativas."]
[null,"Residuos","Instalación de clasificación y reciclaje","•\tReubicación estratégica de instalaciones vulnerables\n•\tElevación y protección física de infraestructuras\n•\tSistemas de drenaje adaptados para eventos extremos y posibles intrusiones salinas.\n•\tSeparación de aguas contaminadas y salinas para evitar daños en procesos de valorización.\n•\tCrear nodos logísticos alternativos para la recogida y transporte de residuos en caso de cierre temporal de instalaciones costeras. \n•\tFomentar plantas móviles o modulares de tratamiento.\n•\tIntegración de sensores de nivel del mar, humedad y presión en instalaciones costeras. \n•\tConexión con redes de protección civil y meteorología regional.","•\tEvaluación de la exposición al riesgo costero mediante mapas de inundación. \n•\tPlanificación de nuevas instalaciones en zonas interiores o elevadas.\n•\tElevación y protección física de infraestructuras\n•\tInstalación de barreras naturales y artificiales\n•\tRediseño de redes de drenaje en plantas de residuos para manejar grandes volúmenes de agua.\n•\tSeparación de aguas pluviales y contaminadas para evitar desbordamientos.\n•\tInstalación de sensores de nivel del mar, presión atmosférica y humedad en instalaciones costeras. \n•\t Integración con redes de protección civil y meteorología regional.","•\tEvaluación de la exposición al riesgo costero mediante mapas de inundación. \n•\tPlanificación de nuevas instalaciones en zonas interiores o elevadas.\n•\tElevación y protección física de infraestructuras\n•\tInstalación de barreras naturales y artificiales\n•\tRediseño de redes de drenaje en plantas de residuos para manejar grandes volúmenes de agua.\n•\tSeparación de aguas pluviales y contaminadas para evitar desbordamientos.\n•\tInstalación de sensores de nivel del mar, presión atmosférica y humedad en instalaciones costeras. \n•\t Integración con redes de protección civil y meteorología regional.","•\tInstalación de redes de drenaje pluvial con mayor capacidad. \n•\tSeparación de aguas pluviales y residuales para evitar desbordamientos.\n•\tCubiertas impermeables para residuos almacenados al aire libre.\n•\tBarreras físicas para evitar el arrastre de residuos por escorrentías.\n•\tInstalación de sensores de lluvia, humedad y presión atmosférica.\n•\tIntegración con redes de protección civil y meteorología regional.\n•\tPlantas de tratamiento con capacidad de adaptación a variaciones climáticas.\n•\tEspacios de almacenamiento temporales elevados o móviles.\n•\tZonas verdes de infiltración alrededor de instalaciones.\n•\tJardines de lluvia y vegetación adaptada para absorber escorrentías.","•\tEvaluación de la exposición al riesgo costero mediante mapas de inundación. \n•\tPlanificación de nuevas instalaciones en zonas interiores o elevadas.\n•\tElevación y protección física de infraestructuras\n•\tInstalación de barreras naturales y artificiales\n•\tRediseño de redes de drenaje en plantas de residuos para manejar grandes volúmenes de agua.\n•\tSeparación de aguas pluviales y contaminadas para evitar desbordamientos.\n•\tInstalación de sensores de nivel del mar, presión atmosférica y humedad en instalaciones costeras. \n•\t Integración con redes de protección civil y meteorología regional.","•\tEvaluación de la exposición al riesgo costero mediante mapas de inundación. \n•\tPlanificación de nuevas instalaciones en zonas interiores o elevadas.\n•\tElevación y protección física de infraestructuras\n•\tInstalación de barreras naturales y artificiales\n•\tRediseño de redes de drenaje en plantas de residuos para manejar grandes volúmenes de agua.\n•\tSeparación de aguas pluviales y contaminadas para evitar desbordamientos.\n•\tInstalación de sensores de nivel del mar, presión atmosférica y humedad en instalaciones costeras. \n•\t Integración con redes de protección civil y meteorología regional.","•\tInstalación de techos reforzados en zonas de almacenamiento y tratamiento para soportar acumulaciones de nieve. \n•\tIncorporación de sistemas de calefacción pasiva o activa para evitar congelaciones.\n•\tProtección de tuberías, bombas y sistemas de tratamiento con materiales aislantes. \n•\tUso de sensores de temperatura para activar sistemas de protección ante heladas.\n•\tDiseño de rutas alternativas para la recogida de residuos en caso de nevadas intensas. \n•\tCoordinación con servicios de emergencia y meteorología.\n•\tSistemas de drenaje adaptados para manejar grandes volúmenes de agua por deshielo rápido. \n•\tSeparación de aguas limpias y contaminadas para evitar sobrecargas.\n•\tInstalación de sensores de nieve, temperatura y humedad en instalaciones clave. \n•\tActivación de protocolos de emergencia ante alertas meteorológicas.","•\tIncorporar materiales aislantes en cubiertas y fachadas de plantas de residuos. \n•\tInstalar sistemas de ventilación natural y sombreado en zonas operativas.\n•\tOptimización energética y uso de energías renovables\n•\tSensores de temperatura y humedad en zonas de trabajo y almacenamiento. \n•\tProtocolos de actuación para proteger al personal y evitar fallos operativos.\n•\tIntegración de vegetación en el entorno de las instalaciones. \n•\tUso de techos verdes para regular la temperatura interior.\n•\tAjuste de turnos de trabajo para evitar las horas de mayor calor. \n•\tPlanificación de rutas de recogida más eficientes en verano.","•\tIncorporar materiales aislantes en cubiertas y fachadas de plantas de residuos. \n•\tInstalar sistemas de ventilación natural y sombreado en zonas operativas.\n•\tOptimización energética y uso de energías renovables\n•\tSensores de temperatura y humedad en zonas de trabajo y almacenamiento. \n•\tProtocolos de actuación para proteger al personal y evitar fallos operativos.\n•\tIntegración de vegetación en el entorno de las instalaciones. \n•\tUso de techos verdes para regular la temperatura interior.\n•\tAjuste de turnos de trabajo para evitar las horas de mayor calor. \n•\tPlanificación de rutas de recogida más eficientes en verano.","•\tRefuerzo de taludes mediante muros de contención, mallas metálicas o estructuras de anclaje. \n•\tUso de técnicas de bioingeniería como revegetación con especies de raíces profundas.\n•\tInstalación de sistemas de drenaje superficial y subterráneo para evitar acumulación de agua en pendientes. \n•\tCanalización segura de escorrentías hacia zonas controladas.\n•\tEvitar la construcción de plantas en zonas con riesgo geológico identificado\n•\tPriorizar terrenos planos o con pendientes suaves y buena capacidad de carga.\n•\tInstalación de sensores de humedad del suelo, inclinación y presión en zonas críticas. \n•\tIntegración con sistemas de alerta temprana ante lluvias intensas o movimientos sísmicos.\n•\tPlantación de vegetación autóctona con capacidad de fijar el suelo. \n•\tMantenimiento de franjas verdes como barreras naturales de protección.","•\tRefuerzo de cubiertas, fachadas y estructuras metálicas en plantas situadas en zonas abiertas o elevadas.\n•\tUso de materiales resistentes al viento y sistemas de anclaje reforzados.\n•\tConstrucción de edificios y almacenes con formas que minimicen la resistencia al viento. \n•\tOrientación de accesos y zonas de carga en dirección opuesta a los vientos predominantes.\n•\tUso de contenedores cerrados, cubiertas móviles o redes de protección para evitar dispersión de residuos. \n•\tRefuerzo de sistemas de sujeción en zonas de almacenamiento temporal.\n•\tPlantación de setos, árboles o estructuras verdes alrededor de instalaciones. \n•\tDiseño paisajístico que reduzca la velocidad del viento en zonas operativas.","•\tRefuerzo de cubiertas, fachadas y estructuras metálicas en plantas situadas en zonas abiertas o elevadas.\n•\tUso de materiales resistentes al viento y sistemas de anclaje reforzados.\n•\tConstrucción de edificios y almacenes con formas que minimicen la resistencia al viento. \n•\tOrientación de accesos y zonas de carga en dirección opuesta a los vientos predominantes.\n•\tUso de contenedores cerrados, cubiertas móviles o redes de protección para evitar dispersión de residuos. \n•\tRefuerzo de sistemas de sujeción en zonas de almacenamiento temporal.\n•\tPlantación de setos, árboles o estructuras verdes alrededor de instalaciones. \n•\tDiseño paisajístico que reduzca la velocidad del viento en zonas operativas."]
[null,"Residuos","Instalación de gestión de residuos","•\tReubicación estratégica de instalaciones vulnerables\n•\tElevación y protección física de infraestructuras\n•\tSistemas de drenaje adaptados para eventos extremos y posibles intrusiones salinas.\n•\tSeparación de aguas contaminadas y salinas para evitar daños en procesos de valorización.\n•\tCrear nodos logísticos alternativos para la recogida y transporte de residuos en caso de cierre temporal de instalaciones costeras. \n•\tFomentar plantas móviles o modulares de tratamiento.\n•\tIntegración de sensores de nivel del mar, humedad y presión en instalaciones costeras. \n•\tConexión con redes de protección civil y meteorología regional.","•\tEvaluación de la exposición al riesgo costero mediante mapas de inundación. \n•\tPlanificación de nuevas instalaciones en zonas interiores o elevadas.\n•\tElevación y protección física de infraestructuras\n•\tInstalación de barreras naturales y artificiales\n•\tRediseño de redes de drenaje en plantas de residuos para manejar grandes volúmenes de agua.\n•\tSeparación de aguas pluviales y contaminadas para evitar desbordamientos.\n•\tInstalación de sensores de nivel del mar, presión atmosférica y humedad en instalaciones costeras. \n•\t Integración con redes de protección civil y meteorología regional.","•\tEvaluación de la exposición al riesgo costero mediante mapas de inundación. \n•\tPlanificación de nuevas instalaciones en zonas interiores o elevadas.\n•\tElevación y protección física de infraestructuras\n•\tInstalación de barreras naturales y artificiales\n•\tRediseño de redes de drenaje en plantas de residuos para manejar grandes volúmenes de agua.\n•\tSeparación de aguas pluviales y contaminadas para evitar desbordamientos.\n•\tInstalación de sensores de nivel del mar, presión atmosférica y humedad en instalaciones costeras. \n•\t Integración con redes de protección civil y meteorología regional.","•\tInstalación de redes de drenaje pluvial con mayor capacidad. \n•\tSeparación de aguas pluviales y residuales para evitar desbordamientos.\n•\tCubiertas impermeables para residuos almacenados al aire libre.\n•\tBarreras físicas para evitar el arrastre de residuos por escorrentías.\n•\tInstalación de sensores de lluvia, humedad y presión atmosférica.\n•\tIntegración con redes de protección civil y meteorología regional.\n•\tPlantas de tratamiento con capacidad de adaptación a variaciones climáticas.\n•\tEspacios de almacenamiento temporales elevados o móviles.\n•\tZonas verdes de infiltración alrededor de instalaciones.\n•\tJardines de lluvia y vegetación adaptada para absorber escorrentías.","•\tEvaluación de la exposición al riesgo costero mediante mapas de inundación. \n•\tPlanificación de nuevas instalaciones en zonas interiores o elevadas.\n•\tElevación y protección física de infraestructuras\n•\tInstalación de barreras naturales y artificiales\n•\tRediseño de redes de drenaje en plantas de residuos para manejar grandes volúmenes de agua.\n•\tSeparación de aguas pluviales y contaminadas para evitar desbordamientos.\n•\tInstalación de sensores de nivel del mar, presión atmosférica y humedad en instalaciones costeras. \n•\t Integración con redes de protección civil y meteorología regional.","•\tEvaluación de la exposición al riesgo costero mediante mapas de inundación. \n•\tPlanificación de nuevas instalaciones en zonas interiores o elevadas.\n•\tElevación y protección física de infraestructuras\n•\tInstalación de barreras naturales y artificiales\n•\tRediseño de redes de drenaje en plantas de residuos para manejar grandes volúmenes de agua.\n•\tSeparación de aguas pluviales y contaminadas para evitar desbordamientos.\n•\tInstalación de sensores de nivel del mar, presión atmosférica y humedad en instalaciones costeras. \n•\t Integración con redes de protección civil y meteorología regional.","•\tInstalación de techos reforzados en zonas de almacenamiento y tratamiento para soportar acumulaciones de nieve. \n•\tIncorporación de sistemas de calefacción pasiva o activa para evitar congelaciones.\n•\tProtección de tuberías, bombas y sistemas de tratamiento con materiales aislantes. \n•\tUso de sensores de temperatura para activar sistemas de protección ante heladas.\n•\tDiseño de rutas alternativas para la recogida de residuos en caso de nevadas intensas. \n•\tCoordinación con servicios de emergencia y meteorología.\n•\tSistemas de drenaje adaptados para manejar grandes volúmenes de agua por deshielo rápido. \n•\tSeparación de aguas limpias y contaminadas para evitar sobrecargas.\n•\tInstalación de sensores de nieve, temperatura y humedad en instalaciones clave. \n•\tActivación de protocolos de emergencia ante alertas meteorológicas.","•\tIncorporar materiales aislantes en cubiertas y fachadas de plantas de residuos. \n•\tInstalar sistemas de ventilación natural y sombreado en zonas operativas.\n•\tOptimización energética y uso de energías renovables\n•\tSensores de temperatura y humedad en zonas de trabajo y almacenamiento. \n•\tProtocolos de actuación para proteger al personal y evitar fallos operativos.\n•\tIntegración de vegetación en el entorno de las instalaciones. \n•\tUso de techos verdes para regular la temperatura interior.\n•\tAjuste de turnos de trabajo para evitar las horas de mayor calor. \n•\tPlanificación de rutas de recogida más eficientes en verano.","•\tIncorporar materiales aislantes en cubiertas y fachadas de plantas de residuos. \n•\tInstalar sistemas de ventilación natural y sombreado en zonas operativas.\n•\tOptimización energética y uso de energías renovables\n•\tSensores de temperatura y humedad en zonas de trabajo y almacenamiento. \n•\tProtocolos de actuación para proteger al personal y evitar fallos operativos.\n•\tIntegración de vegetación en el entorno de las instalaciones. \n•\tUso de techos verdes para regular la temperatura interior.\n•\tAjuste de turnos de trabajo para evitar las horas de mayor calor. \n•\tPlanificación de rutas de recogida más eficientes en verano.","•\tRefuerzo de taludes mediante muros de contención, mallas metálicas o estructuras de anclaje. \n•\tUso de técnicas de bioingeniería como revegetación con especies de raíces profundas.\n•\tInstalación de sistemas de drenaje superficial y subterráneo para evitar acumulación de agua en pendientes. \n•\tCanalización segura de escorrentías hacia zonas controladas.\n•\tEvitar la construcción de plantas en zonas con riesgo geológico identificado\n•\tPriorizar terrenos planos o con pendientes suaves y buena capacidad de carga.\n•\tInstalación de sensores de humedad del suelo, inclinación y presión en zonas críticas. \n•\tIntegración con sistemas de alerta temprana ante lluvias intensas o movimientos sísmicos.\n•\tPlantación de vegetación autóctona con capacidad de fijar el suelo. \n•\tMantenimiento de franjas verdes como barreras naturales de protección.","•\tRefuerzo de cubiertas, fachadas y estructuras metálicas en plantas situadas en zonas abiertas o elevadas.\n•\tUso de materiales resistentes al viento y sistemas de anclaje reforzados.\n•\tConstrucción de edificios y almacenes con formas que minimicen la resistencia al viento. \n•\tOrientación de accesos y zonas de carga en dirección opuesta a los vientos predominantes.\n•\tUso de contenedores cerrados, cubiertas móviles o redes de protección para evitar dispersión de residuos. \n•\tRefuerzo de sistemas de sujeción en zonas de almacenamiento temporal.\n•\tPlantación de setos, árboles o estructuras verdes alrededor de instalaciones. \n•\tDiseño paisajístico que reduzca la velocidad del viento en zonas operativas.","•\tRefuerzo de cubiertas, fachadas y estructuras metálicas en plantas situadas en zonas abiertas o elevadas.\n•\tUso de materiales resistentes al viento y sistemas de anclaje reforzados.\n•\tConstrucción de edificios y almacenes con formas que minimicen la resistencia al viento. \n•\tOrientación de accesos y zonas de carga en dirección opuesta a los vientos predominantes.\n•\tUso de contenedores cerrados, cubiertas móviles o redes de protección para evitar dispersión de residuos. \n•\tRefuerzo de sistemas de sujeción en zonas de almacenamiento temporal.\n•\tPlantación de setos, árboles o estructuras verdes alrededor de instalaciones. \n•\tDiseño paisajístico que reduzca la velocidad del viento en zonas operativas."]
[null,"Residuos","Plantas de valorización de residuos","•\tReubicación estratégica de instalaciones vulnerables\n•\tElevación y protección física de infraestructuras\n•\tSistemas de drenaje adaptados para eventos extremos y posibles intrusiones salinas.\n•\tSeparación de aguas contaminadas y salinas para evitar daños en procesos de valorización.\n•\tCrear nodos logísticos alternativos para la recogida y transporte de residuos en caso de cierre temporal de instalaciones costeras. \n•\tFomentar plantas móviles o modulares de tratamiento.\n•\tIntegración de sensores de nivel del mar, humedad y presión en instalaciones costeras. \n•\tConexión con redes de protección civil y meteorología regional.","•\tEvaluación de la exposición al riesgo costero mediante mapas de inundación. \n•\tPlanificación de nuevas instalaciones en zonas interiores o elevadas.\n•\tElevación y protección física de infraestructuras\n•\tInstalación de barreras naturales y artificiales\n•\tRediseño de redes de drenaje en plantas de residuos para manejar grandes volúmenes de agua.\n•\tSeparación de aguas pluviales y contaminadas para evitar desbordamientos.\n•\tInstalación de sensores de nivel del mar, presión atmosférica y humedad en instalaciones costeras. \n•\t Integración con redes de protección civil y meteorología regional.","•\tEvaluación de la exposición al riesgo costero mediante mapas de inundación. \n•\tPlanificación de nuevas instalaciones en zonas interiores o elevadas.\n•\tElevación y protección física de infraestructuras\n•\tInstalación de barreras naturales y artificiales\n•\tRediseño de redes de drenaje en plantas de residuos para manejar grandes volúmenes de agua.\n•\tSeparación de aguas pluviales y contaminadas para evitar desbordamientos.\n•\tInstalación de sensores de nivel del mar, presión atmosférica y humedad en instalaciones costeras. \n•\t Integración con redes de protección civil y meteorología regional.","•\tInstalación de redes de drenaje pluvial con mayor capacidad. \n•\tSeparación de aguas pluviales y residuales para evitar desbordamientos.\n•\tCubiertas impermeables para residuos almacenados al aire libre.\n•\tBarreras físicas para evitar el arrastre de residuos por escorrentías.\n•\tInstalación de sensores de lluvia, humedad y presión atmosférica.\n•\tIntegración con redes de protección civil y meteorología regional.\n•\tPlantas de tratamiento con capacidad de adaptación a variaciones climáticas.\n•\tEspacios de almacenamiento temporales elevados o móviles.\n•\tZonas verdes de infiltración alrededor de instalaciones.\n•\tJardines de lluvia y vegetación adaptada para absorber escorrentías.","•\tEvaluación de la exposición al riesgo costero mediante mapas de inundación. \n•\tPlanificación de nuevas instalaciones en zonas interiores o elevadas.\n•\tElevación y protección física de infraestructuras\n•\tInstalación de barreras naturales y artificiales\n•\tRediseño de redes de drenaje en plantas de residuos para manejar grandes volúmenes de agua.\n•\tSeparación de aguas pluviales y contaminadas para evitar desbordamientos.\n•\tInstalación de sensores de nivel del mar, presión atmosférica y humedad en instalaciones costeras. \n•\t Integración con redes de protección civil y meteorología regional.","•\tEvaluación de la exposición al riesgo costero mediante mapas de inundación. \n•\tPlanificación de nuevas instalaciones en zonas interiores o elevadas.\n•\tElevación y protección física de infraestructuras\n•\tInstalación de barreras naturales y artificiales\n•\tRediseño de redes de drenaje en plantas de residuos para manejar grandes volúmenes de agua.\n•\tSeparación de aguas pluviales y contaminadas para evitar desbordamientos.\n•\tInstalación de sensores de nivel del mar, presión atmosférica y humedad en instalaciones costeras. \n•\t Integración con redes de protección civil y meteorología regional.","•\tInstalación de techos reforzados en zonas de almacenamiento y tratamiento para soportar acumulaciones de nieve. \n•\tIncorporación de sistemas de calefacción pasiva o activa para evitar congelaciones.\n•\tProtección de tuberías, bombas y sistemas de tratamiento con materiales aislantes. \n•\tUso de sensores de temperatura para activar sistemas de protección ante heladas.\n•\tDiseño de rutas alternativas para la recogida de residuos en caso de nevadas intensas. \n•\tCoordinación con servicios de emergencia y meteorología.\n•\tSistemas de drenaje adaptados para manejar grandes volúmenes de agua por deshielo rápido. \n•\tSeparación de aguas limpias y contaminadas para evitar sobrecargas.\n•\tInstalación de sensores de nieve, temperatura y humedad en instalaciones clave. \n•\tActivación de protocolos de emergencia ante alertas meteorológicas.","•\tIncorporar materiales aislantes en cubiertas y fachadas de plantas de residuos. \n•\tInstalar sistemas de ventilación natural y sombreado en zonas operativas.\n•\tOptimización energética y uso de energías renovables\n•\tSensores de temperatura y humedad en zonas de trabajo y almacenamiento. \n•\tProtocolos de actuación para proteger al personal y evitar fallos operativos.\n•\tIntegración de vegetación en el entorno de las instalaciones. \n•\tUso de techos verdes para regular la temperatura interior.\n•\tAjuste de turnos de trabajo para evitar las horas de mayor calor. \n•\tPlanificación de rutas de recogida más eficientes en verano.","•\tIncorporar materiales aislantes en cubiertas y fachadas de plantas de residuos. \n•\tInstalar sistemas de ventilación natural y sombreado en zonas operativas.\n•\tOptimización energética y uso de energías renovables\n•\tSensores de temperatura y humedad en zonas de trabajo y almacenamiento. \n•\tProtocolos de actuación para proteger al personal y evitar fallos operativos.\n•\tIntegración de vegetación en el entorno de las instalaciones. \n•\tUso de techos verdes para regular la temperatura interior.\n•\tAjuste de turnos de trabajo para evitar las horas de mayor calor. \n•\tPlanificación de rutas de recogida más eficientes en verano.","•\tRefuerzo de taludes mediante muros de contención, mallas metálicas o estructuras de anclaje. \n•\tUso de técnicas de bioingeniería como revegetación con especies de raíces profundas.\n•\tInstalación de sistemas de drenaje superficial y subterráneo para evitar acumulación de agua en pendientes. \n•\tCanalización segura de escorrentías hacia zonas controladas.\n•\tEvitar la construcción de plantas en zonas con riesgo geológico identificado\n•\tPriorizar terrenos planos o con pendientes suaves y buena capacidad de carga.\n•\tInstalación de sensores de humedad del suelo, inclinación y presión en zonas críticas. \n•\tIntegración con sistemas de alerta temprana ante lluvias intensas o movimientos sísmicos.\n•\tPlantación de vegetación autóctona con capacidad de fijar el suelo. \n•\tMantenimiento de franjas verdes como barreras naturales de protección.","•\tRefuerzo de cubiertas, fachadas y estructuras metálicas en plantas situadas en zonas abiertas o elevadas.\n•\tUso de materiales resistentes al viento y sistemas de anclaje reforzados.\n•\tConstrucción de edificios y almacenes con formas que minimicen la resistencia al viento. \n•\tOrientación de accesos y zonas de carga en dirección opuesta a los vientos predominantes.\n•\tUso de contenedores cerrados, cubiertas móviles o redes de protección para evitar dispersión de residuos. \n•\tRefuerzo de sistemas de sujeción en zonas de almacenamiento temporal.\n•\tPlantación de setos, árboles o estructuras verdes alrededor de instalaciones. \n•\tDiseño paisajístico que reduzca la velocidad del viento en zonas operativas.","•\tRefuerzo de cubiertas, fachadas y estructuras metálicas en plantas situadas en zonas abiertas o elevadas.\n•\tUso de materiales resistentes al viento y sistemas de anclaje reforzados.\n•\tConstrucción de edificios y almacenes con formas que minimicen la resistencia al viento. \n•\tOrientación de accesos y zonas de carga en dirección opuesta a los vientos predominantes.\n•\tUso de contenedores cerrados, cubiertas móviles o redes de protección para evitar dispersión de residuos. \n•\tRefuerzo de sistemas de sujeción en zonas de almacenamiento temporal.\n•\tPlantación de setos, árboles o estructuras verdes alrededor de instalaciones. \n•\tDiseño paisajístico que reduzca la velocidad del viento en zonas operativas."]
[null,"Agua","Pequeñas y medianas estaciones de depuración de aguas residuales"]
[null,"Agua","Grandes estaciones de depuración de aguas residuales","•\tImpermeabilización y refuerzo de redes de saneamiento\n•\tElevación de equipos críticos\n•\tMonitoreo de nivel del mar y salinidad en zonas costeras\n•\tImplantación de sistemas inteligentes de control y gestión remota.","•\tRedimensionamiento de colectores y redes de saneamiento para manejar grandes volúmenes de agua.\n•\tSeparación de aguas pluviales y residuales para evitar sobrecargas.\n•\tInstalación de plataformas elevadas para motores, cuadros eléctricos y sistemas de control. \n•\tSellado de pozos y cámaras para evitar entrada de agua salina.\n•\tInstalación de sensores de nivel del mar, presión atmosférica y caudal en zonas costeras. \n•\tIntegración con sistemas de protección civil y protocolos de emergencia.\n•\tImplantación de sistemas inteligentes de control y gestión remota.","•\tConstrucción de diques, muros de contención y barreras vegetales en estaciones de bombeo y depuración cercanas al litoral.\n•\tReforzamiento estructural de instalaciones vulnerables.\n•\tSellado de colectores y pozos para evitar la entrada de agua salina durante marejadas. \n•\t Instalación de válvulas antirretorno en zonas de riesgo.\n•\tInstalación de plataformas elevadas para motores, cuadros eléctricos y sistemas de control. \n•\tDiseño modular que facilite el desmontaje rápido en caso de emergencia.\n•\tInstalación de sensores de nivel del mar, presión atmosférica y salinidad en zonas costeras. \n•\tIntegración con sistemas de alerta temprana y protocolos de emergencia.\n•\tImplantación de sistemas inteligentes de control y gestión remota.","•\tAmpliación de colectores y sistemas de drenaje para manejar caudales más variables y extremos. \n•\tSeparación de redes de aguas pluviales y residuales\n•\tConstrucción de tanques de tormenta, balsas de retención y zonas de infiltración. \n•\tIntegración con estaciones de bombeo y depuración.\n•\tProtección frente a infiltraciones y saturación hídrica. \n•\tUso de materiales resistentes y sistemas de sellado.\n•\tInstalación de sensores de lluvia, caudal, presión y nivel en puntos estratégicos. \n•\tIntegración con sistemas de alerta temprana y protocolos de emergencia.\n•\tImplantación de sistemas inteligentes para la gestión remota de redes y estaciones.","•\tRedimensionamiento de colectores y redes de saneamiento para manejar grandes volúmenes de agua.\n•\tSeparación de aguas pluviales y residuales para evitar sobrecargas.\n•\tInstalación de plataformas elevadas para motores, cuadros eléctricos y sistemas de control. \n•\tSellado de pozos y cámaras para evitar entrada de agua salina.\n•\tInstalación de sensores de nivel del mar, presión atmosférica y caudal en zonas costeras. \n•\tIntegración con sistemas de protección civil y protocolos de emergencia.\n•\tImplantación de sistemas inteligentes de control y gestión remota.","•\tRedimensionamiento de colectores y redes de saneamiento para manejar grandes volúmenes de agua.\n•\tSeparación de aguas pluviales y residuales para evitar sobrecargas.\n•\tInstalación de plataformas elevadas para motores, cuadros eléctricos y sistemas de control. \n•\tIntegración con sistemas de protección civil y protocolos de emergencia.\n•\tImplantación de sistemas inteligentes de control y gestión remota.","•\tDesarrollo de sistemas de captación y almacenamiento de agua subterránea como alternativa a la pérdida de nieve como fuente hídrica.\n•\tConstrucción de balsas, depósitos y humedales artificiales en zonas de montaña. \n•\t Integración con redes de abastecimiento y depuración.\n•\tModernización de tuberías y estaciones de bombeo en concejos con alta dependencia de fuentes nivosas. \n•\tMejora de la eficiencia energética y reducción de pérdidas.\n•\tInstalación de sensores de temperatura, acumulación de nieve y velocidad de deshielo. \n•\tIntegración con sistemas de alerta y planificación de recursos hídrico","•\tCubrición de tanques y canales abiertos para reducir la exposición solar. \n•\tAireación controlada para evitar la formación de zonas anaerobias. \n•\tUso de tecnologías de depuración avanzadas que permiten mayor control de temperatura y carga orgánica.\n•\tMonitorización continua de parámetros físicoquímicos (temperatura, turbidez, cloro residual).\n•\tUso de materiales resistentes a altas temperaturas (polietileno reticulado, acero inoxidable).\n•\tDigitalización del ciclo del agua con sensores inteligentes y telegestión","•\tCubrición de tanques y canales abiertos para reducir la exposición solar. \n•\tAireación controlada para evitar la formación de zonas anaerobias. \n•\tUso de tecnologías de depuración avanzadas que permiten mayor control de temperatura y carga orgánica.\n•\tMonitorización continua de parámetros físicoquímicos (temperatura, turbidez, cloro residual).\n•\tUso de materiales resistentes a altas temperaturas (polietileno reticulado, acero inoxidable).\n•\tDigitalización del ciclo del agua con sensores inteligentes y telegestión","•\tImpermeabilización de colectores y tanques para evitar infiltraciones en zonas inestables.\n•\tSeparación de redes de pluviales y residuales para reducir el volumen en episodios de lluvia.\n•\tInstalación de sistemas de drenaje sostenible para controlar el escurrimiento superficial.\n•\tUso de tuberías flexibles y articuladas que toleren deformaciones.\n•\tInstalación de válvulas de corte sectorizadas para aislar tramos en caso de emergencia.\n•\tDiseño de cámaras de válvulas y registros con cimentaciones profundas o flotantes.\n•\tCanalización segura de escorrentías para evitar erosión en taludes cercanos.\n•\tSistema de alerta temprana con sensores de inclinación y humedad del suelo.\n•\tProtección perimetral con muros de contención y vegetación estabilizadora.","•\tCubrición de tanques y canales abiertos para evitar dispersión de olores y aerosoles.\n•\tBarreras vegetales o cortavientos artificiales para reducir la velocidad del viento en zonas expuestas.\n•\tRefuerzo estructural de elementos expuestos (cubiertas, chimeneas, sistemas de ventilación).\n•\tDiseño aerodinámico de depósitos elevados para reducir la resistencia al viento.\n•\tInstalación de filtros en entradas de aire para evitar contaminación por partículas.\n•\tAnclajes reforzados en estructuras expuestas.\n•\tProtección física de registros y válvulas con tapas reforzadas y estructuras antivandálicas.\n•\tMantenimiento preventivo de vegetación cercana para evitar caída de ramas.\n•\tDiseño estructural resistente a vientos extremos (según normativa CTE y Eurocódigos).\n•\tProtección de sistemas de ventilación y aireación con rejillas antiviento.","•\tCubrición de tanques y canales abiertos para evitar dispersión de olores y aerosoles.\n•\tBarreras vegetales o cortavientos artificiales para reducir la velocidad del viento en zonas expuestas.\n•\tRefuerzo estructural de elementos expuestos (cubiertas, chimeneas, sistemas de ventilación).\n•\tDiseño aerodinámico de depósitos elevados para reducir la resistencia al viento.\n•\tInstalación de filtros en entradas de aire para evitar contaminación por partículas.\n•\tAnclajes reforzados en estructuras expuestas.\n•\tProtección física de registros y válvulas con tapas reforzadas y estructuras antivandálicas.\n•\tMantenimiento preventivo de vegetación cercana para evitar caída de ramas.\n•\tDiseño estructural resistente a vientos extremos (según normativa CTE y Eurocódigos).\n•\tProtección de sistemas de ventilación y aireación con rejillas antiviento."]
[null,"Agua","Actuaciones sobre sistemas de abastecimiento","•\tImpermeabilización y refuerzo de redes de saneamiento\n•\tElevación de equipos críticos\n•\tMonitoreo de nivel del mar y salinidad en zonas costeras\n•\tImplantación de sistemas inteligentes de control y gestión remota.","•\tRedimensionamiento de colectores y redes de saneamiento para manejar grandes volúmenes de agua.\n•\tSeparación de aguas pluviales y residuales para evitar sobrecargas.\n•\tInstalación de plataformas elevadas para motores, cuadros eléctricos y sistemas de control. \n•\tSellado de pozos y cámaras para evitar entrada de agua salina.\n•\tInstalación de sensores de nivel del mar, presión atmosférica y caudal en zonas costeras. \n•\tIntegración con sistemas de protección civil y protocolos de emergencia.\n•\tImplantación de sistemas inteligentes de control y gestión remota.","•\tConstrucción de diques, muros de contención y barreras vegetales en estaciones de bombeo y depuración cercanas al litoral.\n•\tReforzamiento estructural de instalaciones vulnerables.\n•\tSellado de colectores y pozos para evitar la entrada de agua salina durante marejadas. \n•\t Instalación de válvulas antirretorno en zonas de riesgo.\n•\tInstalación de plataformas elevadas para motores, cuadros eléctricos y sistemas de control. \n•\tDiseño modular que facilite el desmontaje rápido en caso de emergencia.\n•\tInstalación de sensores de nivel del mar, presión atmosférica y salinidad en zonas costeras. \n•\tIntegración con sistemas de alerta temprana y protocolos de emergencia.\n•\tImplantación de sistemas inteligentes de control y gestión remota.","•\tAmpliación de colectores y sistemas de drenaje para manejar caudales más variables y extremos. \n•\tSeparación de redes de aguas pluviales y residuales\n•\tConstrucción de tanques de tormenta, balsas de retención y zonas de infiltración. \n•\tIntegración con estaciones de bombeo y depuración.\n•\tProtección frente a infiltraciones y saturación hídrica. \n•\tUso de materiales resistentes y sistemas de sellado.\n•\tInstalación de sensores de lluvia, caudal, presión y nivel en puntos estratégicos. \n•\tIntegración con sistemas de alerta temprana y protocolos de emergencia.\n•\tImplantación de sistemas inteligentes para la gestión remota de redes y estaciones.","•\tRedimensionamiento de colectores y redes de saneamiento para manejar grandes volúmenes de agua.\n•\tSeparación de aguas pluviales y residuales para evitar sobrecargas.\n•\tInstalación de plataformas elevadas para motores, cuadros eléctricos y sistemas de control. \n•\tSellado de pozos y cámaras para evitar entrada de agua salina.\n•\tInstalación de sensores de nivel del mar, presión atmosférica y caudal en zonas costeras. \n•\tIntegración con sistemas de protección civil y protocolos de emergencia.\n•\tImplantación de sistemas inteligentes de control y gestión remota.","•\tRedimensionamiento de colectores y redes de saneamiento para manejar grandes volúmenes de agua.\n•\tSeparación de aguas pluviales y residuales para evitar sobrecargas.\n•\tInstalación de plataformas elevadas para motores, cuadros eléctricos y sistemas de control. \n•\tIntegración con sistemas de protección civil y protocolos de emergencia.\n•\tImplantación de sistemas inteligentes de control y gestión remota.","•\tDesarrollo de sistemas de captación y almacenamiento de agua subterránea como alternativa a la pérdida de nieve como fuente hídrica.\n•\tConstrucción de balsas, depósitos y humedales artificiales en zonas de montaña. \n•\t Integración con redes de abastecimiento y depuración.\n•\tModernización de tuberías y estaciones de bombeo en concejos con alta dependencia de fuentes nivosas. \n•\tMejora de la eficiencia energética y reducción de pérdidas.\n•\tInstalación de sensores de temperatura, acumulación de nieve y velocidad de deshielo. \n•\tIntegración con sistemas de alerta y planificación de recursos hídrico","•\tCubrición de tanques y canales abiertos para reducir la exposición solar. \n•\tAireación controlada para evitar la formación de zonas anaerobias. \n•\tUso de tecnologías de depuración avanzadas que permiten mayor control de temperatura y carga orgánica.\n•\tMonitorización continua de parámetros físicoquímicos (temperatura, turbidez, cloro residual).\n•\tUso de materiales resistentes a altas temperaturas (polietileno reticulado, acero inoxidable).\n•\tDigitalización del ciclo del agua con sensores inteligentes y telegestión","•\tCubrición de tanques y canales abiertos para reducir la exposición solar. \n•\tAireación controlada para evitar la formación de zonas anaerobias. \n•\tUso de tecnologías de depuración avanzadas que permiten mayor control de temperatura y carga orgánica.\n•\tMonitorización continua de parámetros físicoquímicos (temperatura, turbidez, cloro residual).\n•\tUso de materiales resistentes a altas temperaturas (polietileno reticulado, acero inoxidable).\n•\tDigitalización del ciclo del agua con sensores inteligentes y telegestión","•\tImpermeabilización de colectores y tanques para evitar infiltraciones en zonas inestables.\n•\tSeparación de redes de pluviales y residuales para reducir el volumen en episodios de lluvia.\n•\tInstalación de sistemas de drenaje sostenible para controlar el escurrimiento superficial.\n•\tUso de tuberías flexibles y articuladas que toleren deformaciones.\n•\tInstalación de válvulas de corte sectorizadas para aislar tramos en caso de emergencia.\n•\tDiseño de cámaras de válvulas y registros con cimentaciones profundas o flotantes.\n•\tCanalización segura de escorrentías para evitar erosión en taludes cercanos.\n•\tSistema de alerta temprana con sensores de inclinación y humedad del suelo.\n•\tProtección perimetral con muros de contención y vegetación estabilizadora.","•\tCubrición de tanques y canales abiertos para evitar dispersión de olores y aerosoles.\n•\tBarreras vegetales o cortavientos artificiales para reducir la velocidad del viento en zonas expuestas.\n•\tRefuerzo estructural de elementos expuestos (cubiertas, chimeneas, sistemas de ventilación).\n•\tDiseño aerodinámico de depósitos elevados para reducir la resistencia al viento.\n•\tInstalación de filtros en entradas de aire para evitar contaminación por partículas.\n•\tAnclajes reforzados en estructuras expuestas.\n•\tProtección física de registros y válvulas con tapas reforzadas y estructuras antivandálicas.\n•\tMantenimiento preventivo de vegetación cercana para evitar caída de ramas.\n•\tDiseño estructural resistente a vientos extremos (según normativa CTE y Eurocódigos).\n•\tProtección de sistemas de ventilación y aireación con rejillas antiviento.","•\tCubrición de tanques y canales abiertos para evitar dispersión de olores y aerosoles.\n•\tBarreras vegetales o cortavientos artificiales para reducir la velocidad del viento en zonas expuestas.\n•\tRefuerzo estructural de elementos expuestos (cubiertas, chimeneas, sistemas de ventilación).\n•\tDiseño aerodinámico de depósitos elevados para reducir la resistencia al viento.\n•\tInstalación de filtros en entradas de aire para evitar contaminación por partículas.\n•\tAnclajes reforzados en estructuras expuestas.\n•\tProtección física de registros y válvulas con tapas reforzadas y estructuras antivandálicas.\n•\tMantenimiento preventivo de vegetación cercana para evitar caída de ramas.\n•\tDiseño estructural resistente a vientos extremos (según normativa CTE y Eurocódigos).\n•\tProtección de sistemas de ventilación y aireación con rejillas antiviento."]
[null,"Agua","Actuaciones de preservación, preparación y protección de los recursos hídricos","•\tDiseño de encauzamientos con capacidad de absorción de crecidas y sistemas de alivio hacia zonas seguras.\n•\tConstrucción de compuertas y válvulas antirretorno en desembocaduras para evitar entrada de agua marina en crecidas.\n•\tRevegetación de márgenes fluviales con especies resistentes a salinidad para estabilizar suelos.\n•\tUso de técnicas blandas de protección costera como barreras vegetales, restauración de dunas y playas","•\tDiseño de cauces con zonas de expansión controlada para permitir el desbordamiento en áreas seguras.\n•\tEncauzamientos con vegetación natural que ralentiza el flujo y mejora la infiltración.\n•\tUso de materiales permeables y flexibles en estructuras para facilitar el drenaje y reducir la presión hidráulica.\n•\tInstalación de compuertas antirretorno para evitar la entrada de agua marina en crecidas fluviales. \n•\tElevación de márgenes y muros de contención en zonas urbanas costeras. \n•\tRefuerzo de taludes y estructuras con geotextiles y vegetación estabilizadora.\n•\tLimpieza periódica de cauces y retirada de obstáculos que puedan agravar el desbordamiento. \n•\tRevisión estructural de encauzamientos antiguos para adaptarlos a nuevos escenarios climáticos.","•\tDiseño de encauzamientos con capacidad de absorción de crecidas y sistemas de alivio hacia zonas seguras.\n•\tConstrucción de compuertas y válvulas antirretorno en desembocaduras para evitar entrada de agua marina en crecidas.\n•\tRevegetación de márgenes fluviales con especies resistentes a salinidad para estabilizar suelos.\n•\tUso de técnicas blandas de protección costera como barreras vegetales, restauración de dunas y playas","•\tSobredimensionamiento de secciones de cauce para admitir caudales extremos.\n•\tEncauzamientos con borde libre elevado para evitar desbordamientos. \n•\tEspigones y defensas ribereñas con materiales flexibles (gaviones, enrocados) que toleren erosión progresiva.\n•\tRestauración de riberas y zonas de inundación natural para amortiguar crecidas. \n•\tVegetación estabilizadora en márgenes para reducir erosión y mejorar infiltración. \n•\tZonas de retención temporal (humedales artificiales, llanuras de inundación) para almacenar excedentes.\n•\tInstalación de sensores de nivel y caudal en puntos críticos.\n•\tUso de materiales resistentes a la erosión y al impacto hidráulico.\n•\tCimentaciones profundas o flexibles en estructuras expuestas a socavación.\n•\tDiseño modular y accesible para mantenimiento frecuente","•\tEncauzamientos resilientes con borde libre elevado\n•\tInstalación de compuertas y válvulas antirretorno\n•\tPlantación de vegetación ribereña, restauración de marismas y dunas.\n•\tConstrucción de depósitos subterráneos o zonas de laminación","•\tEncauzamientos resilientes con borde libre elevado\n•\tInstalación de compuertas y válvulas antirretorno\n•\tPlantación de vegetación ribereña, restauración de marismas y dunas.\n•\tConstrucción de depósitos subterráneos o zonas de laminación","•\tConstrucción de zonas de laminación y retención temporal\n•\tRevegetación de cabeceras de cuenca mediante la plantación de especies autóctonas resistentes al frío y a la escorrentía\n•\tAdaptar los cauces a variaciones extremas de caudal mediante el uso de materiales adecuados\n•\tMonitoreo hidrometeorológico en zonas nivalizadas mediante estaciones automáticas de medición de nieve, temperatura y caudal.","•\tPlantación de especies adaptadas al clima local que proporcionen sombra y estabilicen los márgenes.\n•\tDiseño de encauzamientos con refugios térmico\n•\tInstalación de sensores en puntos estratégicos del cauce","•\tPlantación de especies adaptadas al clima local que proporcionen sombra y estabilicen los márgenes.\n•\tDiseño de encauzamientos con refugios térmico\n•\tInstalación de sensores en puntos estratégicos del cauce","•\tUso de técnicas como fajinas, empalizadas vivas, estacas vegetales y mantas orgánicas para lograr la estabilización de márgenes.\n•\tIncorporación de sistemas de drenaje en estructuras de encauzamiento para evitar acumulación de agua en taludes\n•\tPlantación de especies arbóreas y arbustivas en zonas de cabecera y laderas inestables\n•\tDiseño de estructuras flexibles y adaptativas\n•\tInstalación de sensores de humedad, inclinación y presión en zonas críticas de ladera.","•\tDiseño aerodinámico y reforzado de estructuras expuestas\n•\tUso de vegetación densa (árboles, arbustos) o pantallas físicas en zonas expuestas del cauce.\n•\tProtección de taludes y márgenes con bioingeniería\n•\tCubiertas en zonas técnicas, sellado de compuertas y protección de sistemas eléctricos o hidráulicos.","•\tDiseño aerodinámico y reforzado de estructuras expuestas\n•\tUso de vegetación densa (árboles, arbustos) o pantallas físicas en zonas expuestas del cauce.\n•\tProtección de taludes y márgenes con bioingeniería\n•\tCubiertas en zonas técnicas, sellado de compuertas y protección de sistemas eléctricos o hidráulicos."]
[null,"Agua","Instalaciones de distribución","•\tImpermeabilización y refuerzo de redes de saneamiento\n•\tElevación de equipos críticos\n•\tMonitoreo de nivel del mar y salinidad en zonas costeras\n•\tImplantación de sistemas inteligentes de control y gestión remota.","•\tRedimensionamiento de colectores y redes de saneamiento para manejar grandes volúmenes de agua.\n•\tSeparación de aguas pluviales y residuales para evitar sobrecargas.\n•\tInstalación de plataformas elevadas para motores, cuadros eléctricos y sistemas de control. \n•\tSellado de pozos y cámaras para evitar entrada de agua salina.\n•\tInstalación de sensores de nivel del mar, presión atmosférica y caudal en zonas costeras. \n•\tIntegración con sistemas de protección civil y protocolos de emergencia.\n•\tImplantación de sistemas inteligentes de control y gestión remota.","•\tConstrucción de diques, muros de contención y barreras vegetales en estaciones de bombeo y depuración cercanas al litoral.\n•\tReforzamiento estructural de instalaciones vulnerables.\n•\tSellado de colectores y pozos para evitar la entrada de agua salina durante marejadas. \n•\t Instalación de válvulas antirretorno en zonas de riesgo.\n•\tInstalación de plataformas elevadas para motores, cuadros eléctricos y sistemas de control. \n•\tDiseño modular que facilite el desmontaje rápido en caso de emergencia.\n•\tInstalación de sensores de nivel del mar, presión atmosférica y salinidad en zonas costeras. \n•\tIntegración con sistemas de alerta temprana y protocolos de emergencia.\n•\tImplantación de sistemas inteligentes de control y gestión remota.","•\tAmpliación de colectores y sistemas de drenaje para manejar caudales más variables y extremos. \n•\tSeparación de redes de aguas pluviales y residuales\n•\tConstrucción de tanques de tormenta, balsas de retención y zonas de infiltración. \n•\tIntegración con estaciones de bombeo y depuración.\n•\tProtección frente a infiltraciones y saturación hídrica. \n•\tUso de materiales resistentes y sistemas de sellado.\n•\tInstalación de sensores de lluvia, caudal, presión y nivel en puntos estratégicos. \n•\tIntegración con sistemas de alerta temprana y protocolos de emergencia.\n•\tImplantación de sistemas inteligentes para la gestión remota de redes y estaciones.","•\tRedimensionamiento de colectores y redes de saneamiento para manejar grandes volúmenes de agua.\n•\tSeparación de aguas pluviales y residuales para evitar sobrecargas.\n•\tInstalación de plataformas elevadas para motores, cuadros eléctricos y sistemas de control. \n•\tSellado de pozos y cámaras para evitar entrada de agua salina.\n•\tInstalación de sensores de nivel del mar, presión atmosférica y caudal en zonas costeras. \n•\tIntegración con sistemas de protección civil y protocolos de emergencia.\n•\tImplantación de sistemas inteligentes de control y gestión remota.","•\tRedimensionamiento de colectores y redes de saneamiento para manejar grandes volúmenes de agua.\n•\tSeparación de aguas pluviales y residuales para evitar sobrecargas.\n•\tInstalación de plataformas elevadas para motores, cuadros eléctricos y sistemas de control. \n•\tIntegración con sistemas de protección civil y protocolos de emergencia.\n•\tImplantación de sistemas inteligentes de control y gestión remota.","•\tDesarrollo de sistemas de captación y almacenamiento de agua subterránea como alternativa a la pérdida de nieve como fuente hídrica.\n•\tConstrucción de balsas, depósitos y humedales artificiales en zonas de montaña. \n•\t Integración con redes de abastecimiento y depuración.\n•\tModernización de tuberías y estaciones de bombeo en concejos con alta dependencia de fuentes nivosas. \n•\tMejora de la eficiencia energética y reducción de pérdidas.\n•\tInstalación de sensores de temperatura, acumulación de nieve y velocidad de deshielo. \n•\tIntegración con sistemas de alerta y planificación de recursos hídrico","•\tCubrición de tanques y canales abiertos para reducir la exposición solar. \n•\tAireación controlada para evitar la formación de zonas anaerobias. \n•\tUso de tecnologías de depuración avanzadas que permiten mayor control de temperatura y carga orgánica.\n•\tMonitorización continua de parámetros físicoquímicos (temperatura, turbidez, cloro residual).\n•\tUso de materiales resistentes a altas temperaturas (polietileno reticulado, acero inoxidable).\n•\tDigitalización del ciclo del agua con sensores inteligentes y telegestión","•\tCubrición de tanques y canales abiertos para reducir la exposición solar. \n•\tAireación controlada para evitar la formación de zonas anaerobias. \n•\tUso de tecnologías de depuración avanzadas que permiten mayor control de temperatura y carga orgánica.\n•\tMonitorización continua de parámetros físicoquímicos (temperatura, turbidez, cloro residual).\n•\tUso de materiales resistentes a altas temperaturas (polietileno reticulado, acero inoxidable).\n•\tDigitalización del ciclo del agua con sensores inteligentes y telegestión","•\tImpermeabilización de colectores y tanques para evitar infiltraciones en zonas inestables.\n•\tSeparación de redes de pluviales y residuales para reducir el volumen en episodios de lluvia.\n•\tInstalación de sistemas de drenaje sostenible para controlar el escurrimiento superficial.\n•\tUso de tuberías flexibles y articuladas que toleren deformaciones.\n•\tInstalación de válvulas de corte sectorizadas para aislar tramos en caso de emergencia.\n•\tDiseño de cámaras de válvulas y registros con cimentaciones profundas o flotantes.\n•\tCanalización segura de escorrentías para evitar erosión en taludes cercanos.\n•\tSistema de alerta temprana con sensores de inclinación y humedad del suelo.\n•\tProtección perimetral con muros de contención y vegetación estabilizadora.","•\tCubrición de tanques y canales abiertos para evitar dispersión de olores y aerosoles.\n•\tBarreras vegetales o cortavientos artificiales para reducir la velocidad del viento en zonas expuestas.\n•\tRefuerzo estructural de elementos expuestos (cubiertas, chimeneas, sistemas de ventilación).\n•\tDiseño aerodinámico de depósitos elevados para reducir la resistencia al viento.\n•\tInstalación de filtros en entradas de aire para evitar contaminación por partículas.\n•\tAnclajes reforzados en estructuras expuestas.\n•\tProtección física de registros y válvulas con tapas reforzadas y estructuras antivandálicas.\n•\tMantenimiento preventivo de vegetación cercana para evitar caída de ramas.\n•\tDiseño estructural resistente a vientos extremos (según normativa CTE y Eurocódigos).\n•\tProtección de sistemas de ventilación y aireación con rejillas antiviento.","•\tCubrición de tanques y canales abiertos para evitar dispersión de olores y aerosoles.\n•\tBarreras vegetales o cortavientos artificiales para reducir la velocidad del viento en zonas expuestas.\n•\tRefuerzo estructural de elementos expuestos (cubiertas, chimeneas, sistemas de ventilación).\n•\tDiseño aerodinámico de depósitos elevados para reducir la resistencia al viento.\n•\tInstalación de filtros en entradas de aire para evitar contaminación por partículas.\n•\tAnclajes reforzados en estructuras expuestas.\n•\tProtección física de registros y válvulas con tapas reforzadas y estructuras antivandálicas.\n•\tMantenimiento preventivo de vegetación cercana para evitar caída de ramas.\n•\tDiseño estructural resistente a vientos extremos (según normativa CTE y Eurocódigos).\n•\tProtección de sistemas de ventilación y aireación con rejillas antiviento."]
[null,"Agua","Pantalán","•\tAumentar la altura de la estructura para anticiparse a futuros incrementos del nivel del mar y a eventos extremos como marejadas ciclónicas.\n•\tUso de materiales resistentes a la erosión marina\n•\tIncorporar formas curvas o escalonadas que disipen la energía del oleaje y reduzcan el desgaste estructural, mejorando la estabilidad frente a temporales.\n•\tEn el caso de escolleras, utilizar vegetación costera (como marismas o praderas marinas) que actúe como barrera natural y mejore la absorción del impacto del agua.\n•\tEn el caso de escolleras, instalar sensores para controlar el nivel del mar, la presión del oleaje y el estado estructural, permitiendo intervenciones preventivas y ajustes en tiempo real.","•\tAumentar la altura de la estructura para anticiparse a futuros incrementos del nivel del mar y a eventos extremos como marejadas ciclónicas.\n•\tUso de materiales resistentes a la erosión marina\n•\tIncorporar formas curvas o escalonadas que disipen la energía del oleaje y reduzcan el desgaste estructural, mejorando la estabilidad frente a temporales.\n•\tEn el caso de escolleras, utilizar vegetación costera (como marismas o praderas marinas) que actúe como barrera natural y mejore la absorción del impacto del agua.\n•\tEn el caso de escolleras, instalar sensores para controlar el nivel del mar, la presión del oleaje y el estado estructural, permitiendo intervenciones preventivas y ajustes en tiempo real.","•\tAumentar la altura de la estructura para anticiparse a futuros incrementos del nivel del mar y a eventos extremos como marejadas ciclónicas.\n•\tUso de materiales resistentes a la erosión marina\n•\tIncorporar formas curvas o escalonadas que disipen la energía del oleaje y reduzcan el desgaste estructural, mejorando la estabilidad frente a temporales.\n•\tEn el caso de escolleras, utilizar vegetación costera (como marismas o praderas marinas) que actúe como barrera natural y mejore la absorción del impacto del agua.\n•\tEn el caso de escolleras, instalar sensores para controlar el nivel del mar, la presión del oleaje y el estado estructural, permitiendo intervenciones preventivas y ajustes en tiempo real.","•\tIncorporar canales, filtros y drenajes en la estructura para facilitar la evacuación del agua de lluvia acumulada y evitar sobrecargas o desbordamientos.\n•\tEmplear materiales que permitan cierta infiltración controlada y que resistan la saturación prolongada sin perder estabilidad, como geotextiles o bloques drenantes.\n•\tVegetación estabilizadora en taludes y zonas adyacentes mediante la plantación de especies autóctonas con raíces profundas que ayuden a fijar el terreno y reducir la escorrentía superficial, disminuyendo el riesgo de erosión.\n•\tEstablecer sistemas de vigilancia para controlar el estado de la escollera tras eventos de lluvia intensa, y realizar inspecciones periódicas para detectar daños o acumulaciones de sedimentos","•\tAumentar la altura de la estructura para anticiparse a futuros incrementos del nivel del mar y a eventos extremos como marejadas ciclónicas.\n•\tUso de materiales resistentes a la erosión marina\n•\tIncorporar formas curvas o escalonadas que disipen la energía del oleaje y reduzcan el desgaste estructural, mejorando la estabilidad frente a temporales.\n•\tEn el caso de escolleras, utilizar vegetación costera (como marismas o praderas marinas) que actúe como barrera natural y mejore la absorción del impacto del agua.\n•\tEn el caso de escolleras, instalar sensores para controlar el nivel del mar, la presión del oleaje y el estado estructural, permitiendo intervenciones preventivas y ajustes en tiempo real.","•\tAumentar la altura de la estructura para anticiparse a futuros eventos extremos \n•\tIncorporar formas curvas o escalonadas que disipen la energía del oleaje y reduzcan el desgaste estructural, mejorando la estabilidad frente a temporales.\n•\tEn el caso de escolleras, utilizar vegetación costera (como marismas o praderas marinas) que actúe como barrera natural y mejore la absorción del impacto del agua.\n•\tEn el caso de escolleras, instalar sensores para controlar el nivel del mar, la presión del oleaje y el estado estructural, permitiendo intervenciones preventivas y ajustes en tiempo real.","•\tDiseñar los proyectos para resistir el aumento de caudales superficiales provocados por lluvias intensas en lugar de acumulación nival, incluyendo materiales de alta resistencia hidráulica.\n•\tIncorporación de sistemas de drenaje eficientes\n•\tReforzar taludes y zonas cercanas con vegetación autóctona, geotextiles o muros de contención para prevenir deslizamientos provocados por saturación del suelo.\n•\tInstalar sensores para controlar la humedad del terreno, el nivel de agua y posibles desplazamientos, permitiendo una respuesta temprana ante eventos extremos.\n•\tPermitir futuras ampliaciones o ajustes en la estructura según la evolución del clima, ","•\tUso de materiales resistentes a la expansión térmica:\n•\tIncorporar juntas flexibles en la estructura para permitir la expansión controlada de los materiales sin comprometer la estabilidad de la escollera.\n•\tAplicar tratamientos o revestimientos reflectantes en las superficies expuestas para reducir la absorción de calor y prolongar la vida útil de los materiales.\n•\tPlantar especies resistentes a temperaturas elevadas en zonas adyacentes para reducir el calentamiento del entorno y mejorar la estabilidad del terreno.\n•\tInstalar sensores para controlar la temperatura de los materiales y detectar posibles deformaciones o tensiones que puedan afectar la escollera.","•\tUso de materiales resistentes a la expansión térmica:\n•\tIncorporar juntas flexibles en la estructura para permitir la expansión controlada de los materiales sin comprometer la estabilidad de la escollera.\n•\tAplicar tratamientos o revestimientos reflectantes en las superficies expuestas para reducir la absorción de calor y prolongar la vida útil de los materiales.\n•\tPlantar especies resistentes a temperaturas elevadas en zonas adyacentes para reducir el calentamiento del entorno y mejorar la estabilidad del terreno.\n•\tInstalar sensores para controlar la temperatura de los materiales y detectar posibles deformaciones o tensiones que puedan afectar la escollera.","•\tRealizar análisis detallados del terreno para identificar zonas con alta susceptibilidad a deslizamientos, fallas o saturación hídrica que puedan comprometer la estabilidad de la galería.\n•\tIncorporar revestimientos resistentes, sistemas de sostenimiento (como cerchas, bulones o anclajes) y juntas de dilatación que permitan absorber deformaciones del terreno sin comprometer la integridad de la galería.\n•\tInstalar drenajes perimetrales y subterráneos para controlar la infiltración de agua y reducir la presión hidrostática que puede desencadenar movimientos de ladera.\n•\tImplementar sensores de desplazamiento, inclinómetros y sistemas de alerta temprana para detectar movimientos anómalos y activar protocolos de intervención rápida.\n•\tReforzar taludes cercanos mediante muros de contención, mallas metálicas, vegetación estabilizadora o geotextiles para evitar que los movimientos superficiales afecten la galería subterránea.","•\tIncorporar formas curvas o inclinadas que reduzcan la resistencia al viento y minimicen el impacto directo sobre la estructura.\n•\tUtilizar bloques de hormigón, rocas o elementos prefabricados que soporten la presión del viento y posibles impactos de objetos arrastrados.\n•\tAsegurar que los componentes de la escollera estén firmemente anclados al terreno para evitar desplazamientos o colapsos por ráfagas intensas.\n•\tMinimizar o reforzar componentes vulnerables como barandillas, señalización o accesos, que puedan desprenderse o deteriorarse por el viento.","•\tIncorporar formas curvas o inclinadas que reduzcan la resistencia al viento y minimicen el impacto directo sobre la estructura.\n•\tUtilizar bloques de hormigón, rocas o elementos prefabricados que soporten la presión del viento y posibles impactos de objetos arrastrados.\n•\tAsegurar que los componentes de la escollera estén firmemente anclados al terreno para evitar desplazamientos o colapsos por ráfagas intensas.\n•\tMinimizar o reforzar componentes vulnerables como barandillas, señalización o accesos, que puedan desprenderse o deteriorarse por el viento."]
[null,"Agua","Estructuras marítimas","•\tAumentar la altura de la estructura para anticiparse a futuros incrementos del nivel del mar y a eventos extremos como marejadas ciclónicas.\n•\tUso de materiales resistentes a la erosión marina\n•\tIncorporar formas curvas o escalonadas que disipen la energía del oleaje y reduzcan el desgaste estructural, mejorando la estabilidad frente a temporales.\n•\tEn el caso de escolleras, utilizar vegetación costera (como marismas o praderas marinas) que actúe como barrera natural y mejore la absorción del impacto del agua.\n•\tEn el caso de escolleras, instalar sensores para controlar el nivel del mar, la presión del oleaje y el estado estructural, permitiendo intervenciones preventivas y ajustes en tiempo real.","•\tAumentar la altura de la estructura para anticiparse a futuros incrementos del nivel del mar y a eventos extremos como marejadas ciclónicas.\n•\tUso de materiales resistentes a la erosión marina\n•\tIncorporar formas curvas o escalonadas que disipen la energía del oleaje y reduzcan el desgaste estructural, mejorando la estabilidad frente a temporales.\n•\tEn el caso de escolleras, utilizar vegetación costera (como marismas o praderas marinas) que actúe como barrera natural y mejore la absorción del impacto del agua.\n•\tEn el caso de escolleras, instalar sensores para controlar el nivel del mar, la presión del oleaje y el estado estructural, permitiendo intervenciones preventivas y ajustes en tiempo real.","•\tAumentar la altura de la estructura para anticiparse a futuros incrementos del nivel del mar y a eventos extremos como marejadas ciclónicas.\n•\tUso de materiales resistentes a la erosión marina\n•\tIncorporar formas curvas o escalonadas que disipen la energía del oleaje y reduzcan el desgaste estructural, mejorando la estabilidad frente a temporales.\n•\tEn el caso de escolleras, utilizar vegetación costera (como marismas o praderas marinas) que actúe como barrera natural y mejore la absorción del impacto del agua.\n•\tEn el caso de escolleras, instalar sensores para controlar el nivel del mar, la presión del oleaje y el estado estructural, permitiendo intervenciones preventivas y ajustes en tiempo real.","•\tIncorporar canales, filtros y drenajes en la estructura para facilitar la evacuación del agua de lluvia acumulada y evitar sobrecargas o desbordamientos.\n•\tEmplear materiales que permitan cierta infiltración controlada y que resistan la saturación prolongada sin perder estabilidad, como geotextiles o bloques drenantes.\n•\tVegetación estabilizadora en taludes y zonas adyacentes mediante la plantación de especies autóctonas con raíces profundas que ayuden a fijar el terreno y reducir la escorrentía superficial, disminuyendo el riesgo de erosión.\n•\tEstablecer sistemas de vigilancia para controlar el estado de la escollera tras eventos de lluvia intensa, y realizar inspecciones periódicas para detectar daños o acumulaciones de sedimentos","•\tAumentar la altura de la estructura para anticiparse a futuros incrementos del nivel del mar y a eventos extremos como marejadas ciclónicas.\n•\tUso de materiales resistentes a la erosión marina\n•\tIncorporar formas curvas o escalonadas que disipen la energía del oleaje y reduzcan el desgaste estructural, mejorando la estabilidad frente a temporales.\n•\tEn el caso de escolleras, utilizar vegetación costera (como marismas o praderas marinas) que actúe como barrera natural y mejore la absorción del impacto del agua.\n•\tEn el caso de escolleras, instalar sensores para controlar el nivel del mar, la presión del oleaje y el estado estructural, permitiendo intervenciones preventivas y ajustes en tiempo real.","•\tAumentar la altura de la estructura para anticiparse a futuros eventos extremos \n•\tIncorporar formas curvas o escalonadas que disipen la energía del oleaje y reduzcan el desgaste estructural, mejorando la estabilidad frente a temporales.\n•\tEn el caso de escolleras, utilizar vegetación costera (como marismas o praderas marinas) que actúe como barrera natural y mejore la absorción del impacto del agua.\n•\tEn el caso de escolleras, instalar sensores para controlar el nivel del mar, la presión del oleaje y el estado estructural, permitiendo intervenciones preventivas y ajustes en tiempo real.","•\tDiseñar los proyectos para resistir el aumento de caudales superficiales provocados por lluvias intensas en lugar de acumulación nival, incluyendo materiales de alta resistencia hidráulica.\n•\tIncorporación de sistemas de drenaje eficientes\n•\tReforzar taludes y zonas cercanas con vegetación autóctona, geotextiles o muros de contención para prevenir deslizamientos provocados por saturación del suelo.\n•\tInstalar sensores para controlar la humedad del terreno, el nivel de agua y posibles desplazamientos, permitiendo una respuesta temprana ante eventos extremos.\n•\tPermitir futuras ampliaciones o ajustes en la estructura según la evolución del clima, ","•\tUso de materiales resistentes a la expansión térmica:\n•\tIncorporar juntas flexibles en la estructura para permitir la expansión controlada de los materiales sin comprometer la estabilidad de la escollera.\n•\tAplicar tratamientos o revestimientos reflectantes en las superficies expuestas para reducir la absorción de calor y prolongar la vida útil de los materiales.\n•\tPlantar especies resistentes a temperaturas elevadas en zonas adyacentes para reducir el calentamiento del entorno y mejorar la estabilidad del terreno.\n•\tInstalar sensores para controlar la temperatura de los materiales y detectar posibles deformaciones o tensiones que puedan afectar la escollera.","•\tUso de materiales resistentes a la expansión térmica:\n•\tIncorporar juntas flexibles en la estructura para permitir la expansión controlada de los materiales sin comprometer la estabilidad de la escollera.\n•\tAplicar tratamientos o revestimientos reflectantes en las superficies expuestas para reducir la absorción de calor y prolongar la vida útil de los materiales.\n•\tPlantar especies resistentes a temperaturas elevadas en zonas adyacentes para reducir el calentamiento del entorno y mejorar la estabilidad del terreno.\n•\tInstalar sensores para controlar la temperatura de los materiales y detectar posibles deformaciones o tensiones que puedan afectar la escollera.","•\tRealizar análisis detallados del terreno para identificar zonas con alta susceptibilidad a deslizamientos, fallas o saturación hídrica que puedan comprometer la estabilidad de la galería.\n•\tIncorporar revestimientos resistentes, sistemas de sostenimiento (como cerchas, bulones o anclajes) y juntas de dilatación que permitan absorber deformaciones del terreno sin comprometer la integridad de la galería.\n•\tInstalar drenajes perimetrales y subterráneos para controlar la infiltración de agua y reducir la presión hidrostática que puede desencadenar movimientos de ladera.\n•\tImplementar sensores de desplazamiento, inclinómetros y sistemas de alerta temprana para detectar movimientos anómalos y activar protocolos de intervención rápida.\n•\tReforzar taludes cercanos mediante muros de contención, mallas metálicas, vegetación estabilizadora o geotextiles para evitar que los movimientos superficiales afecten la galería subterránea.","•\tIncorporar formas curvas o inclinadas que reduzcan la resistencia al viento y minimicen el impacto directo sobre la estructura.\n•\tUtilizar bloques de hormigón, rocas o elementos prefabricados que soporten la presión del viento y posibles impactos de objetos arrastrados.\n•\tAsegurar que los componentes de la escollera estén firmemente anclados al terreno para evitar desplazamientos o colapsos por ráfagas intensas.\n•\tMinimizar o reforzar componentes vulnerables como barandillas, señalización o accesos, que puedan desprenderse o deteriorarse por el viento.","•\tIncorporar formas curvas o inclinadas que reduzcan la resistencia al viento y minimicen el impacto directo sobre la estructura.\n•\tUtilizar bloques de hormigón, rocas o elementos prefabricados que soporten la presión del viento y posibles impactos de objetos arrastrados.\n•\tAsegurar que los componentes de la escollera estén firmemente anclados al terreno para evitar desplazamientos o colapsos por ráfagas intensas.\n•\tMinimizar o reforzar componentes vulnerables como barandillas, señalización o accesos, que puedan desprenderse o deteriorarse por el viento."]
[null,"Agua","Estructuras fluviales","•\tDiseño de encauzamientos con capacidad de absorción de crecidas y sistemas de alivio hacia zonas seguras.\n•\tConstrucción de compuertas y válvulas antirretorno en desembocaduras para evitar entrada de agua marina en crecidas.\n•\tRevegetación de márgenes fluviales con especies resistentes a salinidad para estabilizar suelos.\n•\tUso de técnicas blandas de protección costera como barreras vegetales, restauración de dunas y playas","•\tDiseño de cauces con zonas de expansión controlada para permitir el desbordamiento en áreas seguras.\n•\tEncauzamientos con vegetación natural que ralentiza el flujo y mejora la infiltración.\n•\tUso de materiales permeables y flexibles en estructuras para facilitar el drenaje y reducir la presión hidráulica.\n•\tInstalación de compuertas antirretorno para evitar la entrada de agua marina en crecidas fluviales. \n•\tElevación de márgenes y muros de contención en zonas urbanas costeras. \n•\tRefuerzo de taludes y estructuras con geotextiles y vegetación estabilizadora.\n•\tLimpieza periódica de cauces y retirada de obstáculos que puedan agravar el desbordamiento. \n•\tRevisión estructural de encauzamientos antiguos para adaptarlos a nuevos escenarios climáticos.","•\tDiseño de encauzamientos con capacidad de absorción de crecidas y sistemas de alivio hacia zonas seguras.\n•\tConstrucción de compuertas y válvulas antirretorno en desembocaduras para evitar entrada de agua marina en crecidas.\n•\tRevegetación de márgenes fluviales con especies resistentes a salinidad para estabilizar suelos.\n•\tUso de técnicas blandas de protección costera como barreras vegetales, restauración de dunas y playas","•\tSobredimensionamiento de secciones de cauce para admitir caudales extremos.\n•\tEncauzamientos con borde libre elevado para evitar desbordamientos. \n•\tEspigones y defensas ribereñas con materiales flexibles (gaviones, enrocados) que toleren erosión progresiva.\n•\tRestauración de riberas y zonas de inundación natural para amortiguar crecidas. \n•\tVegetación estabilizadora en márgenes para reducir erosión y mejorar infiltración. \n•\tZonas de retención temporal (humedales artificiales, llanuras de inundación) para almacenar excedentes.\n•\tInstalación de sensores de nivel y caudal en puntos críticos.\n•\tUso de materiales resistentes a la erosión y al impacto hidráulico.\n•\tCimentaciones profundas o flexibles en estructuras expuestas a socavación.\n•\tDiseño modular y accesible para mantenimiento frecuente","•\tEncauzamientos resilientes con borde libre elevado\n•\tInstalación de compuertas y válvulas antirretorno\n•\tPlantación de vegetación ribereña, restauración de marismas y dunas.\n•\tConstrucción de depósitos subterráneos o zonas de laminación","•\tEncauzamientos resilientes con borde libre elevado\n•\tInstalación de compuertas y válvulas antirretorno\n•\tPlantación de vegetación ribereña, restauración de marismas y dunas.\n•\tConstrucción de depósitos subterráneos o zonas de laminación","•\tConstrucción de zonas de laminación y retención temporal\n•\tRevegetación de cabeceras de cuenca mediante la plantación de especies autóctonas resistentes al frío y a la escorrentía\n•\tAdaptar los cauces a variaciones extremas de caudal mediante el uso de materiales adecuados\n•\tMonitoreo hidrometeorológico en zonas nivalizadas mediante estaciones automáticas de medición de nieve, temperatura y caudal.","•\tPlantación de especies adaptadas al clima local que proporcionen sombra y estabilicen los márgenes.\n•\tDiseño de encauzamientos con refugios térmico\n•\tInstalación de sensores en puntos estratégicos del cauce","•\tPlantación de especies adaptadas al clima local que proporcionen sombra y estabilicen los márgenes.\n•\tDiseño de encauzamientos con refugios térmico\n•\tInstalación de sensores en puntos estratégicos del cauce","•\tUso de técnicas como fajinas, empalizadas vivas, estacas vegetales y mantas orgánicas para lograr la estabilización de márgenes.\n•\tIncorporación de sistemas de drenaje en estructuras de encauzamiento para evitar acumulación de agua en taludes\n•\tPlantación de especies arbóreas y arbustivas en zonas de cabecera y laderas inestables\n•\tDiseño de estructuras flexibles y adaptativas\n•\tInstalación de sensores de humedad, inclinación y presión en zonas críticas de ladera.","•\tDiseño aerodinámico y reforzado de estructuras expuestas\n•\tUso de vegetación densa (árboles, arbustos) o pantallas físicas en zonas expuestas del cauce.\n•\tProtección de taludes y márgenes con bioingeniería\n•\tCubiertas en zonas técnicas, sellado de compuertas y protección de sistemas eléctricos o hidráulicos.","•\tDiseño aerodinámico y reforzado de estructuras expuestas\n•\tUso de vegetación densa (árboles, arbustos) o pantallas físicas en zonas expuestas del cauce.\n•\tProtección de taludes y márgenes con bioingeniería\n•\tCubiertas en zonas técnicas, sellado de compuertas y protección de sistemas eléctricos o hidráulicos."]
[null,"Agua","Escollera de protección","•\tAumentar la altura de la estructura para anticiparse a futuros incrementos del nivel del mar y a eventos extremos como marejadas ciclónicas.\n•\tUso de materiales resistentes a la erosión marina\n•\tIncorporar formas curvas o escalonadas que disipen la energía del oleaje y reduzcan el desgaste estructural, mejorando la estabilidad frente a temporales.\n•\tEn el caso de escolleras, utilizar vegetación costera (como marismas o praderas marinas) que actúe como barrera natural y mejore la absorción del impacto del agua.\n•\tEn el caso de escolleras, instalar sensores para controlar el nivel del mar, la presión del oleaje y el estado estructural, permitiendo intervenciones preventivas y ajustes en tiempo real.","•\tAumentar la altura de la estructura para anticiparse a futuros incrementos del nivel del mar y a eventos extremos como marejadas ciclónicas.\n•\tUso de materiales resistentes a la erosión marina\n•\tIncorporar formas curvas o escalonadas que disipen la energía del oleaje y reduzcan el desgaste estructural, mejorando la estabilidad frente a temporales.\n•\tEn el caso de escolleras, utilizar vegetación costera (como marismas o praderas marinas) que actúe como barrera natural y mejore la absorción del impacto del agua.\n•\tEn el caso de escolleras, instalar sensores para controlar el nivel del mar, la presión del oleaje y el estado estructural, permitiendo intervenciones preventivas y ajustes en tiempo real.","•\tAumentar la altura de la estructura para anticiparse a futuros incrementos del nivel del mar y a eventos extremos como marejadas ciclónicas.\n•\tUso de materiales resistentes a la erosión marina\n•\tIncorporar formas curvas o escalonadas que disipen la energía del oleaje y reduzcan el desgaste estructural, mejorando la estabilidad frente a temporales.\n•\tEn el caso de escolleras, utilizar vegetación costera (como marismas o praderas marinas) que actúe como barrera natural y mejore la absorción del impacto del agua.\n•\tEn el caso de escolleras, instalar sensores para controlar el nivel del mar, la presión del oleaje y el estado estructural, permitiendo intervenciones preventivas y ajustes en tiempo real.","•\tIncorporar canales, filtros y drenajes en la estructura para facilitar la evacuación del agua de lluvia acumulada y evitar sobrecargas o desbordamientos.\n•\tEmplear materiales que permitan cierta infiltración controlada y que resistan la saturación prolongada sin perder estabilidad, como geotextiles o bloques drenantes.\n•\tVegetación estabilizadora en taludes y zonas adyacentes mediante la plantación de especies autóctonas con raíces profundas que ayuden a fijar el terreno y reducir la escorrentía superficial, disminuyendo el riesgo de erosión.\n•\tEstablecer sistemas de vigilancia para controlar el estado de la escollera tras eventos de lluvia intensa, y realizar inspecciones periódicas para detectar daños o acumulaciones de sedimentos","•\tAumentar la altura de la estructura para anticiparse a futuros incrementos del nivel del mar y a eventos extremos como marejadas ciclónicas.\n•\tUso de materiales resistentes a la erosión marina\n•\tIncorporar formas curvas o escalonadas que disipen la energía del oleaje y reduzcan el desgaste estructural, mejorando la estabilidad frente a temporales.\n•\tEn el caso de escolleras, utilizar vegetación costera (como marismas o praderas marinas) que actúe como barrera natural y mejore la absorción del impacto del agua.\n•\tEn el caso de escolleras, instalar sensores para controlar el nivel del mar, la presión del oleaje y el estado estructural, permitiendo intervenciones preventivas y ajustes en tiempo real.","•\tAumentar la altura de la estructura para anticiparse a futuros eventos extremos \n•\tIncorporar formas curvas o escalonadas que disipen la energía del oleaje y reduzcan el desgaste estructural, mejorando la estabilidad frente a temporales.\n•\tEn el caso de escolleras, utilizar vegetación costera (como marismas o praderas marinas) que actúe como barrera natural y mejore la absorción del impacto del agua.\n•\tEn el caso de escolleras, instalar sensores para controlar el nivel del mar, la presión del oleaje y el estado estructural, permitiendo intervenciones preventivas y ajustes en tiempo real.","•\tDiseñar los proyectos para resistir el aumento de caudales superficiales provocados por lluvias intensas en lugar de acumulación nival, incluyendo materiales de alta resistencia hidráulica.\n•\tIncorporación de sistemas de drenaje eficientes\n•\tReforzar taludes y zonas cercanas con vegetación autóctona, geotextiles o muros de contención para prevenir deslizamientos provocados por saturación del suelo.\n•\tInstalar sensores para controlar la humedad del terreno, el nivel de agua y posibles desplazamientos, permitiendo una respuesta temprana ante eventos extremos.\n•\tPermitir futuras ampliaciones o ajustes en la estructura según la evolución del clima, ","•\tUso de materiales resistentes a la expansión térmica:\n•\tIncorporar juntas flexibles en la estructura para permitir la expansión controlada de los materiales sin comprometer la estabilidad de la escollera.\n•\tAplicar tratamientos o revestimientos reflectantes en las superficies expuestas para reducir la absorción de calor y prolongar la vida útil de los materiales.\n•\tPlantar especies resistentes a temperaturas elevadas en zonas adyacentes para reducir el calentamiento del entorno y mejorar la estabilidad del terreno.\n•\tInstalar sensores para controlar la temperatura de los materiales y detectar posibles deformaciones o tensiones que puedan afectar la escollera.","•\tUso de materiales resistentes a la expansión térmica:\n•\tIncorporar juntas flexibles en la estructura para permitir la expansión controlada de los materiales sin comprometer la estabilidad de la escollera.\n•\tAplicar tratamientos o revestimientos reflectantes en las superficies expuestas para reducir la absorción de calor y prolongar la vida útil de los materiales.\n•\tPlantar especies resistentes a temperaturas elevadas en zonas adyacentes para reducir el calentamiento del entorno y mejorar la estabilidad del terreno.\n•\tInstalar sensores para controlar la temperatura de los materiales y detectar posibles deformaciones o tensiones que puedan afectar la escollera.","•\tRealizar análisis detallados del terreno para identificar zonas con alta susceptibilidad a deslizamientos, fallas o saturación hídrica que puedan comprometer la estabilidad de la galería.\n•\tIncorporar revestimientos resistentes, sistemas de sostenimiento (como cerchas, bulones o anclajes) y juntas de dilatación que permitan absorber deformaciones del terreno sin comprometer la integridad de la galería.\n•\tInstalar drenajes perimetrales y subterráneos para controlar la infiltración de agua y reducir la presión hidrostática que puede desencadenar movimientos de ladera.\n•\tImplementar sensores de desplazamiento, inclinómetros y sistemas de alerta temprana para detectar movimientos anómalos y activar protocolos de intervención rápida.\n•\tReforzar taludes cercanos mediante muros de contención, mallas metálicas, vegetación estabilizadora o geotextiles para evitar que los movimientos superficiales afecten la galería subterránea.","•\tIncorporar formas curvas o inclinadas que reduzcan la resistencia al viento y minimicen el impacto directo sobre la estructura.\n•\tUtilizar bloques de hormigón, rocas o elementos prefabricados que soporten la presión del viento y posibles impactos de objetos arrastrados.\n•\tAsegurar que los componentes de la escollera estén firmemente anclados al terreno para evitar desplazamientos o colapsos por ráfagas intensas.\n•\tMinimizar o reforzar componentes vulnerables como barandillas, señalización o accesos, que puedan desprenderse o deteriorarse por el viento.","•\tIncorporar formas curvas o inclinadas que reduzcan la resistencia al viento y minimicen el impacto directo sobre la estructura.\n•\tUtilizar bloques de hormigón, rocas o elementos prefabricados que soporten la presión del viento y posibles impactos de objetos arrastrados.\n•\tAsegurar que los componentes de la escollera estén firmemente anclados al terreno para evitar desplazamientos o colapsos por ráfagas intensas.\n•\tMinimizar o reforzar componentes vulnerables como barandillas, señalización o accesos, que puedan desprenderse o deteriorarse por el viento."]
[null,"Agua","Estaciones de tratamiento de aguas potables","•\tImpermeabilización y refuerzo de redes de saneamiento\n•\tElevación de equipos críticos\n•\tMonitoreo de nivel del mar y salinidad en zonas costeras\n•\tImplantación de sistemas inteligentes de control y gestión remota.","•\tRedimensionamiento de colectores y redes de saneamiento para manejar grandes volúmenes de agua.\n•\tSeparación de aguas pluviales y residuales para evitar sobrecargas.\n•\tInstalación de plataformas elevadas para motores, cuadros eléctricos y sistemas de control. \n•\tSellado de pozos y cámaras para evitar entrada de agua salina.\n•\tInstalación de sensores de nivel del mar, presión atmosférica y caudal en zonas costeras. \n•\tIntegración con sistemas de protección civil y protocolos de emergencia.\n•\tImplantación de sistemas inteligentes de control y gestión remota.","•\tConstrucción de diques, muros de contención y barreras vegetales en estaciones de bombeo y depuración cercanas al litoral.\n•\tReforzamiento estructural de instalaciones vulnerables.\n•\tSellado de colectores y pozos para evitar la entrada de agua salina durante marejadas. \n•\t Instalación de válvulas antirretorno en zonas de riesgo.\n•\tInstalación de plataformas elevadas para motores, cuadros eléctricos y sistemas de control. \n•\tDiseño modular que facilite el desmontaje rápido en caso de emergencia.\n•\tInstalación de sensores de nivel del mar, presión atmosférica y salinidad en zonas costeras. \n•\tIntegración con sistemas de alerta temprana y protocolos de emergencia.\n•\tImplantación de sistemas inteligentes de control y gestión remota.","•\tAmpliación de colectores y sistemas de drenaje para manejar caudales más variables y extremos. \n•\tSeparación de redes de aguas pluviales y residuales\n•\tConstrucción de tanques de tormenta, balsas de retención y zonas de infiltración. \n•\tIntegración con estaciones de bombeo y depuración.\n•\tProtección frente a infiltraciones y saturación hídrica. \n•\tUso de materiales resistentes y sistemas de sellado.\n•\tInstalación de sensores de lluvia, caudal, presión y nivel en puntos estratégicos. \n•\tIntegración con sistemas de alerta temprana y protocolos de emergencia.\n•\tImplantación de sistemas inteligentes para la gestión remota de redes y estaciones.","•\tRedimensionamiento de colectores y redes de saneamiento para manejar grandes volúmenes de agua.\n•\tSeparación de aguas pluviales y residuales para evitar sobrecargas.\n•\tInstalación de plataformas elevadas para motores, cuadros eléctricos y sistemas de control. \n•\tSellado de pozos y cámaras para evitar entrada de agua salina.\n•\tInstalación de sensores de nivel del mar, presión atmosférica y caudal en zonas costeras. \n•\tIntegración con sistemas de protección civil y protocolos de emergencia.\n•\tImplantación de sistemas inteligentes de control y gestión remota.","•\tRedimensionamiento de colectores y redes de saneamiento para manejar grandes volúmenes de agua.\n•\tSeparación de aguas pluviales y residuales para evitar sobrecargas.\n•\tInstalación de plataformas elevadas para motores, cuadros eléctricos y sistemas de control. \n•\tIntegración con sistemas de protección civil y protocolos de emergencia.\n•\tImplantación de sistemas inteligentes de control y gestión remota.","•\tDesarrollo de sistemas de captación y almacenamiento de agua subterránea como alternativa a la pérdida de nieve como fuente hídrica.\n•\tConstrucción de balsas, depósitos y humedales artificiales en zonas de montaña. \n•\t Integración con redes de abastecimiento y depuración.\n•\tModernización de tuberías y estaciones de bombeo en concejos con alta dependencia de fuentes nivosas. \n•\tMejora de la eficiencia energética y reducción de pérdidas.\n•\tInstalación de sensores de temperatura, acumulación de nieve y velocidad de deshielo. \n•\tIntegración con sistemas de alerta y planificación de recursos hídrico","•\tCubrición de tanques y canales abiertos para reducir la exposición solar. \n•\tAireación controlada para evitar la formación de zonas anaerobias. \n•\tUso de tecnologías de depuración avanzadas que permiten mayor control de temperatura y carga orgánica.\n•\tMonitorización continua de parámetros físicoquímicos (temperatura, turbidez, cloro residual).\n•\tUso de materiales resistentes a altas temperaturas (polietileno reticulado, acero inoxidable).\n•\tDigitalización del ciclo del agua con sensores inteligentes y telegestión","•\tCubrición de tanques y canales abiertos para reducir la exposición solar. \n•\tAireación controlada para evitar la formación de zonas anaerobias. \n•\tUso de tecnologías de depuración avanzadas que permiten mayor control de temperatura y carga orgánica.\n•\tMonitorización continua de parámetros físicoquímicos (temperatura, turbidez, cloro residual).\n•\tUso de materiales resistentes a altas temperaturas (polietileno reticulado, acero inoxidable).\n•\tDigitalización del ciclo del agua con sensores inteligentes y telegestión","•\tImpermeabilización de colectores y tanques para evitar infiltraciones en zonas inestables.\n•\tSeparación de redes de pluviales y residuales para reducir el volumen en episodios de lluvia.\n•\tInstalación de sistemas de drenaje sostenible para controlar el escurrimiento superficial.\n•\tUso de tuberías flexibles y articuladas que toleren deformaciones.\n•\tInstalación de válvulas de corte sectorizadas para aislar tramos en caso de emergencia.\n•\tDiseño de cámaras de válvulas y registros con cimentaciones profundas o flotantes.\n•\tCanalización segura de escorrentías para evitar erosión en taludes cercanos.\n•\tSistema de alerta temprana con sensores de inclinación y humedad del suelo.\n•\tProtección perimetral con muros de contención y vegetación estabilizadora.","•\tCubrición de tanques y canales abiertos para evitar dispersión de olores y aerosoles.\n•\tBarreras vegetales o cortavientos artificiales para reducir la velocidad del viento en zonas expuestas.\n•\tRefuerzo estructural de elementos expuestos (cubiertas, chimeneas, sistemas de ventilación).\n•\tDiseño aerodinámico de depósitos elevados para reducir la resistencia al viento.\n•\tInstalación de filtros en entradas de aire para evitar contaminación por partículas.\n•\tAnclajes reforzados en estructuras expuestas.\n•\tProtección física de registros y válvulas con tapas reforzadas y estructuras antivandálicas.\n•\tMantenimiento preventivo de vegetación cercana para evitar caída de ramas.\n•\tDiseño estructural resistente a vientos extremos (según normativa CTE y Eurocódigos).\n•\tProtección de sistemas de ventilación y aireación con rejillas antiviento.","•\tCubrición de tanques y canales abiertos para evitar dispersión de olores y aerosoles.\n•\tBarreras vegetales o cortavientos artificiales para reducir la velocidad del viento en zonas expuestas.\n•\tRefuerzo estructural de elementos expuestos (cubiertas, chimeneas, sistemas de ventilación).\n•\tDiseño aerodinámico de depósitos elevados para reducir la resistencia al viento.\n•\tInstalación de filtros en entradas de aire para evitar contaminación por partículas.\n•\tAnclajes reforzados en estructuras expuestas.\n•\tProtección física de registros y válvulas con tapas reforzadas y estructuras antivandálicas.\n•\tMantenimiento preventivo de vegetación cercana para evitar caída de ramas.\n•\tDiseño estructural resistente a vientos extremos (según normativa CTE y Eurocódigos).\n•\tProtección de sistemas de ventilación y aireación con rejillas antiviento."]
[null,"Agua","Estaciones de bombeo","•\tImpermeabilización y refuerzo de redes de saneamiento\n•\tElevación de equipos críticos\n•\tMonitoreo de nivel del mar y salinidad en zonas costeras\n•\tImplantación de sistemas inteligentes de control y gestión remota.","•\tRedimensionamiento de colectores y redes de saneamiento para manejar grandes volúmenes de agua.\n•\tSeparación de aguas pluviales y residuales para evitar sobrecargas.\n•\tInstalación de plataformas elevadas para motores, cuadros eléctricos y sistemas de control. \n•\tSellado de pozos y cámaras para evitar entrada de agua salina.\n•\tInstalación de sensores de nivel del mar, presión atmosférica y caudal en zonas costeras. \n•\tIntegración con sistemas de protección civil y protocolos de emergencia.\n•\tImplantación de sistemas inteligentes de control y gestión remota.","•\tConstrucción de diques, muros de contención y barreras vegetales en estaciones de bombeo y depuración cercanas al litoral.\n•\tReforzamiento estructural de instalaciones vulnerables.\n•\tSellado de colectores y pozos para evitar la entrada de agua salina durante marejadas. \n•\t Instalación de válvulas antirretorno en zonas de riesgo.\n•\tInstalación de plataformas elevadas para motores, cuadros eléctricos y sistemas de control. \n•\tDiseño modular que facilite el desmontaje rápido en caso de emergencia.\n•\tInstalación de sensores de nivel del mar, presión atmosférica y salinidad en zonas costeras. \n•\tIntegración con sistemas de alerta temprana y protocolos de emergencia.\n•\tImplantación de sistemas inteligentes de control y gestión remota.","•\tAmpliación de colectores y sistemas de drenaje para manejar caudales más variables y extremos. \n•\tSeparación de redes de aguas pluviales y residuales\n•\tConstrucción de tanques de tormenta, balsas de retención y zonas de infiltración. \n•\tIntegración con estaciones de bombeo y depuración.\n•\tProtección frente a infiltraciones y saturación hídrica. \n•\tUso de materiales resistentes y sistemas de sellado.\n•\tInstalación de sensores de lluvia, caudal, presión y nivel en puntos estratégicos. \n•\tIntegración con sistemas de alerta temprana y protocolos de emergencia.\n•\tImplantación de sistemas inteligentes para la gestión remota de redes y estaciones.","•\tRedimensionamiento de colectores y redes de saneamiento para manejar grandes volúmenes de agua.\n•\tSeparación de aguas pluviales y residuales para evitar sobrecargas.\n•\tInstalación de plataformas elevadas para motores, cuadros eléctricos y sistemas de control. \n•\tSellado de pozos y cámaras para evitar entrada de agua salina.\n•\tInstalación de sensores de nivel del mar, presión atmosférica y caudal en zonas costeras. \n•\tIntegración con sistemas de protección civil y protocolos de emergencia.\n•\tImplantación de sistemas inteligentes de control y gestión remota.","•\tRedimensionamiento de colectores y redes de saneamiento para manejar grandes volúmenes de agua.\n•\tSeparación de aguas pluviales y residuales para evitar sobrecargas.\n•\tInstalación de plataformas elevadas para motores, cuadros eléctricos y sistemas de control. \n•\tIntegración con sistemas de protección civil y protocolos de emergencia.\n•\tImplantación de sistemas inteligentes de control y gestión remota.","•\tDesarrollo de sistemas de captación y almacenamiento de agua subterránea como alternativa a la pérdida de nieve como fuente hídrica.\n•\tConstrucción de balsas, depósitos y humedales artificiales en zonas de montaña. \n•\t Integración con redes de abastecimiento y depuración.\n•\tModernización de tuberías y estaciones de bombeo en concejos con alta dependencia de fuentes nivosas. \n•\tMejora de la eficiencia energética y reducción de pérdidas.\n•\tInstalación de sensores de temperatura, acumulación de nieve y velocidad de deshielo. \n•\tIntegración con sistemas de alerta y planificación de recursos hídrico","•\tCubrición de tanques y canales abiertos para reducir la exposición solar. \n•\tAireación controlada para evitar la formación de zonas anaerobias. \n•\tUso de tecnologías de depuración avanzadas que permiten mayor control de temperatura y carga orgánica.\n•\tMonitorización continua de parámetros físicoquímicos (temperatura, turbidez, cloro residual).\n•\tUso de materiales resistentes a altas temperaturas (polietileno reticulado, acero inoxidable).\n•\tDigitalización del ciclo del agua con sensores inteligentes y telegestión","•\tCubrición de tanques y canales abiertos para reducir la exposición solar. \n•\tAireación controlada para evitar la formación de zonas anaerobias. \n•\tUso de tecnologías de depuración avanzadas que permiten mayor control de temperatura y carga orgánica.\n•\tMonitorización continua de parámetros físicoquímicos (temperatura, turbidez, cloro residual).\n•\tUso de materiales resistentes a altas temperaturas (polietileno reticulado, acero inoxidable).\n•\tDigitalización del ciclo del agua con sensores inteligentes y telegestión","•\tImpermeabilización de colectores y tanques para evitar infiltraciones en zonas inestables.\n•\tSeparación de redes de pluviales y residuales para reducir el volumen en episodios de lluvia.\n•\tInstalación de sistemas de drenaje sostenible para controlar el escurrimiento superficial.\n•\tUso de tuberías flexibles y articuladas que toleren deformaciones.\n•\tInstalación de válvulas de corte sectorizadas para aislar tramos en caso de emergencia.\n•\tDiseño de cámaras de válvulas y registros con cimentaciones profundas o flotantes.\n•\tCanalización segura de escorrentías para evitar erosión en taludes cercanos.\n•\tSistema de alerta temprana con sensores de inclinación y humedad del suelo.\n•\tProtección perimetral con muros de contención y vegetación estabilizadora.","•\tCubrición de tanques y canales abiertos para evitar dispersión de olores y aerosoles.\n•\tBarreras vegetales o cortavientos artificiales para reducir la velocidad del viento en zonas expuestas.\n•\tRefuerzo estructural de elementos expuestos (cubiertas, chimeneas, sistemas de ventilación).\n•\tDiseño aerodinámico de depósitos elevados para reducir la resistencia al viento.\n•\tInstalación de filtros en entradas de aire para evitar contaminación por partículas.\n•\tAnclajes reforzados en estructuras expuestas.\n•\tProtección física de registros y válvulas con tapas reforzadas y estructuras antivandálicas.\n•\tMantenimiento preventivo de vegetación cercana para evitar caída de ramas.\n•\tDiseño estructural resistente a vientos extremos (según normativa CTE y Eurocódigos).\n•\tProtección de sistemas de ventilación y aireación con rejillas antiviento.","•\tCubrición de tanques y canales abiertos para evitar dispersión de olores y aerosoles.\n•\tBarreras vegetales o cortavientos artificiales para reducir la velocidad del viento en zonas expuestas.\n•\tRefuerzo estructural de elementos expuestos (cubiertas, chimeneas, sistemas de ventilación).\n•\tDiseño aerodinámico de depósitos elevados para reducir la resistencia al viento.\n•\tInstalación de filtros en entradas de aire para evitar contaminación por partículas.\n•\tAnclajes reforzados en estructuras expuestas.\n•\tProtección física de registros y válvulas con tapas reforzadas y estructuras antivandálicas.\n•\tMantenimiento preventivo de vegetación cercana para evitar caída de ramas.\n•\tDiseño estructural resistente a vientos extremos (según normativa CTE y Eurocódigos).\n•\tProtección de sistemas de ventilación y aireación con rejillas antiviento."]
[null,"Agua","Encauzamiento","•\tDiseño de encauzamientos con capacidad de absorción de crecidas y sistemas de alivio hacia zonas seguras.\n•\tConstrucción de compuertas y válvulas antirretorno en desembocaduras para evitar entrada de agua marina en crecidas.\n•\tRevegetación de márgenes fluviales con especies resistentes a salinidad para estabilizar suelos.\n•\tUso de técnicas blandas de protección costera como barreras vegetales, restauración de dunas y playas","•\tDiseño de cauces con zonas de expansión controlada para permitir el desbordamiento en áreas seguras.\n•\tEncauzamientos con vegetación natural que ralentiza el flujo y mejora la infiltración.\n•\tUso de materiales permeables y flexibles en estructuras para facilitar el drenaje y reducir la presión hidráulica.\n•\tInstalación de compuertas antirretorno para evitar la entrada de agua marina en crecidas fluviales. \n•\tElevación de márgenes y muros de contención en zonas urbanas costeras. \n•\tRefuerzo de taludes y estructuras con geotextiles y vegetación estabilizadora.\n•\tLimpieza periódica de cauces y retirada de obstáculos que puedan agravar el desbordamiento. \n•\tRevisión estructural de encauzamientos antiguos para adaptarlos a nuevos escenarios climáticos.","•\tDiseño de encauzamientos con capacidad de absorción de crecidas y sistemas de alivio hacia zonas seguras.\n•\tConstrucción de compuertas y válvulas antirretorno en desembocaduras para evitar entrada de agua marina en crecidas.\n•\tRevegetación de márgenes fluviales con especies resistentes a salinidad para estabilizar suelos.\n•\tUso de técnicas blandas de protección costera como barreras vegetales, restauración de dunas y playas","•\tSobredimensionamiento de secciones de cauce para admitir caudales extremos.\n•\tEncauzamientos con borde libre elevado para evitar desbordamientos. \n•\tEspigones y defensas ribereñas con materiales flexibles (gaviones, enrocados) que toleren erosión progresiva.\n•\tRestauración de riberas y zonas de inundación natural para amortiguar crecidas. \n•\tVegetación estabilizadora en márgenes para reducir erosión y mejorar infiltración. \n•\tZonas de retención temporal (humedales artificiales, llanuras de inundación) para almacenar excedentes.\n•\tInstalación de sensores de nivel y caudal en puntos críticos.\n•\tUso de materiales resistentes a la erosión y al impacto hidráulico.\n•\tCimentaciones profundas o flexibles en estructuras expuestas a socavación.\n•\tDiseño modular y accesible para mantenimiento frecuente","•\tEncauzamientos resilientes con borde libre elevado\n•\tInstalación de compuertas y válvulas antirretorno\n•\tPlantación de vegetación ribereña, restauración de marismas y dunas.\n•\tConstrucción de depósitos subterráneos o zonas de laminación","•\tEncauzamientos resilientes con borde libre elevado\n•\tInstalación de compuertas y válvulas antirretorno\n•\tPlantación de vegetación ribereña, restauración de marismas y dunas.\n•\tConstrucción de depósitos subterráneos o zonas de laminación","•\tConstrucción de zonas de laminación y retención temporal\n•\tRevegetación de cabeceras de cuenca mediante la plantación de especies autóctonas resistentes al frío y a la escorrentía\n•\tAdaptar los cauces a variaciones extremas de caudal mediante el uso de materiales adecuados\n•\tMonitoreo hidrometeorológico en zonas nivalizadas mediante estaciones automáticas de medición de nieve, temperatura y caudal.","•\tPlantación de especies adaptadas al clima local que proporcionen sombra y estabilicen los márgenes.\n•\tDiseño de encauzamientos con refugios térmico\n•\tInstalación de sensores en puntos estratégicos del cauce","•\tPlantación de especies adaptadas al clima local que proporcionen sombra y estabilicen los márgenes.\n•\tDiseño de encauzamientos con refugios térmico\n•\tInstalación de sensores en puntos estratégicos del cauce","•\tUso de técnicas como fajinas, empalizadas vivas, estacas vegetales y mantas orgánicas para lograr la estabilización de márgenes.\n•\tIncorporación de sistemas de drenaje en estructuras de encauzamiento para evitar acumulación de agua en taludes\n•\tPlantación de especies arbóreas y arbustivas en zonas de cabecera y laderas inestables\n•\tDiseño de estructuras flexibles y adaptativas\n•\tInstalación de sensores de humedad, inclinación y presión en zonas críticas de ladera.","•\tDiseño aerodinámico y reforzado de estructuras expuestas\n•\tUso de vegetación densa (árboles, arbustos) o pantallas físicas en zonas expuestas del cauce.\n•\tProtección de taludes y márgenes con bioingeniería\n•\tCubiertas en zonas técnicas, sellado de compuertas y protección de sistemas eléctricos o hidráulicos.","•\tDiseño aerodinámico y reforzado de estructuras expuestas\n•\tUso de vegetación densa (árboles, arbustos) o pantallas físicas en zonas expuestas del cauce.\n•\tProtección de taludes y márgenes con bioingeniería\n•\tCubiertas en zonas técnicas, sellado de compuertas y protección de sistemas eléctricos o hidráulicos."]
[null,"Energía","Infraestructuras de almacenamiento energético","•\tIncrementar la altura de los pilones eléctricos para mejorar la seguridad y adaptarse a nuevas condiciones climáticas. \n•\tReubicar líneas aéreas o sustituirlas por cableado subterráneo, especialmente en zonas expuestas a riesgos climáticos o ambientales. \n•\tProteger los activos de la red, mediante el uso de tuberías impermeables, subestaciones elevadas o selladas, interruptores, bombas y transformadores sumergibles, y el cierre hermético de tapas de alcantarillado. \n•\tRestringir la construcción de líneas eléctricas en proximidad a diques, para evitar riesgos asociados a posibles fallos estructurales o inundaciones.","•\tIncrementar la altura de los pilones eléctricos para mejorar la seguridad y adaptarse a nuevas condiciones climáticas. \n•\tReubicar líneas aéreas o sustituirlas por cableado subterráneo, especialmente en zonas expuestas a riesgos climáticos o ambientales. \n•\tProteger los activos de la red, mediante el uso de tuberías impermeables, subestaciones elevadas o selladas, interruptores, bombas y transformadores sumergibles, y el cierre hermético de tapas de alcantarillado. \n•\tRestringir la construcción de líneas eléctricas en proximidad a diques, para evitar riesgos asociados a posibles fallos estructurales o inundaciones.","•\tAjustar los estándares de carga de viento en el diseño de infraestructuras eléctricas para mejorar su resistencia ante fenómenos meteorológicos extremos. \n•\tRefuerzo estructural de pilones eléctricos y mejora en la gestión de la vegetación circundante para reducir el riesgo de daños por viento o caída de árboles. \n•\tDesviar líneas eléctricas o reubicarlas bajo tierra, especialmente en zonas con alta exposición a elementos sensibles como árboles o infraestructuras críticas. \n•\tImplementar protocolos de mantenimiento adaptados y establecer mecanismos de respuesta rápida ante daños, incluyendo la formación de equipos especializados en gestión y restauración de la red tras eventos climáticos extremos. \n•\tIncrementar la automatización de la red eléctrica, permitiendo la reconfiguración remota de los sistemas para minimizar el impacto de fallos y mejorar la resiliencia operativa.","•\tIncrementar la altura de los pilones eléctricos para mejorar la seguridad y adaptarse a nuevas condiciones climáticas. \n•\tReubicar líneas aéreas o sustituirlas por cableado subterráneo, especialmente en zonas expuestas a riesgos climáticos o ambientales. \n•\tProteger los activos de la red, mediante el uso de tuberías impermeables, subestaciones elevadas o selladas, interruptores, bombas y transformadores sumergibles, y el cierre hermético de tapas de alcantarillado. \n•\tRestringir la construcción de líneas eléctricas en proximidad a diques, para evitar riesgos asociados a posibles fallos estructurales o inundaciones.","•\tIncrementar la altura de los pilones eléctricos para mejorar la seguridad y adaptarse a nuevas condiciones climáticas. \n•\tReubicar líneas aéreas o sustituirlas por cableado subterráneo, especialmente en zonas expuestas a riesgos climáticos o ambientales. \n•\tProteger los activos de la red, mediante el uso de tuberías impermeables, subestaciones elevadas o selladas, interruptores, bombas y transformadores sumergibles, y el cierre hermético de tapas de alcantarillado. \n•\tRestringir la construcción de líneas eléctricas en proximidad a diques, para evitar riesgos asociados a posibles fallos estructurales o inundaciones.","•\tIncrementar la altura de los pilones eléctricos para mejorar la seguridad y adaptarse a nuevas condiciones climáticas. \n•\tReubicar líneas aéreas o sustituirlas por cableado subterráneo, especialmente en zonas expuestas a riesgos climáticos o ambientales. \n•\tProteger los activos de la red, mediante el uso de tuberías impermeables, subestaciones elevadas o selladas, interruptores, bombas y transformadores sumergibles, y el cierre hermético de tapas de alcantarillado. \n•\tRestringir la construcción de líneas eléctricas en proximidad a diques, para evitar riesgos asociados a posibles fallos estructurales o inundaciones.","•\tInstalación de estructuras de almacenamiento adicionales para gestionar la mayor volatilidad en la demanda energética y la generación intermitente.\n•\tConsideración de los requerimientos térmicos de los edificios al planificar la ampliación o renovación de la capacidad de transmisión y distribución eléctrica.\n•\tIncremento de la digitalización de la red eléctrica para mejorar su flexibilidad y permitir mecanismos de respuesta activa a la demanda.\n•\tImplementación de sistemas de alerta temprana que permitan adaptar el comportamiento del consumidor ante eventos extremos o picos de demanda.\n•\tAumento de la capacidad del sistema eléctrico mediante la elevación de la altura de los postes o el incremento de la tensión en las líneas, con el objetivo de reducir la probabilidad de fallos eléctricos.\n•\tEvaluación del uso de cables subterráneos como medida de adaptación frente al riesgo de formación de hielo en líneas aéreas","•\tDiseño de equipos eléctricos adaptados a temperaturas elevadas, incluyendo transformadores resistentes al calor, conductores HTLS (High Temperature Low Sag) y líneas o subestaciones con aislamiento de gas.\n•\tMejora de la refrigeración en infraestructuras críticas, como subestaciones y transformadores, mediante sistemas de enfriamiento externo más eficientes.\n•\tInstalación de estructuras de almacenamiento adicionales para gestionar la mayor volatilidad en la demanda energética y la generación intermitente.\n•\tConsideración de los requerimientos térmicos de los edificios al planificar la ampliación o renovación de la capacidad de transmisión y distribución eléctrica.\n•\tIncremento de la digitalización de la red eléctrica para mejorar su flexibilidad y permitir mecanismos de respuesta activa a la demanda.\n•\tImplementación de sistemas de alerta temprana que permitan adaptar el comportamiento del consumidor ante eventos extremos o picos de demanda.\n•\tAumento de la capacidad del sistema eléctrico mediante la elevación de la altura de los postes o el incremento de la tensión en las líneas, con el objetivo de reducir la probabilidad de fallos eléctricos.\n•\tEvaluación del uso de cables subterráneos como medida de adaptación frente al riesgo de formación de hielo en líneas aéreas","•\tDiseño de equipos eléctricos adaptados a temperaturas elevadas, incluyendo transformadores resistentes al calor, conductores HTLS (High Temperature Low Sag) y líneas o subestaciones con aislamiento de gas.\n•\tMejora de la refrigeración en infraestructuras críticas, como subestaciones y transformadores, mediante sistemas de enfriamiento externo más eficientes.\n•\tInstalación de estructuras de almacenamiento adicionales para gestionar la mayor volatilidad en la demanda energética y la generación intermitente.\n•\tConsideración de los requerimientos térmicos de los edificios al planificar la ampliación o renovación de la capacidad de transmisión y distribución eléctrica.\n•\tIncremento de la digitalización de la red eléctrica para mejorar su flexibilidad y permitir mecanismos de respuesta activa a la demanda.\n•\tImplementación de sistemas de alerta temprana que permitan adaptar el comportamiento del consumidor ante eventos extremos o picos de demanda.\n•\tAumento de la capacidad del sistema eléctrico mediante la elevación de la altura de los postes o el incremento de la tensión en las líneas, con el objetivo de reducir la probabilidad de fallos eléctricos.\n•\tEvaluación del uso de cables subterráneos como medida de adaptación frente al riesgo de formación de hielo en líneas aéreas","•\tConsiderar opciones de desvío alternativas en la etapa de planificación de inversiones. Adoptar soluciones de cableado subterráneo en áreas de alta vulnerabilidad.","•\tAjustar los estándares de carga de viento en el diseño de infraestructuras eléctricas para mejorar su resistencia ante fenómenos meteorológicos extremos. \n•\tRefuerzo estructural de pilones eléctricos y mejora en la gestión de la vegetación circundante para reducir el riesgo de daños por viento o caída de árboles. \n•\tDesviar líneas eléctricas o reubicarlas bajo tierra, especialmente en zonas con alta exposición a elementos sensibles como árboles o infraestructuras críticas. \n•\tImplementar protocolos de mantenimiento adaptados y establecer mecanismos de respuesta rápida ante daños, incluyendo la formación de equipos especializados en gestión y restauración de la red tras eventos climáticos extremos. \n•\tIncrementar la automatización de la red eléctrica, permitiendo la reconfiguración remota de los sistemas para minimizar el impacto de fallos y mejorar la resiliencia operativa.","•\tAjustar los estándares de carga de viento en el diseño de infraestructuras eléctricas para mejorar su resistencia ante fenómenos meteorológicos extremos. \n•\tRefuerzo estructural de pilones eléctricos y mejora en la gestión de la vegetación circundante para reducir el riesgo de daños por viento o caída de árboles. \n•\tDesviar líneas eléctricas o reubicarlas bajo tierra, especialmente en zonas con alta exposición a elementos sensibles como árboles o infraestructuras críticas. \n•\tImplementar protocolos de mantenimiento adaptados y establecer mecanismos de respuesta rápida ante daños, incluyendo la formación de equipos especializados en gestión y restauración de la red tras eventos climáticos extremos. \n•\tIncrementar la automatización de la red eléctrica, permitiendo la reconfiguración remota de los sistemas para minimizar el impacto de fallos y mejorar la resiliencia operativa."]
[null,"Energía","Infraestructura para la generación de energía renovable","•\tUso de agua de mar para refrigeración adicional en centrales eléctricas ubicadas en zonas costeras, aprovechando recursos disponibles sin comprometer fuentes de agua dulce. \n•\tConstrucción de diques, instalación de barreras físicas y reubicación de infraestructuras vulnerables. \n•\tRefuerzo de la protección en proyectos geotérmicos, especialmente en ubicaciones con alta probabilidad de inundaciones, para garantizar la continuidad operativa. \n•\tEspecificación de componentes fotovoltaicos resistentes a la humedad, incluyendo cableado y estructuras capaces de soportar niveles elevados de humedad o inundación sin comprometer el rendimiento.","•\tUso de agua de mar para refrigeración adicional en centrales eléctricas ubicadas en zonas costeras, aprovechando recursos disponibles sin comprometer fuentes de agua dulce. \n•\tConstrucción de diques, instalación de barreras físicas y reubicación de infraestructuras vulnerables. \n•\tRefuerzo de la protección en proyectos geotérmicos, especialmente en ubicaciones con alta probabilidad de inundaciones, para garantizar la continuidad operativa. \n•\tEspecificación de componentes fotovoltaicos resistentes a la humedad, incluyendo cableado y estructuras capaces de soportar niveles elevados de humedad o inundación sin comprometer el rendimiento.","•\tReubicación de infraestructuras vulnerables en zonas con riesgo de inundación (ribereñas, costeras).\n•\tConstrucción de barreras físicas como diques o sistemas de protección contra inundaciones.\n•\tDigitalización y automatización de redes eléctricas, para mejorar la flexibilidad operativa y permitir una respuesta rápida ante fallos.\n•\tProtección de componentes críticos frente a humedad e inundaciones, como transformadores sumergibles, tapas herméticas y cableado resistente.","•\tImplementación de sistemas de refrigeración por aire en centrales térmicas, como alternativa cuando el agua de refrigeración se vuelve escasa debido al cambio climático. \n•\tConstrucción de diques, instalación de barreras físicas y reubicación de infraestructuras vulnerables. \n•\tRefuerzo de la protección en proyectos geotérmicos, especialmente en ubicaciones con alta probabilidad de inundaciones, para garantizar la continuidad operativa. \n•\tEspecificación de componentes fotovoltaicos resistentes a la humedad, incluyendo cableado y estructuras capaces de soportar niveles elevados de humedad o inundación sin comprometer el rendimiento","•\tUso de agua de mar para refrigeración adicional en centrales eléctricas ubicadas en zonas costeras, aprovechando recursos disponibles sin comprometer fuentes de agua dulce. \n•\tConstrucción de diques, instalación de barreras físicas y reubicación de infraestructuras vulnerables. \n•\tRefuerzo de la protección en proyectos geotérmicos, especialmente en ubicaciones con alta probabilidad de inundaciones, para garantizar la continuidad operativa. \n•\tEspecificación de componentes fotovoltaicos resistentes a la humedad, incluyendo cableado y estructuras capaces de soportar niveles elevados de humedad o inundación sin comprometer el rendimiento.","•\tUso de agua de mar para refrigeración adicional en centrales eléctricas ubicadas en zonas costeras, aprovechando recursos disponibles sin comprometer fuentes de agua dulce. \n•\tConstrucción de diques, instalación de barreras físicas y reubicación de infraestructuras vulnerables. \n•\tRefuerzo de la protección en proyectos geotérmicos, especialmente en ubicaciones con alta probabilidad de inundaciones, para garantizar la continuidad operativa. \n•\tEspecificación de componentes fotovoltaicos resistentes a la humedad, incluyendo cableado y estructuras capaces de soportar niveles elevados de humedad o inundación sin comprometer el rendimiento.","•\tImplementar sistemas de enfriamiento para mejorar la eficiencia operativa.\n•\tAdoptar tecnologías de refrigeración más sostenibles, como sistemas de circuito cerrado o enfriamiento en seco.\n•\tIncorporar inversores tipo string o microinversores en instalaciones solares para facilitar la disipación térmica y mejorar la eficiencia del sistema.\n•\tDiseñar estructuras fotovoltaicas que favorezcan el flujo de aire pasivo bajo los paneles, reduciendo la temperatura de las placas y aumentando la producción energética.","•\tImplementar sistemas de enfriamiento para mejorar la eficiencia operativa en condiciones de altas temperaturas.\n•\tAdoptar tecnologías de refrigeración más sostenibles, como sistemas de circuito cerrado o enfriamiento en seco.\n•\tUtilizar módulos fotovoltaicos con coeficientes de temperatura elevados, que mantengan un rendimiento óptimo incluso en condiciones de calor extremo.\n•\tIncorporar inversores tipo string o microinversores en instalaciones solares para facilitar la disipación térmica y mejorar la eficiencia del sistema.\n•\tDiseñar estructuras fotovoltaicas que favorezcan el flujo de aire pasivo bajo los paneles, reduciendo la temperatura de las placas y aumentando la producción energética.","•\tImplementar sistemas de enfriamiento para mejorar la eficiencia operativa en condiciones de altas temperaturas.\n•\tAdoptar tecnologías de refrigeración más sostenibles, como sistemas de circuito cerrado o enfriamiento en seco.\n•\tUtilizar módulos fotovoltaicos con coeficientes de temperatura elevados, que mantengan un rendimiento óptimo incluso en condiciones de calor extremo.\n•\tIncorporar inversores tipo string o microinversores en instalaciones solares para facilitar la disipación térmica y mejorar la eficiencia del sistema.\n•\tDiseñar estructuras fotovoltaicas que favorezcan el flujo de aire pasivo bajo los paneles, reduciendo la temperatura de las placas y aumentando la producción energética.","•\tEvaluación geotécnica detallada del terreno antes de la instalación, para identificar zonas con riesgo de deslizamientos o inestabilidad.\n•\tUbicación estratégica de infraestructuras en zonas con menor pendiente o fuera de áreas de acumulación de agua y materiales inestables.\n•\tDiseño de cimentaciones profundas y reforzadas, como pilotes o zapatas especiales, que mejoren la estabilidad de aerogeneradores, paneles solares o estaciones de transformación.\n•\tConstrucción de muros de contención y drenaje superficial, para estabilizar el terreno y evitar la acumulación de agua que favorezca el movimiento de laderas.\n•\tRevegetación y protección del suelo en áreas intervenidas, para reducir la erosión y mejorar la cohesión del terreno.\n•\tGestión controlada de la vegetación alrededor de las instalaciones para evitar que las raíces afecten la estabilidad sin comprometer la protección natural del suelo.\n•\tControl de escorrentía y drenaje mediante zanjas, canales o sistemas de infiltración que reduzcan la presión hídrica sobre las laderas.","•\tActualizar los estándares de diseño, especialmente en los aerogeneradores para aumentar la robustez y la resiliencia de componentes clave frente a condiciones meteorológicas más extremas. \n•\tConsiderar el uso de torres eólicas más altas, con el objetivo de aprovechar velocidades de viento superiores en cotas elevadas y mejorar la eficiencia energética. \n•\tDiseñar estructuras de montaje fotovoltaicas más resistentes, capaces de soportar cargas adicionales por viento, nieve o humedad, y adaptadas a entornos climáticos variables.","•\tReubicación de infraestructuras vulnerables en zonas con riesgo de inundación (ribereñas, costeras).\n•\tConstrucción de barreras físicas como diques o sistemas de protección contra inundaciones.\n•\tDigitalización y automatización de redes eléctricas, para mejorar la flexibilidad operativa y permitir una respuesta rápida ante fallos.\n•\tProtección de componentes críticos frente a humedad e inundaciones, como transformadores sumergibles, tapas herméticas y cableado resistente."]
[null,"Energía","Transporte y distribución","•\tIncrementar la altura de los pilones eléctricos para mejorar la seguridad y adaptarse a nuevas condiciones climáticas. \n•\tReubicar líneas aéreas o sustituirlas por cableado subterráneo, especialmente en zonas expuestas a riesgos climáticos o ambientales. \n•\tProteger los activos de la red, mediante el uso de tuberías impermeables, subestaciones elevadas o selladas, interruptores, bombas y transformadores sumergibles, y el cierre hermético de tapas de alcantarillado. \n•\tRestringir la construcción de líneas eléctricas en proximidad a diques, para evitar riesgos asociados a posibles fallos estructurales o inundaciones.","•\tIncrementar la altura de los pilones eléctricos para mejorar la seguridad y adaptarse a nuevas condiciones climáticas. \n•\tReubicar líneas aéreas o sustituirlas por cableado subterráneo, especialmente en zonas expuestas a riesgos climáticos o ambientales. \n•\tProteger los activos de la red, mediante el uso de tuberías impermeables, subestaciones elevadas o selladas, interruptores, bombas y transformadores sumergibles, y el cierre hermético de tapas de alcantarillado. \n•\tRestringir la construcción de líneas eléctricas en proximidad a diques, para evitar riesgos asociados a posibles fallos estructurales o inundaciones.","•\tAjustar los estándares de carga de viento en el diseño de infraestructuras eléctricas para mejorar su resistencia ante fenómenos meteorológicos extremos. \n•\tRefuerzo estructural de pilones eléctricos y mejora en la gestión de la vegetación circundante para reducir el riesgo de daños por viento o caída de árboles. \n•\tDesviar líneas eléctricas o reubicarlas bajo tierra, especialmente en zonas con alta exposición a elementos sensibles como árboles o infraestructuras críticas. \n•\tImplementar protocolos de mantenimiento adaptados y establecer mecanismos de respuesta rápida ante daños, incluyendo la formación de equipos especializados en gestión y restauración de la red tras eventos climáticos extremos. \n•\tIncrementar la automatización de la red eléctrica, permitiendo la reconfiguración remota de los sistemas para minimizar el impacto de fallos y mejorar la resiliencia operativa.","•\tIncrementar la altura de los pilones eléctricos para mejorar la seguridad y adaptarse a nuevas condiciones climáticas. \n•\tReubicar líneas aéreas o sustituirlas por cableado subterráneo, especialmente en zonas expuestas a riesgos climáticos o ambientales. \n•\tProteger los activos de la red, mediante el uso de tuberías impermeables, subestaciones elevadas o selladas, interruptores, bombas y transformadores sumergibles, y el cierre hermético de tapas de alcantarillado. \n•\tRestringir la construcción de líneas eléctricas en proximidad a diques, para evitar riesgos asociados a posibles fallos estructurales o inundaciones.","•\tIncrementar la altura de los pilones eléctricos para mejorar la seguridad y adaptarse a nuevas condiciones climáticas. \n•\tReubicar líneas aéreas o sustituirlas por cableado subterráneo, especialmente en zonas expuestas a riesgos climáticos o ambientales. \n•\tProteger los activos de la red, mediante el uso de tuberías impermeables, subestaciones elevadas o selladas, interruptores, bombas y transformadores sumergibles, y el cierre hermético de tapas de alcantarillado. \n•\tRestringir la construcción de líneas eléctricas en proximidad a diques, para evitar riesgos asociados a posibles fallos estructurales o inundaciones.","•\tIncrementar la altura de los pilones eléctricos para mejorar la seguridad y adaptarse a nuevas condiciones climáticas. \n•\tReubicar líneas aéreas o sustituirlas por cableado subterráneo, especialmente en zonas expuestas a riesgos climáticos o ambientales. \n•\tProteger los activos de la red, mediante el uso de tuberías impermeables, subestaciones elevadas o selladas, interruptores, bombas y transformadores sumergibles, y el cierre hermético de tapas de alcantarillado. \n•\tRestringir la construcción de líneas eléctricas en proximidad a diques, para evitar riesgos asociados a posibles fallos estructurales o inundaciones.","•\tInstalación de estructuras de almacenamiento adicionales para gestionar la mayor volatilidad en la demanda energética y la generación intermitente.\n•\tConsideración de los requerimientos térmicos de los edificios al planificar la ampliación o renovación de la capacidad de transmisión y distribución eléctrica.\n•\tIncremento de la digitalización de la red eléctrica para mejorar su flexibilidad y permitir mecanismos de respuesta activa a la demanda.\n•\tImplementación de sistemas de alerta temprana que permitan adaptar el comportamiento del consumidor ante eventos extremos o picos de demanda.\n•\tAumento de la capacidad del sistema eléctrico mediante la elevación de la altura de los postes o el incremento de la tensión en las líneas, con el objetivo de reducir la probabilidad de fallos eléctricos.\n•\tEvaluación del uso de cables subterráneos como medida de adaptación frente al riesgo de formación de hielo en líneas aéreas","•\tDiseño de equipos eléctricos adaptados a temperaturas elevadas, incluyendo transformadores resistentes al calor, conductores HTLS (High Temperature Low Sag) y líneas o subestaciones con aislamiento de gas.\n•\tMejora de la refrigeración en infraestructuras críticas, como subestaciones y transformadores, mediante sistemas de enfriamiento externo más eficientes.\n•\tInstalación de estructuras de almacenamiento adicionales para gestionar la mayor volatilidad en la demanda energética y la generación intermitente.\n•\tConsideración de los requerimientos térmicos de los edificios al planificar la ampliación o renovación de la capacidad de transmisión y distribución eléctrica.\n•\tIncremento de la digitalización de la red eléctrica para mejorar su flexibilidad y permitir mecanismos de respuesta activa a la demanda.\n•\tImplementación de sistemas de alerta temprana que permitan adaptar el comportamiento del consumidor ante eventos extremos o picos de demanda.\n•\tAumento de la capacidad del sistema eléctrico mediante la elevación de la altura de los postes o el incremento de la tensión en las líneas, con el objetivo de reducir la probabilidad de fallos eléctricos.\n•\tEvaluación del uso de cables subterráneos como medida de adaptación frente al riesgo de formación de hielo en líneas aéreas","•\tDiseño de equipos eléctricos adaptados a temperaturas elevadas, incluyendo transformadores resistentes al calor, conductores HTLS (High Temperature Low Sag) y líneas o subestaciones con aislamiento de gas.\n•\tMejora de la refrigeración en infraestructuras críticas, como subestaciones y transformadores, mediante sistemas de enfriamiento externo más eficientes.\n•\tInstalación de estructuras de almacenamiento adicionales para gestionar la mayor volatilidad en la demanda energética y la generación intermitente.\n•\tConsideración de los requerimientos térmicos de los edificios al planificar la ampliación o renovación de la capacidad de transmisión y distribución eléctrica.\n•\tIncremento de la digitalización de la red eléctrica para mejorar su flexibilidad y permitir mecanismos de respuesta activa a la demanda.\n•\tImplementación de sistemas de alerta temprana que permitan adaptar el comportamiento del consumidor ante eventos extremos o picos de demanda.\n•\tAumento de la capacidad del sistema eléctrico mediante la elevación de la altura de los postes o el incremento de la tensión en las líneas, con el objetivo de reducir la probabilidad de fallos eléctricos.\n•\tEvaluación del uso de cables subterráneos como medida de adaptación frente al riesgo de formación de hielo en líneas aéreas","•\tConsiderar opciones de desvío alternativas en la etapa de planificación de inversiones. Adoptar soluciones de cableado subterráneo en áreas de alta vulnerabilidad.","•\tAjustar los estándares de carga de viento en el diseño de infraestructuras eléctricas para mejorar su resistencia ante fenómenos meteorológicos extremos. \n•\tRefuerzo estructural de pilones eléctricos y mejora en la gestión de la vegetación circundante para reducir el riesgo de daños por viento o caída de árboles. \n•\tDesviar líneas eléctricas o reubicarlas bajo tierra, especialmente en zonas con alta exposición a elementos sensibles como árboles o infraestructuras críticas. \n•\tImplementar protocolos de mantenimiento adaptados y establecer mecanismos de respuesta rápida ante daños, incluyendo la formación de equipos especializados en gestión y restauración de la red tras eventos climáticos extremos. \n•\tIncrementar la automatización de la red eléctrica, permitiendo la reconfiguración remota de los sistemas para minimizar el impacto de fallos y mejorar la resiliencia operativa.","•\tAjustar los estándares de carga de viento en el diseño de infraestructuras eléctricas para mejorar su resistencia ante fenómenos meteorológicos extremos. \n•\tRefuerzo estructural de pilones eléctricos y mejora en la gestión de la vegetación circundante para reducir el riesgo de daños por viento o caída de árboles. \n•\tDesviar líneas eléctricas o reubicarlas bajo tierra, especialmente en zonas con alta exposición a elementos sensibles como árboles o infraestructuras críticas. \n•\tImplementar protocolos de mantenimiento adaptados y establecer mecanismos de respuesta rápida ante daños, incluyendo la formación de equipos especializados en gestión y restauración de la red tras eventos climáticos extremos. \n•\tIncrementar la automatización de la red eléctrica, permitiendo la reconfiguración remota de los sistemas para minimizar el impacto de fallos y mejorar la resiliencia operativa."]
[null,"Territorio","Galerías subterráneas/mineras","•\tInstalación de compuertas antirretorno y válvulas de presión\n•\tUso de hormigones especiales, membranas impermeables y sellado de juntas en galerías subterráneas.\n•\tDiseño de accesos a galerías para que estén por encima del nivel de inundación previsto\n•\tSistema de bombeo automático con sensores de nivel\n•\tIntegración con infraestructura verde costera: restauración de marismas, dunas y vegetación costera en zonas cercanas a galerías.","•\tInstalación de compuertas antirretorno en conexiones con redes de drenaje\n•\tImpermeabilización estructural avanzada mediante el uso de hormigón hidrófugo, membranas impermeables y sellado de juntas en galerías.\n•\tRediseño de bocas de entrada y salidas de emergencia para que estén por encima del nivel de inundación previsto\n•\tInstalación de bombas de achique con activación automática en puntos bajos de la galería\n•\tRestauración de marismas, dunas y vegetación costera en zonas cercanas a galerías","•\tInstalación de compuertas antirretorno en conexiones costera\n•\tImpermeabilización estructural reforzada\n•\tElevación y protección de accesos\n•\tSistema de bombeo automático con sensores de nivel mediante la instalación de bombas de achique con activación automática en puntos bajos de la galería.\n•\tIntegración con infraestructura verde costera","•\tIncorporación de canales de drenaje, cunetas revestidas y bombeo en puntos bajos de la galería.\n•\tUso de hormigón hidrófugo, membranas impermeables y sellado de juntas en túneles y galerías\n•\tInstalación de sensores de humedad, presión y caudal en zonas críticas\n•\tDiseño de bocas de entrada y salidas de emergencia para que estén por encima del nivel de escorrentía previsto.\n•\tRestauración de vegetación y suelos absorbentes en el entorno de la galería","•\tInstalación de compuertas antirretorno en conexiones costera\n•\tImpermeabilización estructural reforzada\n•\tElevación y protección de accesos\n•\tSistema de bombeo automático con sensores de nivel mediante la instalación de bombas de achique con activación automática en puntos bajos de la galería.\n•\tIntegración con infraestructura verde costera","•\tIncorporación de canales de drenaje, cunetas revestidas y bombeo en puntos bajos de la galería\n•\tImpermeabilización estructural reforzada\n•\tElevación y protección de accesos\n•\tSistema de bombeo automático con sensores de nivel mediante la instalación de bombas de achique con activación automática en puntos bajos de la galería.\n•\tRestauración de vegetación y suelos absorbentes en el entorno de la galería","•\tso de sistemas de soporte flexibles (pernos, mallas, hormigón proyectado) adaptados a la variabilidad del terreno por humedad y temperatura.\n•\tImpermeabilización reforzada de galerías\n•\tMonitoreo hidrológico y geotécnico en tiempo real mediante sensores de humedad, presión y temperatura\n•\tGestión de escorrentía superficial en zonas de acceso\n•\tRevegetación y estabilización de laderas en entorno de galerías","•\tInstalación de sistemas de ventilación mecánica con sensores de temperatura y humedad.\n•\tRevestimientos interiores con materiales como hormigón refractario o aislantes térmicos\n•\tSensores de temperatura, humedad y gases en puntos críticos de la galería.\n•\tVegetación en superficie para reducir el efecto isla de calor y mejorar la infiltración","•\tInstalación de sistemas de ventilación mecánica con sensores de temperatura y humedad.\n•\tRevestimientos interiores con materiales como hormigón refractario o aislantes térmicos\n•\tSensores de temperatura, humedad y gases en puntos críticos de la galería.\n•\tVegetación en superficie para reducir el efecto isla de calor y mejorar la infiltración","•\tDiseño geotécnico adaptado al riesgo de deslizamiento\n•\tInstalación de sistemas de monitoreo geotécnico en tiempo real\n•\tEstabilización del entorno mediante soluciones basadas en la naturaleza en las laderas próximas a las galerías","•\tDiseño aerodinámico y reforzado de accesos exteriores\n•\tUso de vegetación densa, pantallas físicas o muros en el entorno de accesos expuestos.\n•\tProtección de sistemas eléctricos y de ventilación","•\tImpermeabilización estructural avanzada\n•\tSistema de monitoreo meteorológico y geotécnico en tiempo real\n•\tProtección de accesos y salidas de emergencia\n•\tGestión de escorrentía superficial en el entorno"]
[null,"Territorio","Escollera de contención","•\tAumentar la altura de la estructura para anticiparse a futuros incrementos del nivel del mar y a eventos extremos como marejadas ciclónicas.\n•\tUso de materiales resistentes a la erosión marina\n•\tIncorporar formas curvas o escalonadas que disipen la energía del oleaje y reduzcan el desgaste estructural, mejorando la estabilidad frente a temporales.\n•\tUtilizar vegetación costera (como marismas o praderas marinas) que actúe como barrera natural y mejore la absorción del impacto del agua.\n•\tInstalar sensores para controlar el nivel del mar, la presión del oleaje y el estado estructural, permitiendo intervenciones preventivas y ajustes en tiempo real.","•\tAumentar la altura de la estructura para anticiparse a futuros incrementos del nivel del mar y a eventos extremos como marejadas ciclónicas.\n•\tUso de materiales resistentes a la erosión marina\n•\tIncorporar formas curvas o escalonadas que disipen la energía del oleaje y reduzcan el desgaste estructural, mejorando la estabilidad frente a temporales.\n•\tUtilizar vegetación costera (como marismas o praderas marinas) que actúe como barrera natural y mejore la absorción del impacto del agua.\n•\tInstalar sensores para controlar el nivel del mar, la presión del oleaje y el estado estructural, permitiendo intervenciones preventivas y ajustes en tiempo real.","•\tAumentar la altura de la estructura para anticiparse a futuros incrementos del nivel del mar y a eventos extremos como marejadas ciclónicas.\n•\tUso de materiales resistentes a la erosión marina\n•\tIncorporar formas curvas o escalonadas que disipen la energía del oleaje y reduzcan el desgaste estructural, mejorando la estabilidad frente a temporales.\n•\tUtilizar vegetación costera (como marismas o praderas marinas) que actúe como barrera natural y mejore la absorción del impacto del agua.\n•\tInstalar sensores para controlar el nivel del mar, la presión del oleaje y el estado estructural, permitiendo intervenciones preventivas y ajustes en tiempo real.","•\tIncorporar canales, filtros y drenajes en la estructura para facilitar la evacuación del agua de lluvia acumulada y evitar sobrecargas o desbordamientos.\n•\tEmplear materiales que permitan cierta infiltración controlada y que resistan la saturación prolongada sin perder estabilidad, como geotextiles o bloques drenantes.\n•\tVegetación estabilizadora en taludes y zonas adyacentes mediante la plantación de especies autóctonas con raíces profundas que ayuden a fijar el terreno y reducir la escorrentía superficial, disminuyendo el riesgo de erosión.\n•\tEstablecer sistemas de vigilancia para controlar el estado de la escollera tras eventos de lluvia intensa, y realizar inspecciones periódicas para detectar daños o acumulaciones de sedimentos","•\tAumentar la altura de la estructura para anticiparse a futuros incrementos del nivel del mar y a eventos extremos como marejadas ciclónicas.\n•\tUso de materiales resistentes a la erosión marina\n•\tIncorporar formas curvas o escalonadas que disipen la energía del oleaje y reduzcan el desgaste estructural, mejorando la estabilidad frente a temporales.\n•\tUtilizar vegetación costera (como marismas o praderas marinas) que actúe como barrera natural y mejore la absorción del impacto del agua.\n•\tInstalar sensores para controlar el nivel del mar, la presión del oleaje y el estado estructural, permitiendo intervenciones preventivas y ajustes en tiempo real.","•\tIncorporar canales, filtros y drenajes en la estructura para facilitar la evacuación del agua de lluvia acumulada y evitar sobrecargas o desbordamientos.\n•\tEmplear materiales que permitan cierta infiltración controlada y que resistan la saturación prolongada sin perder estabilidad, como geotextiles o bloques drenantes.\n•\tVegetación estabilizadora en taludes y zonas adyacentes mediante la plantación de especies autóctonas con raíces profundas que ayuden a fijar el terreno y reducir la escorrentía superficial, disminuyendo el riesgo de erosión.\n•\tEstablecer sistemas de vigilancia para controlar el estado de la escollera tras eventos de lluvia intensa, y realizar inspecciones periódicas para detectar daños o acumulaciones de sedimentos","•\tDiseñar los proyectos para resistir el aumento de caudales superficiales provocados por lluvias intensas en lugar de acumulación nival, incluyendo materiales de alta resistencia hidráulica.\n•\tIncorporación de sistemas de drenaje eficientes\n•\tReforzar taludes y zonas cercanas con vegetación autóctona, geotextiles o muros de contención para prevenir deslizamientos provocados por saturación del suelo.\n•\tInstalar sensores para controlar la humedad del terreno, el nivel de agua y posibles desplazamientos, permitiendo una respuesta temprana ante eventos extremos.\n•\tPermitir futuras ampliaciones o ajustes en la estructura según la evolución del clima, ","•\tUso de materiales resistentes a la expansión térmica:\n•\tIncorporar juntas flexibles en la estructura para permitir la expansión controlada de los materiales sin comprometer la estabilidad de la escollera.\n•\tAplicar tratamientos o revestimientos reflectantes en las superficies expuestas para reducir la absorción de calor y prolongar la vida útil de los materiales.\n•\tPlantar especies resistentes a temperaturas elevadas en zonas adyacentes para reducir el calentamiento del entorno y mejorar la estabilidad del terreno.\n•\tInstalar sensores para controlar la temperatura de los materiales y detectar posibles deformaciones o tensiones que puedan afectar la escollera.","•\tUso de materiales resistentes a la expansión térmica:\n•\tIncorporar juntas flexibles en la estructura para permitir la expansión controlada de los materiales sin comprometer la estabilidad de la escollera.\n•\tAplicar tratamientos o revestimientos reflectantes en las superficies expuestas para reducir la absorción de calor y prolongar la vida útil de los materiales.\n•\tPlantar especies resistentes a temperaturas elevadas en zonas adyacentes para reducir el calentamiento del entorno y mejorar la estabilidad del terreno.\n•\tInstalar sensores para controlar la temperatura de los materiales y detectar posibles deformaciones o tensiones que puedan afectar la escollera.","•\tRealizar análisis detallados del terreno para identificar zonas con alta susceptibilidad a deslizamientos, fallas o saturación hídrica que puedan comprometer la estabilidad de la galería.\n•\tIncorporar revestimientos resistentes, sistemas de sostenimiento (como cerchas, bulones o anclajes) y juntas de dilatación que permitan absorber deformaciones del terreno sin comprometer la integridad de la galería.\n•\tInstalar drenajes perimetrales y subterráneos para controlar la infiltración de agua y reducir la presión hidrostática que puede desencadenar movimientos de ladera.\n•\tImplementar sensores de desplazamiento, inclinómetros y sistemas de alerta temprana para detectar movimientos anómalos y activar protocolos de intervención rápida.\n•\tReforzar taludes cercanos mediante muros de contención, mallas metálicas, vegetación estabilizadora o geotextiles para evitar que los movimientos superficiales afecten la galería subterránea.","•\tIncorporar formas curvas o inclinadas que reduzcan la resistencia al viento y minimicen el impacto directo sobre la estructura.\n•\tUtilizar bloques de hormigón, rocas o elementos prefabricados que soporten la presión del viento y posibles impactos de objetos arrastrados.\n•\tAsegurar que los componentes de la escollera estén firmemente anclados al terreno para evitar desplazamientos o colapsos por ráfagas intensas.\n•\tMinimizar o reforzar componentes vulnerables como barandillas, señalización o accesos, que puedan desprenderse o deteriorarse por el viento.","•\tIncorporar formas curvas o inclinadas que reduzcan la resistencia al viento y minimicen el impacto directo sobre la estructura.\n•\tUtilizar bloques de hormigón, rocas o elementos prefabricados que soporten la presión del viento y posibles impactos de objetos arrastrados.\n•\tAsegurar que los componentes de la escollera estén firmemente anclados al terreno para evitar desplazamientos o colapsos por ráfagas intensas.\n•\tMinimizar o reforzar componentes vulnerables como barandillas, señalización o accesos, que puedan desprenderse o deteriorarse por el viento."]
[null,"Soluciones Basadas en la Naturaleza","Adaptación cambio climático","•\tRecuperación de sistemas naturales que actúan como barreras frente al avance del mar. \n•\tUso de vegetación autóctona para estabilizar suelos y absorber energía de las olas.\n•\tEstablecimiento de zonas vegetadas entre el mar y áreas descontaminadas o restauradas. \n•\tIntegración con corredores ecológicos costeros.\n•\tDiseño de sistemas de drenaje vegetales que filtren y regulen el flujo de agua salina.\n•\tInstalación de sensores en zonas SbN para medir variaciones del nivel del mar y salinidad.","•\tRecuperación de sistemas naturales que actúan como barreras frente al avance del mar. \n•\tUso de vegetación autóctona para estabilizar suelos y absorber energía de las olas.\n•\tCreación de franjas de amortiguamiento verde\n•\tGestión natural de escorrentías y aguas salinas\n•\tReforestación costera con especies resistentes adaptada a ambientes salinos y vientos marinos.\n•\tInstalación de sensores de nivel del mar, salinidad y humedad en zonas SbN.","•\tRecuperación de sistemas naturales que actúan como barreras frente al avance del mar. \n•\tUso de vegetación autóctona para estabilizar suelos y absorber energía de las olas.\n•\tCreación de franjas de amortiguamiento verde\n•\tGestión natural de escorrentías y aguas salinas\n•\tReforestación costera con especies resistentes adaptada a ambientes salinos y vientos marinos.\n•\tInstalación de sensores de nivel del mar, salinidad y humedad en zonas SbN.","•\tInstalación de zanjas vegetadas, jardines de lluvia y humedales artificiales en terrenos restaurados\n•\tPlantación de vegetación autóctona con alta capacidad de retención de agua y raíces profundas.\n•\tRestauración ecológica de suelos degradados para mejorar su estructura.\n•\tDiseño de sistemas de drenaje natural que canalicen el exceso de agua hacia zonas de absorción. \n•\tSeparación de aguas limpias y contaminadas en zonas de intervención.\n•\tUso de técnicas de bioingeniería como mantas vegetales, fajinas vivas y terrazas verdes.\n•\tInstalación de sensores de humedad, precipitación y escorrentía.","•\tPlantación de vegetación autóctona en márgenes de ríos y arroyos. \n•\tEliminación de especies invasoras y estabilización ecológica del terreno.\n•\tRecuperación de ecosistemas húmedos naturales que actúan como esponjas frente a lluvias intensas. \n•\tIntegración con zonas descontaminadas para mejorar la calidad del agua\n•\tRestauración de la capacidad natural de los ríos para desbordarse en zonas controladas. \n•\tAdaptación de terrenos descontaminados para actuar como zonas de retención temporal.\n•\tInstalación de jardines de lluvia, pavimentos permeables y techos verdes en zonas restauradas. \n•\tIntegración con redes de drenaje sostenible.\n•\tInstalación de sensores de nivel de agua, humedad del suelo y velocidad de escorrentía.","•\tPlantación de vegetación autóctona en márgenes de ríos y arroyos. \n•\tEliminación de especies invasoras y estabilización ecológica del terreno.\n•\tRecuperación de ecosistemas húmedos naturales que actúan como esponjas frente a lluvias intensas. \n•\tIntegración con zonas descontaminadas para mejorar la calidad del agua\n•\tRestauración de la capacidad natural de los ríos para desbordarse en zonas controladas. \n•\tAdaptación de terrenos descontaminados para actuar como zonas de retención temporal.\n•\tInstalación de jardines de lluvia, pavimentos permeables y techos verdes en zonas restauradas. \n•\tIntegración con redes de drenaje sostenible.\n•\tInstalación de sensores de nivel de agua, humedad del suelo y velocidad de escorrentía.","•\tPlantación de especies autóctonas adaptadas a condiciones variables de nieve y temperatura. \n•\tRestauración de bosques que regulan el ciclo hídrico y protegen el suelo.\n•\tInstalación de humedales, charcas y depresiones vegetadas en zonas restauradas. \n•\tCaptación del agua de deshielo para su uso en procesos de descontaminación o riego ecológico.\n•\tUso de técnicas de bioingeniería como terrazas verdes, mantas vegetales y fajinas vivas. \n•\tAplicación en terrenos restaurados con riesgo de deslizamiento por cambios en el régimen nival.\n•\tDiseño de paisajes con vegetación escalonada que se adapte a diferentes altitudes y condiciones climáticas. \n•\tRestauración de ecosistemas de montaña degradados por la pérdida de cobertura nival.\n•\tInstalación de sensores de temperatura, humedad, acumulación de nieve y velocidad de deshielo.","•\tReforestación con especies autóctonas adaptadas al calor\n•\tUso de técnicas de regeneración del suelo como compostaje, mulching y cultivos de cobertura.\n•\tInstalación de humedales artificiales, zanjas de infiltración y jardines de lluvia en zonas restauradas.\n•\tInstalación de techos verdes en edificios de apoyo a proyectos SbN (centros de interpretación, almacenes).\n•\tInstalación de sensores de temperatura, humedad y radiación solar en zonas SbN. \n•\tAjuste de fases de revegetación y descontaminación según condiciones climáticas.","•\tReforestación con especies autóctonas adaptadas al calor\n•\tUso de técnicas de regeneración del suelo como compostaje, mulching y cultivos de cobertura.\n•\tInstalación de humedales artificiales, zanjas de infiltración y jardines de lluvia en zonas restauradas.\n•\tInstalación de techos verdes en edificios de apoyo a proyectos SbN (centros de interpretación, almacenes).\n•\tInstalación de sensores de temperatura, humedad y radiación solar en zonas SbN. \n•\tAjuste de fases de revegetación y descontaminación según condiciones climáticas.","•\tReforestación con especies de raíces profundas\n•\tBioingeniería para estabilización de taludes: Uso de técnicas como fajinas vivas, mantas orgánicas, enrejados vegetales y muros verdes.\n•\tDiseño de vegetación en capas (arbustos, herbáceas, árboles) para amortiguar el viento. \n•\tRestauración ecológica de zonas degradadas con vegetación adaptada al clima atlántico.\n•\tCreación de zanjas de infiltración, terrazas vegetales y canales verdes. \n•\tIntegración con procesos de descontaminación para evitar erosión hídrica.\n•\tInstalación de sensores de humedad, inclinación y velocidad del viento en zonas SbN. \n•\tAjuste de fases de revegetación y descontaminación según condiciones meteorológicas.","•\tReforestación con especies resistentes al viento que actúen como barrera natural ante el viento\n•\tUso de vegetación densa y escalonada para frenar la velocidad del viento.\n•\tEstabilización ecológica de suelos vulnerables: Uso de técnicas de bioingeniería como mantas vegetales, hidrosiembra o enraizamiento profundo.\n•\tInstalación de estaciones meteorológicas en zonas de intervención SbN. \n•\tModelado del terreno para reducir la exposición directa al viento (terrazas, taludes, depresiones). \n•\t Integración de elementos naturales como rocas, arbustos y humedales.\n•\tAjuste de las fases de revegetación o descontaminación según las condiciones de viento.","•\tPlantación de vegetación autóctona en márgenes de ríos y arroyos. \n•\tEliminación de especies invasoras y estabilización ecológica del terreno.\n•\tRecuperación de ecosistemas húmedos naturales que actúan como esponjas frente a lluvias intensas. \n•\tIntegración con zonas descontaminadas para mejorar la calidad del agua\n•\tRestauración de la capacidad natural de los ríos para desbordarse en zonas controladas. \n•\tAdaptación de terrenos descontaminados para actuar como zonas de retención temporal.\n•\tInstalación de jardines de lluvia, pavimentos permeables y techos verdes en zonas restauradas. \n•\tIntegración con redes de drenaje sostenible.\n•\tInstalación de sensores de nivel de agua, humedad del suelo y velocidad de escorrentía."]
[null,"Soluciones Basadas en la Naturaleza","Adaptación de terrenos/descontaminación","•\tRecuperación de sistemas naturales que actúan como barreras frente al avance del mar. \n•\tUso de vegetación autóctona para estabilizar suelos y absorber energía de las olas.\n•\tEstablecimiento de zonas vegetadas entre el mar y áreas descontaminadas o restauradas. \n•\tIntegración con corredores ecológicos costeros.\n•\tDiseño de sistemas de drenaje vegetales que filtren y regulen el flujo de agua salina.\n•\tInstalación de sensores en zonas SbN para medir variaciones del nivel del mar y salinidad.","•\tRecuperación de sistemas naturales que actúan como barreras frente al avance del mar. \n•\tUso de vegetación autóctona para estabilizar suelos y absorber energía de las olas.\n•\tCreación de franjas de amortiguamiento verde\n•\tGestión natural de escorrentías y aguas salinas\n•\tReforestación costera con especies resistentes adaptada a ambientes salinos y vientos marinos.\n•\tInstalación de sensores de nivel del mar, salinidad y humedad en zonas SbN.","•\tRecuperación de sistemas naturales que actúan como barreras frente al avance del mar. \n•\tUso de vegetación autóctona para estabilizar suelos y absorber energía de las olas.\n•\tCreación de franjas de amortiguamiento verde\n•\tGestión natural de escorrentías y aguas salinas\n•\tReforestación costera con especies resistentes adaptada a ambientes salinos y vientos marinos.\n•\tInstalación de sensores de nivel del mar, salinidad y humedad en zonas SbN.","•\tInstalación de zanjas vegetadas, jardines de lluvia y humedales artificiales en terrenos restaurados\n•\tPlantación de vegetación autóctona con alta capacidad de retención de agua y raíces profundas.\n•\tRestauración ecológica de suelos degradados para mejorar su estructura.\n•\tDiseño de sistemas de drenaje natural que canalicen el exceso de agua hacia zonas de absorción. \n•\tSeparación de aguas limpias y contaminadas en zonas de intervención.\n•\tUso de técnicas de bioingeniería como mantas vegetales, fajinas vivas y terrazas verdes.\n•\tInstalación de sensores de humedad, precipitación y escorrentía.","•\tPlantación de vegetación autóctona en márgenes de ríos y arroyos. \n•\tEliminación de especies invasoras y estabilización ecológica del terreno.\n•\tRecuperación de ecosistemas húmedos naturales que actúan como esponjas frente a lluvias intensas. \n•\tIntegración con zonas descontaminadas para mejorar la calidad del agua\n•\tRestauración de la capacidad natural de los ríos para desbordarse en zonas controladas. \n•\tAdaptación de terrenos descontaminados para actuar como zonas de retención temporal.\n•\tInstalación de jardines de lluvia, pavimentos permeables y techos verdes en zonas restauradas. \n•\tIntegración con redes de drenaje sostenible.\n•\tInstalación de sensores de nivel de agua, humedad del suelo y velocidad de escorrentía.","•\tPlantación de vegetación autóctona en márgenes de ríos y arroyos. \n•\tEliminación de especies invasoras y estabilización ecológica del terreno.\n•\tRecuperación de ecosistemas húmedos naturales que actúan como esponjas frente a lluvias intensas. \n•\tIntegración con zonas descontaminadas para mejorar la calidad del agua\n•\tRestauración de la capacidad natural de los ríos para desbordarse en zonas controladas. \n•\tAdaptación de terrenos descontaminados para actuar como zonas de retención temporal.\n•\tInstalación de jardines de lluvia, pavimentos permeables y techos verdes en zonas restauradas. \n•\tIntegración con redes de drenaje sostenible.\n•\tInstalación de sensores de nivel de agua, humedad del suelo y velocidad de escorrentía.","•\tPlantación de especies autóctonas adaptadas a condiciones variables de nieve y temperatura. \n•\tRestauración de bosques que regulan el ciclo hídrico y protegen el suelo.\n•\tInstalación de humedales, charcas y depresiones vegetadas en zonas restauradas. \n•\tCaptación del agua de deshielo para su uso en procesos de descontaminación o riego ecológico.\n•\tUso de técnicas de bioingeniería como terrazas verdes, mantas vegetales y fajinas vivas. \n•\tAplicación en terrenos restaurados con riesgo de deslizamiento por cambios en el régimen nival.\n•\tDiseño de paisajes con vegetación escalonada que se adapte a diferentes altitudes y condiciones climáticas. \n•\tRestauración de ecosistemas de montaña degradados por la pérdida de cobertura nival.\n•\tInstalación de sensores de temperatura, humedad, acumulación de nieve y velocidad de deshielo.","•\tReforestación con especies autóctonas adaptadas al calor\n•\tUso de técnicas de regeneración del suelo como compostaje, mulching y cultivos de cobertura.\n•\tInstalación de humedales artificiales, zanjas de infiltración y jardines de lluvia en zonas restauradas.\n•\tInstalación de techos verdes en edificios de apoyo a proyectos SbN (centros de interpretación, almacenes).\n•\tInstalación de sensores de temperatura, humedad y radiación solar en zonas SbN. \n•\tAjuste de fases de revegetación y descontaminación según condiciones climáticas.","•\tReforestación con especies autóctonas adaptadas al calor\n•\tUso de técnicas de regeneración del suelo como compostaje, mulching y cultivos de cobertura.\n•\tInstalación de humedales artificiales, zanjas de infiltración y jardines de lluvia en zonas restauradas.\n•\tInstalación de techos verdes en edificios de apoyo a proyectos SbN (centros de interpretación, almacenes).\n•\tInstalación de sensores de temperatura, humedad y radiación solar en zonas SbN. \n•\tAjuste de fases de revegetación y descontaminación según condiciones climáticas.","•\tReforestación con especies de raíces profundas\n•\tBioingeniería para estabilización de taludes: Uso de técnicas como fajinas vivas, mantas orgánicas, enrejados vegetales y muros verdes.\n•\tDiseño de vegetación en capas (arbustos, herbáceas, árboles) para amortiguar el viento. \n•\tRestauración ecológica de zonas degradadas con vegetación adaptada al clima atlántico.\n•\tCreación de zanjas de infiltración, terrazas vegetales y canales verdes. \n•\tIntegración con procesos de descontaminación para evitar erosión hídrica.\n•\tInstalación de sensores de humedad, inclinación y velocidad del viento en zonas SbN. \n•\tAjuste de fases de revegetación y descontaminación según condiciones meteorológicas.","•\tReforestación con especies resistentes al viento que actúen como barrera natural ante el viento\n•\tUso de vegetación densa y escalonada para frenar la velocidad del viento.\n•\tEstabilización ecológica de suelos vulnerables: Uso de técnicas de bioingeniería como mantas vegetales, hidrosiembra o enraizamiento profundo.\n•\tInstalación de estaciones meteorológicas en zonas de intervención SbN. \n•\tModelado del terreno para reducir la exposición directa al viento (terrazas, taludes, depresiones). \n•\t Integración de elementos naturales como rocas, arbustos y humedales.\n•\tAjuste de las fases de revegetación o descontaminación según las condiciones de viento.","•\tPlantación de vegetación autóctona en márgenes de ríos y arroyos. \n•\tEliminación de especies invasoras y estabilización ecológica del terreno.\n•\tRecuperación de ecosistemas húmedos naturales que actúan como esponjas frente a lluvias intensas. \n•\tIntegración con zonas descontaminadas para mejorar la calidad del agua\n•\tRestauración de la capacidad natural de los ríos para desbordarse en zonas controladas. \n•\tAdaptación de terrenos descontaminados para actuar como zonas de retención temporal.\n•\tInstalación de jardines de lluvia, pavimentos permeables y techos verdes en zonas restauradas. \n•\tIntegración con redes de drenaje sostenible.\n•\tInstalación de sensores de nivel de agua, humedad del suelo y velocidad de escorrentía."]
[null,"Infraestructura Verde","Infraestructura verde","•\tUbicar la infraestructura verde en zonas elevadas o con menor exposición directa al mar, y establecer corredores ecológicos que conecten áreas seguras y faciliten la migración de especies.\n•\tAplicar enfoques y estructuras que combinen ingeniería ecológica con protección frente al aumento del nivel del mar.\n•\tEstablecer franjas de vegetación autóctona resistente a la salinidad y al viento marino, que ayuden a estabilizar el terreno y a mitigar el impacto del peligro\n•\tProteger y recuperar marismas, dunas y humedales que actúan como barreras naturales frente al avance del mar, absorbiendo energía del oleaje y reduciendo la erosión","•\tIntegrar zonas verdes con capacidad de retención de agua y drenaje natural, que puedan absorber el exceso de agua en caso de inundaciones costeras.\n•\tUbicar la infraestructura verde en zonas elevadas o con menor exposición directa al mar, y establecer corredores ecológicos que conecten áreas seguras y faciliten la migración de especies.\n•\tAplicar enfoques y estructuras que combinen ingeniería ecológica con protección frente al aumento del nivel del mar.\n•\tEstablecer franjas de vegetación autóctona resistente a la salinidad y al viento marino, que ayuden a estabilizar el terreno y a mitigar el impacto del peligro\n•\tProteger y recuperar marismas, dunas y humedales que actúan como barreras naturales frente al avance del mar, absorbiendo energía del oleaje y reduciendo la erosión","•\tIntegrar zonas verdes con capacidad de retención de agua y drenaje natural, que puedan absorber el exceso de agua en caso de inundaciones costeras.\n•\tUbicar la infraestructura verde en zonas elevadas o con menor exposición directa al mar, y establecer corredores ecológicos que conecten áreas seguras y faciliten la migración de especies.\n•\tAplicar enfoques y estructuras que combinen ingeniería ecológica con protección frente al aumento del nivel del mar.\n•\tEstablecer franjas de vegetación autóctona resistente a la salinidad y al viento marino, que ayuden a estabilizar el terreno y a mitigar el impacto del peligro\n•\tProteger y recuperar marismas, dunas y humedales que actúan como barreras naturales frente al avance del mar, absorbiendo energía del oleaje y reduciendo la erosión","•\tTechos verdes en edificios públicos y residenciales\n•\tPlantación de árboles adaptados al clima local en calles, plazas y avenidas.\n•\tZonas lineales vegetadas que conectan áreas verdes y permiten el flujo de agua y fauna.","•\tIntegrar zonas verdes con capacidad de retención de agua y drenaje natural, que puedan absorber el exceso de agua \n•\tUbicar la infraestructura verde en zonas y establecer corredores ecológicos que conecten áreas seguras y faciliten la migración de especies.\n•\tAplicar enfoques y estructuras que combinen ingeniería ecológica \n•\tEstablecer franjas de vegetación autóctona, que ayuden a estabilizar el terreno y a mitigar el impacto del peligro","•\tIntegrar zonas verdes con capacidad de retención de agua y drenaje natural, que puedan absorber el exceso de agua \n•\tUbicar la infraestructura verde en zonas y establecer corredores ecológicos que conecten áreas seguras y faciliten la migración de especies.\n•\tAplicar enfoques y estructuras que combinen ingeniería ecológica \n•\tEstablecer franjas de vegetación autóctona, que ayuden a estabilizar el terreno y a mitigar el impacto del peligro","•\tPlantación de árboles autóctonos adaptados a variaciones térmicas y menor cobertura nival.\n•\tRestauración de bosques que regulan el ciclo hídrico y protegen el suelo.\n•\tInstalación de charcas, depresiones vegetadas y humedales en zonas de transición nival. \n•\tCaptación del agua de deshielo para su uso ecológico y como reserva hídrica.\n•\tUso de técnicas de bioingeniería como terrazas verdes, mantas vegetales y fajinas vivas.\n•\tIntegración de vegetación escalonada que se adapte a diferentes altitudes y condiciones climáticas. \n•\tRestauración de ecosistemas de montaña degradados por la pérdida de cobertura nival.\n•\tInstalación de sensores de temperatura, humedad, acumulación de nieve y velocidad de deshielo.","•\tPlantación de árboles autóctonos en zonas urbanas y alrededores. \n•\tDiseño de parques con alta densidad vegetal.\n•\tRehabilitación de riberas y zonas húmedas\n•\tInstalación de cubiertas y fachadas verdes en edificios públicos\n•\tDiseño de corredores verdes climáticos\n•\tInstalación de sensores de temperatura, humedad y calidad del aire en zonas urbanas. \n•\tIntegración con plataformas de alerta temprana.","•\tPlantación de árboles autóctonos en zonas urbanas y alrededores. \n•\tDiseño de parques con alta densidad vegetal.\n•\tRehabilitación de riberas y zonas húmedas\n•\tInstalación de cubiertas y fachadas verdes en edificios públicos\n•\tDiseño de corredores verdes climáticos\n•\tInstalación de sensores de temperatura, humedad y calidad del aire en zonas urbanas. \n•\tIntegración con plataformas de alerta temprana.","•\tUso de técnicas de bioingeniería como fajinas vivas, mantas orgánicas, muros verdes y enrejados vegetales.\n•\tPlantación de árboles autóctonos en zonas de pendiente para fijar el suelo.\n•\tInstalación de sistemas de drenaje natural (zanjas de infiltración, canales vegetados). \n•\tReducción de escorrentías superficiales en zonas de infraestructura verde.\n•\tModelado del terreno para reducir la pendiente y distribuir el flujo de agua. \n•\tCreación de terrazas verdes y zonas de amortiguamiento.\n•\tInstalación de sensores de humedad, inclinación y presión en zonas críticas.","•\tPlantación de setos, franjas forestales o cinturones verdes en zonas expuestas. \n•\tUso de especies autóctonas resistentes al viento y con raíces profundas.\n•\tDiseño de pérgolas vegetales, muros verdes y techos verdes con sistemas de anclaje reforzados. \n•\tUso de materiales resistentes al viento en estructuras de soporte.\n•\tRestauración ecológica de áreas abiertas o erosionadas con vegetación que amortigüe el viento. \n•\tDiseño de paisajes con vegetación escalonada (arbustos, árboles, herbáceas).\n•\tInstalación de zanjas vegetadas y sistemas de infiltración en zonas donde el viento favorece la acumulación de agua. \n•\tIntegración con drenaje sostenible urbano.\n•\tInstalación de sensores de velocidad del viento, presión atmosférica y humedad en zonas verdes estratégicas.","•\tPlantación de setos, franjas forestales o cinturones verdes en zonas expuestas. \n•\tUso de especies autóctonas resistentes al viento y con raíces profundas.\n•\tDiseño de pérgolas vegetales, muros verdes y techos verdes con sistemas de anclaje reforzados. \n•\tUso de materiales resistentes al viento en estructuras de soporte.\n•\tRestauración ecológica de áreas abiertas o erosionadas con vegetación que amortigüe el viento. \n•\tDiseño de paisajes con vegetación escalonada (arbustos, árboles, herbáceas).\n•\tInstalación de zanjas vegetadas y sistemas de infiltración en zonas donde el viento favorece la acumulación de agua. \n•\tIntegración con drenaje sostenible urbano.\n•\tInstalación de sensores de velocidad del viento, presión atmosférica y humedad en zonas verdes estratégicas."]